Workbook

Sheet Control
A1: ` | L1: Ladies | W1: Clubs | AA1: Rules - Men | AD1: Runners - Men
A2: 1 | B2: 21 | C2: 41 | D2: 61 | E2: 81 | F2: 101 | G2: 121 | H2: 141 | I2: 161 | J2: 181 | L2: 1 | M2: 21 | N2: 41 | O2: 61 | P2: 81 | Q2: 101 | R2: 121 | S2: 141 | T2: 161 | U2: 181 | W2: Race | X2: Club | Y2: Code | AA2: Number of Scoring Runners | AB2: 8 | AD2: Club | AE2: Race 1 | AF2: Race 2 | AG2: Race 3 | AH2: Race 4
A3: 2 | B3: 22 | C3: 42 | D3: 62 | E3: 82 | F3: 102 | G3: 122 | H3: 142 | I3: 162 | J3: 182 | L3: 2 | M3: 22 | N3: 42 | O3: 62 | P3: 82 | Q3: 102 | R3: 122 | S3: 142 | T3: 162 | U3: 182 | W3: 1 | X3: Ware Joggers | Y3: WJ | AA3: Number of Veterans | AB3: 2 | AD3: =X3 -> Ware Joggers | AE3: 26 | AF3: 32 | AG3: 30 | AH3: 29
A4: 3 | B4: 23 | C4: 43 | D4: 63 | E4: 83 | F4: 103 | G4: 123 | H4: 143 | I4: 163 | J4: 183 | L4: 3 | M4: 23 | N4: 43 | O4: 63 | P4: 83 | Q4: 103 | R4: 123 | S4: 143 | T4: 163 | U4: 183 | W4: 2 | X4: Bishop's Stortford | Y4: BS | AA4: Number of 2nd Claim Scorers | AB4: 2 | AD4: =X4 -> Bishop's Stortford | AE4: 22 | AF4: 23 | AG4: 27 | AH4: 17
A5: 4 | B5: 24 | C5: 44 | D5: 64 | E5: 84 | F5: 104 | G5: 124 | H5: 144 | I5: 164 | J5: 184 | L5: 4 | M5: 24 | N5: 44 | O5: 64 | P5: 84 | Q5: 104 | R5: 124 | S5: 144 | T5: 164 | U5: 184 | W5: 3 | X5: Saffron Striders | Y5: SS | AD5: =X5 -> Saffron Striders | AE5: 12 | AF5: 9 | AG5: 22 | AH5: 13
A6: 5 | B6: 25 | C6: 45 | D6: 65 | E6: 85 | F6: 105 | G6: 125 | H6: 145 | I6: 165 | J6: 185 | L6: 5 | M6: 25 | N6: 45 | O6: 65 | P6: 85 | Q6: 105 | R6: 125 | S6: 145 | T6: 165 | U6: 185 | W6: 4 | X6: Harlow Running & Tri Club | Y6: HRC | AA6: Rules - Ladies | AD6: =X6 -> Harlow Running & Tri Club | AE6: 30 | AF6: 29 | AG6: 15 | AH6: 16
A7: 6 | B7: 26 | C7: 46 | D7: 66 | E7: 86 | F7: 106 | G7: 126 | H7: 146 | I7: 166 | J7: 186 | L7: 6 | M7: 26 | N7: 46 | O7: 66 | P7: 86 | Q7: 106 | R7: 126 | S7: 146 | T7: 166 | U7: 186 | W7: 5 | AA7: Number of Scoring Runners | AB7: 8 | AD7: =X7 -> 0 | AE7: 0 | AF7: 0 | AG7: 0 | AH7: 0
A8: 7 | B8: 27 | C8: 47 | D8: 67 | E8: 87 | F8: 107 | G8: 127 | H8: 147 | I8: 167 | J8: 187 | L8: 7 | M8: 27 | N8: 47 | O8: 67 | P8: 87 | Q8: 107 | R8: 127 | S8: 147 | T8: 167 | U8: 187 | W8: 6 | AA8: Number of Veterans | AB8: 2
A9: 8 | B9: 28 | C9: 48 | D9: 68 | E9: 88 | F9: 108 | G9: 128 | H9: 148 | I9: 168 | J9: 188 | L9: 8 | M9: 28 | N9: 48 | O9: 68 | P9: 88 | Q9: 108 | R9: 128 | S9: 148 | T9: 168 | U9: 188 | W9: 7 | AA9: Number of 2nd Claim Scorers | AB9: 2
A10: 9 | B10: 29 | C10: 49 | D10: 69 | E10: 89 | F10: 109 | G10: 129 | H10: 149 | I10: 169 | J10: 189 | L10: 9 | M10: 29 | N10: 49 | O10: 69 | P10: 89 | Q10: 109 | R10: 129 | S10: 149 | T10: 169 | U10: 189 | W10: 8
A11: 10 | B11: 30 | C11: 50 | D11: 70 | E11: 90 | F11: 110 | G11: 130 | H11: 150 | I11: 170 | J11: 190 | L11: 10 | M11: 30 | N11: 50 | O11: 70 | P11: 90 | Q11: 110 | R11: 130 | S11: 150 | T11: 170 | U11: 190 | W11: 9 | AA11: Penalty for Incomplete team
A12: 11 | B12: 31 | C12: 51 | D12: 71 | E12: 91 | F12: 111 | G12: 131 | H12: 151 | I12: 171 | J12: 191 | L12: 11 | M12: 31 | N12: 51 | O12: 71 | P12: 91 | Q12: 111 | R12: 131 | S12: 151 | T12: 171 | U12: 191 | W12: 10 | AA12: Men | AB12: 85
A13: 12 | B13: 32 | C13: 52 | D13: 72 | E13: 92 | F13: 112 | G13: 132 | H13: 152 | I13: 172 | J13: 192 | L13: 12 | M13: 32 | N13: 52 | O13: 72 | P13: 92 | Q13: 112 | R13: 132 | S13: 152 | T13: 172 | U13: 192 | AA13: Ladies | AB13: 68
A14: 13 | B14: 33 | C14: 53 | D14: 73 | E14: 93 | F14: 113 | G14: 133 | H14: 153 | I14: 173 | J14: 193 | L14: 13 | M14: 33 | N14: 53 | O14: 73 | P14: 93 | Q14: 113 | R14: 133 | S14: 153 | T14: 173 | U14: 193 | AD14: Runners - Ladies
A15: 14 | B15: 34 | C15: 54 | D15: 74 | E15: 94 | F15: 114 | G15: 134 | H15: 154 | I15: 174 | J15: 194 | L15: 14 | M15: 34 | N15: 54 | O15: 74 | P15: 94 | Q15: 114 | R15: 134 | S15: 154 | T15: 174 | U15: 194 | X15: Race Number | Y15: 4 | AD15: Club | AE15: Race 1 | AF15: Race 2 | AG15: Race 3 | AH15: Race 4
A16: 15 | B16: 35 | C16: 55 | D16: 75 | E16: 95 | F16: 115 | G16: 135 | H16: 155 | I16: 175 | J16: 195 | L16: 15 | M16: 35 | N16: 55 | O16: 75 | P16: 95 | Q16: 115 | R16: 135 | S16: 155 | T16: 175 | U16: 195 | AD16: =X3 -> Ware Joggers | AE16: 21 | AF16: 21 | AG16: 22 | AH16: 21
A17: 16 | B17: 36 | C17: 56 | D17: 76 | E17: 96 | F17: 116 | G17: 136 | H17: 156 | I17: 176 | J17: 196 | L17: 16 | M17: 36 | N17: 56 | O17: 76 | P17: 96 | Q17: 116 | R17: 136 | S17: 156 | T17: 176 | U17: 196 | AD17: =X4 -> Bishop's Stortford | AE17: 14 | AF17: 14 | AG17: 23 | AH17: 10
A18: 17 | B18: 37 | C18: 57 | D18: 77 | E18: 97 | F18: 117 | G18: 137 | H18: 157 | I18: 177 | J18: 197 | L18: 17 | M18: 37 | N18: 57 | O18: 77 | P18: 97 | Q18: 117 | R18: 137 | S18: 157 | T18: 177 | U18: 197 | AD18: Saffron Striders | AE18: 8 | AF18: 3 | AG18: 8 | AH18: 7
A19: 18 | B19: 38 | C19: 58 | D19: 78 | E19: 98 | F19: 118 | G19: 138 | H19: 158 | I19: 178 | J19: 198 | L19: 18 | M19: 38 | N19: 58 | O19: 78 | P19: 98 | Q19: 118 | R19: 138 | S19: 158 | T19: 178 | U19: 198 | AD19: Harlow Running & Tri Club | AE19: 23 | AF19: 17 | AG19: 14 | AH19: 20
A20: 19 | B20: 39 | C20: 59 | D20: 79 | E20: 99 | F20: 119 | G20: 139 | H20: 159 | I20: 179 | J20: 199 | L20: 19 | M20: 39 | N20: 59 | O20: 79 | P20: 99 | Q20: 119 | R20: 139 | S20: 159 | T20: 179 | U20: 199 | AD20: 0 | AE20: 0 | AF20: 0 | AG20: 0 | AH20: 0
A21: 20 | B21: 40 | C21: 60 | D21: 80 | E21: 100 | F21: 120 | G21: 140 | H21: 160 | I21: 180 | J21: 200 | L21: 20 | M21: 40 | N21: 60 | O21: 80 | P21: 100 | Q21: 120 | R21: 140 | S21: 160 | T21: 180 | U21: 200
X23: Age Categories
X24: Men | Y24: S | Z24: V40 | AA24: V50 | AB24: V60 | AC24: V70
X25: Ladies | Y25: S | Z25: V35 | AA25: V45 | AB25: V55 | AC25: V65

Sheet Members
A1: Adam Beaumont | B1: BS | C1: S | D1: 1 | G1: Abigail White | H1: BS | I1: S | J1: 1
A2: Adam Chapman | B2: BS | C2: V40 | D2: 1 | G2: Agnieszka Szulc | H2: BS | I2: V45 | J2: 1
A3: Alasdair Bruce | B3: BS | C3: V50 | D3: 1 | G3: Aleksandra Lyznik Wojcik | H3: BS | I3: V45 | J3: 1
A4: Alastair Clegg | B4: BS | C4: S | D4: 1 | G4: alexandra matthews | H4: BS | I4: V45 | J4: 1
A5: Alastair Humphrey | B5: BS | C5: V40 | D5: 1 | G5: Alexia Kitching | H5: BS | I5: V55 | J5: 1
A6: Alec Felstead | B6: BS | C6: V70 | D6: 1 | G6: Alison Malcolm | H6: BS | I6: V55 | J6: 1
A7: Alex Cassels | B7: BS | C7: S | D7: 1 | G7: ALISON WILLIAMS | H7: BS | I7: V65 | J7: 1
A8: Alexander Appleby | B8: BS | C8: S | D8: 1 | G8: Alison Woods | H8: BS | I8: V45 | J8: 1
A9: Andrew Farmery | B9: BS | C9: S | D9: 1 | G9: Alyson Young | H9: BS | I9: V55 | J9: 1
A10: Andrew Pooley | B10: BS | C10: V50 | D10: 1 | G10: Amanda Bavin | H10: BS | I10: V45 | J10: 1
A11: Andrew Wilson | B11: BS | C11: V50 | D11: 1 | G11: Amanda Brown | H11: BS | I11: V45 | J11: 1
A12: Andy Mcmillan | B12: BS | C12: S | D12: 1 | G12: Amanda Edwards | H12: BS | I12: V45 | J12: 1
A13: Anthony Kirby | B13: BS | C13: V40 | D13: 1 | G13: Amy Petridis | H13: BS | I13: V45 | J13: 1
A14: Archie Gilbey | B14: BS | C14: S | D14: 1 | G14: Andrea Thorpe | H14: BS | I14: V45 | J14: 1
A15: baba dib | B15: BS | C15: V40 | D15: 1 | G15: Anna Mowbray | H15: BS | I15: S | J15: 1
A16: Ben Dean | B16: BS | C16: V40 | D16: 1 | G16: Anne Ryan | H16: BS | I16: V55 | J16: 1
A17: Ben Pickford | B17: BS | C17: V40 | D17: 1 | G17: Becky Morrison | H17: BS | I17: V45 | J17: 2
A18: Brian Sullivan | B18: BS | C18: V50 | D18: 1 | G18: Bekah Lawrence | H18: BS | I18: S | J18: 1
A19: Callum Ross | B19: BS | C19: S | D19: 1 | G19: Betty Ajuruchi | H19: BS | I19: V45 | J19: 1
A20: Chris Brolly | B20: BS | C20: V60 | D20: 1 | G20: Beverley May | H20: BS | I20: V55 | J20: 1
A21: Chris Chew | B21: BS | C21: V50 | D21: 1 | E21: 44 | G21: Carmen Sims | H21: BS | I21: V45 | J21: 1
A22: Chris Connell | B22: BS | C22: V60 | D22: 1 | G22: Casey Faiers | H22: BS | I22: V45 | J22: 1
A23: Christopher Wells | B23: BS | C23: V60 | D23: 1 | G23: Catherine Howard | H23: BS | I23: V45 | J23: 1
A24: Daniel Beazley | B24: BS | C24: V40 | D24: 1 | G24: Cathy Dutta | H24: BS | I24: V55 | J24: 1
A25: David Broughton | B25: BS | C25: V50 | D25: 1 | G25: Catriona Dodsworth | H25: BS | I25: V55 | J25: 1
A26: David McMillan | B26: BS | C26: V60 | D26: 1 | G26: Charlotte Hoole | H26: BS | I26: S | J26: 1
A27: David Reed | B27: BS | C27: V50 | D27: 1 | G27: Charlotte Snowdon | H27: BS | I27: V45 | J27: 2
A28: David Rutter | B28: BS | C28: V50 | D28: 2 | G28: Chloe Boyce | H28: BS | I28: V45 | J28: 1
A29: David Tisdale | B29: BS | C29: V50 | D29: 1 | G29: Claire Boylan | H29: BS | I29: V45 | J29: 1
A30: Dawid Szulc | B30: BS | C30: V40 | D30: 1 | G30: Claire Butler | H30: BS | I30: V55 | J30: 1
A31: Dean Ashley | B31: BS | C31: S | D31: 1 | G31: Claire Fields | H31: BS | I31: V45 | J31: 1
A32: Dean Aylott | B32: BS | C32: S | D32: 1 | G32: Claire Nicholson | H32: BS | I32: S | J32: 1
A33: Dominic Mason | B33: BS | C33: V50 | D33: 1 | G33: Clare Gallagher | H33: BS | I33: V45 | J33: 1
A34: douglas mathers | B34: BS | C34: S | D34: 1 | G34: Clare Masterson | H34: BS | I34: V45 | J34: 1
A35: Dylan Van Wyk | B35: BS | C35: S | D35: 1 | G35: Colette Kerins | H35: BS | I35: V45 | J35: 1
A36: Ernesto Johnson | B36: BS | C36: V60 | D36: 1 | G36: Dani Hill-Welter | H36: BS | I36: V45 | J36: 1
A37: Etienne Faure | B37: BS | C37: V40 | D37: 2 | G37: Danielle Sims | H37: BS | I37: V45 | J37: 1
A38: Feridun Kadir | B38: BS | C38: V60 | D38: 1 | G38: Deborah Bridges | H38: BS | I38: V45 | J38: 1
A39: Gareth Smith | B39: BS | C39: V40 | D39: 1 | G39: Debra Packer | H39: BS | I39: V55 | J39: 1
A40: Garry Stuart | B40: BS | C40: V50 | D40: 1 | G40: Deirdre Walton | H40: BS | I40: V55 | J40: 1
A41: Gary Jones | B41: BS | C41: V50 | D41: 1 | E41: 41 | G41: Denise Davenport | H41: BS | I41: V45 | J41: 1
A42: Gavin Moulton | B42: BS | C42: V50 | D42: 1 | G42: Donna Gilbert | H42: BS | I42: V45 | J42: 1
A43: George Munro | B43: BS | C43: S | D43: 1 | G43: Eilidh Malcolm | H43: BS | I43: S | J43: 1
A44: George Thomas | B44: BS | C44: V70 | D44: 1 | G44: Eleanor Mason | H44: BS | I44: S | J44: 1
A45: Glen Malcolm | B45: BS | C45: V50 | D45: 1 | G45: Eleanor Rodgers | H45: BS | I45: V55 | J45: 1
A46: Gordon Mcleod | B46: BS | C46: S | D46: 1 | E46: 32 | G46: Eleanor Wells | H46: BS | I46: S | J46: 1
A47: Gordon Wilson | B47: BS | C47: V60 | D47: 1 | G47: Eleanor Williams | H47: BS | I47: V55 | J47: 1
A48: Graham O'Malley | B48: BS | C48: V70 | D48: 1 | G48: Elizabeth Bellinger | H48: BS | I48: V45 | J48: 1
A49: Graham Ross | B49: BS | C49: S | D49: 1 | G49: Ellen Brooks | H49: BS | I49: V45 | J49: 1 | K49: 33
A50: Graham Willson | B50: BS | C50: V50 | D50: 1 | G50: Emily Clancey | H50: BS | I50: S | J50: 1
A51: Harry McConnell | B51: BS | C51: S | D51: 1 | G51: Emily Gilder | H51: BS | I51: S | J51: 1
A52: Henry Ward | B52: BS | C52: S | D52: 1 | E52: 18 | G52: Emily Knight | H52: BS | I52: S | J52: 1
A53: Ian Griffiths | B53: BS | C53: V40 | D53: 1 | G53: Emma Cowper | H53: BS | I53: S | J53: 1
A54: Ian McClymont | B54: BS | C54: V70 | D54: 1 | G54: Emma Nixon | H54: BS | I54: V55 | J54: 1
A55: Ian Penson | B55: BS | C55: V60 | D55: 1 | E55: 71 | G55: Emma Rejniak | H55: BS | I55: S | J55: 1
A56: Ian Rodgers | B56: BS | C56: V50 | D56: 1 | G56: Fay Dodgen | H56: BS | I56: V55 | J56: 1
A57: James Delve | B57: BS | C57: V40 | D57: 1 | G57: Fiona Liddell | H57: BS | I57: V55 | J57: 1
A58: James Gurr | B58: BS | C58: S | D58: 1 | G58: Fiona Sutherland | H58: BS | I58: V65 | J58: 1
A59: James Murdoch | B59: BS | C59: S | D59: 1 | G59: Frances Iwaschkin | H59: BS | I59: V45 | J59: 1 | K59: 41
A60: Jamie Smith | B60: BS | C60: V40 | D60: 1 | G60: Francesca Palmer | H60: BS | I60: V45 | J60: 1
A61: Jan Bisschoff | B61: BS | C61: V70 | D61: 1 | G61: Grace Mason | H61: BS | I61: S | J61: 2
A62: Jason Grunwell | B62: BS | C62: S | D62: 1 | G62: Greta Lyons | H62: BS | I62: V55 | J62: 1
A63: Jason Haigh | B63: BS | C63: V50 | D63: 1 | G63: Hannah McIlvenna | H63: BS | I63: V45 | J63: 2
A64: Jason Hasty | B64: BS | C64: V50 | D64: 1 | G64: Hannah Prince | H64: BS | I64: V45 | J64: 1
A65: Jerry Piron | B65: BS | C65: V60 | D65: 1 | G65: Harriet Wyatt | H65: BS | I65: V55 | J65: 1
A66: Jess Melville | B66: BS | C66: V40 | D66: 1 | G66: Hayley Smith | H66: BS | I66: S | J66: 1
A67: Joe Lightfoot | B67: BS | C67: S | D67: 1 | G67: Helen Baucher | H67: BS | I67: V55 | J67: 1
A68: John Appleby | B68: BS | C68: V50 | D68: 1 | G68: Helen Bird | H68: BS | I68: V45 | J68: 1
A69: John Baker | B69: BS | C69: V70 | D69: 1 | G69: Helen Brown | H69: BS | I69: V55 | J69: 1
A70: John Dodsworth | B70: BS | C70: V50 | D70: 1 | G70: Helen Hollingsworth | H70: BS | I70: V45 | J70: 1
A71: John Earley | B71: BS | C71: V50 | D71: 1 | G71: Inese Stan | H71: BS | I71: V45 | J71: 1
A72: John Etherden | B72: BS | C72: V70 | D72: 1 | G72: Iris Man | H72: BS | I72: V45 | J72: 1
A73: John Ivens | B73: BS | C73: V60 | D73: 1 | G73: Jane Malone | H73: BS | I73: V45 | J73: 1
A74: John Kennedy | B74: BS | C74: V50 | D74: 1 | G74: Jane Mansfield | H74: BS | I74: V55 | J74: 1
A75: John Neary | B75: BS | C75: V60 | D75: 1 | G75: Jane Storm | H75: BS | I75: V45 | J75: 1
A76: John Nichol | B76: BS | C76: V50 | D76: 1 | G76: Janet Howes | H76: BS | I76: V65 | J76: 1
A77: John Wright | B77: BS | C77: V40 | D77: 1 | G77: Janna Jenkins | H77: BS | I77: V45 | J77: 1
A78: Jonathan Derrick | B78: BS | C78: S | D78: 1 | G78: Jen Burke | H78: BS | I78: V35 | J78: 1 | K78: 31
A79: Jonathan Haynes | B79: BS | C79: V60 | D79: 1 | G79: Jennifer Frewin | H79: BS | I79: V45 | J79: 1
A80: Jonathan Round | B80: BS | C80: S | D80: 1 | G80: Jennifer Payne | H80: BS | I80: V45 | J80: 1
A81: Justin Patten | B81: BS | C81: V50 | D81: 1 | G81: Jenny Brayshaw | H81: BS | I81: V65 | J81: 1
A82: Keir Mann | B82: BS | C82: V40 | D82: 1 | G82: Jenny Latham | H82: BS | I82: V45 | J82: 1
A83: Keith Duncan | B83: BS | C83: V50 | D83: 1 | G83: Jess Watts | H83: BS | I83: S | J83: 1
A84: Keith House | B84: BS | C84: V60 | D84: 1 | G84: Jilly Palmer | H84: BS | I84: V55 | J84: 1 | K84: 54
A85: Kevin Gillespie | B85: BS | C85: V50 | D85: 1 | G85: Joanna Jurd | H85: BS | I85: V45 | J85: 1
A86: Kevin Marshall | B86: BS | C86: V50 | D86: 2 | G86: Joanna Kirk | H86: BS | I86: V55 | J86: 1
A87: Kevin Mully | B87: BS | C87: V40 | D87: 1 | G87: Joanne Hume | H87: BS | I87: V45 | J87: 1
A88: Laurence Foote | B88: BS | C88: V40 | D88: 1 | G88: Joelle Carroll-Fitch | H88: BS | I88: S | J88: 1
A89: Laurence Lee | B89: BS | C89: V50 | D89: 1 | G89: Jos Ashpole | H89: BS | I89: V45 | J89: 1 | K89: 47
A90: Lee Boswell | B90: BS | C90: S | D90: 1 | G90: Julia Fonnereau | H90: BS | I90: V55 | J90: 1
A91: Lee Kirby | B91: BS | C91: V40 | D91: 1 | G91: Julie Pagram | H91: BS | I91: V45 | J91: 1
A92: Lee Pickering | B92: BS | C92: V50 | D92: 1 | G92: Julie Rogers | H92: BS | I92: V55 | J92: 1
A93: Lee Vass | B93: BS | C93: V40 | D93: 1 | E93: 57 | G93: Justine Hiluk | H93: BS | I93: V45 | J93: 1
A94: Les Thurston | B94: BS | C94: V70 | D94: 2 | G94: Kate Swann | H94: BS | I94: V55 | J94: 1
A95: Lewis Coomber | B95: BS | C95: S | D95: 1 | G95: Katy Bellerby | H95: BS | I95: V55 | J95: 1
A96: Liam Dillon | B96: BS | C96: V50 | D96: 1 | G96: Kay Piper | H96: BS | I96: V45 | J96: 1
A97: Luke Shepherd | B97: BS | C97: S | D97: 1 | G97: Kelly Edwards | H97: BS | I97: V45 | J97: 1
A98: Malcolm Dewhurst | B98: BS | C98: V60 | D98: 1 | G98: Kirsty McGuire | H98: BS | I98: S | J98: 2
A99: Malcolm Golding | B99: BS | C99: V50 | D99: 1 | G99: Kirsty Reid | H99: BS | I99: V45 | J99: 1
A100: Marcus Collings | B100: BS | C100: V40 | D100: 1 | G100: Lara Wheeldon | H100: BS | I100: V45 | J100: 1 | K100: 35
A101: Mark Booker | B101: BS | C101: V50 | D101: 1 | G101: Laura Hollis | H101: BS | I101: V45 | J101: 1
A102: Mark Bowman | B102: BS | C102: V60 | D102: 1 | G102: Laura Loveday | H102: BS | I102: V45 | J102: 1
A103: Mark Burkett | B103: BS | C103: V50 | D103: 1 | G103: Laura Melling | H103: BS | I103: V45 | J103: 1
A104: Mark Goodger | B104: BS | C104: V40 | D104: 1 | G104: Lily Murray | H104: BS | I104: S | J104: 1
A105: Mark Lawrence | B105: BS | C105: S | D105: 1 | E105: 30 | G105: Lindsey Ireland | H105: BS | I105: S | J105: 1
A106: Mark Palmer | B106: BS | C106: V50 | D106: 1 | G106: Lorraine Button | H106: BS | I106: V55 | J106: 1
A107: Mark Spiller | B107: BS | C107: S | D107: 1 | G107: Lorraine Evans | H107: BS | I107: V55 | J107: 1
A108: Mark Wilds | B108: BS | C108: V50 | D108: 1 | G108: Louise Gardner | H108: BS | I108: V45 | J108: 1
A109: Martin Brooks | B109: BS | C109: S | D109: 1 | G109: Lucy Northedge | H109: BS | I109: V45 | J109: 1
A110: Martin Howe | B110: BS | C110: V60 | D110: 1 | E110: 68 | G110: Lucy Robinson | H110: BS | I110: V45 | J110: 1
A111: Martin Moulton | B111: BS | C111: V50 | D111: 1 | G111: Marie Hockley | H111: BS | I111: V55 | J111: 1
A112: Martin Pettitt | B112: BS | C112: V60 | D112: 1 | G112: Mary Amos | H112: BS | I112: V65 | J112: 1
A113: Matt McRandal | B113: BS | C113: S | D113: 1 | G113: Megan Field | H113: BS | I113: S | J113: 1
A114: Matthew Coaker | B114: BS | C114: V40 | D114: 1 | G114: Megan Harris | H114: BS | I114: V45 | J114: 1
A115: Matthew Cole | B115: BS | C115: V40 | D115: 1 | G115: Meryl Herniman | H115: BS | I115: V45 | J115: 1
A116: Matthew Ironside | B116: BS | C116: V40 | D116: 1 | E116: 16 | G116: Michelle Bignall | H116: BS | I116: V55 | J116: 1
A117: Matthieu Militon | B117: BS | C117: V50 | D117: 1 | G117: Michelle Hasty | H117: BS | I117: V55 | J117: 1
A118: Melvyn Grimwood | B118: BS | C118: V40 | D118: 1 | G118: Monika Simonaityte | H118: BS | I118: S | J118: 1
A119: Michael Connolly | B119: BS | C119: V60 | D119: 1 | G119: Natalie Taylor | H119: BS | I119: V45 | J119: 2
A120: Michael Moss | B120: BS | C120: S | D120: 1 | G120: Natasha Spiller | H120: BS | I120: V45 | J120: 1 | K120: 55
A121: Michael Silvester | B121: BS | C121: V40 | D121: 1 | G121: Niki Champion | H121: BS | I121: V45 | J121: 1
A122: Mike Grant | B122: BS | C122: V60 | D122: 1 | G122: Noreen Milkowski | H122: BS | I122: V55 | J122: 1
A123: Neal Groves | B123: BS | C123: V40 | D123: 1 | G123: Oana Rosu | H123: BS | I123: S | J123: 1
A124: NEIL GAGE | B124: BS | C124: V40 | D124: 1 | E124: 46 | G124: Patricia Poole | H124: BS | I124: V55 | J124: 1 | K124: 34
A125: Nicholas Miller | B125: BS | C125: V40 | D125: 1 | G125: Paula Beades | H125: BS | I125: V45 | J125: 1
A126: Nick Smith | B126: BS | C126: V40 | D126: 1 | G126: Paulina Surblyte | H126: BS | I126: S | J126: 1
A127: Nick Yeadon | B127: BS | C127: V50 | D127: 1 | G127: Peijie Zhu | H127: BS | I127: V45 | J127: 1 | K127: 27
A128: Oliver Morrison | B128: BS | C128: S | D128: 1 | G128: Phoenyx Harritt | H128: BS | I128: V45 | J128: 1
A129: Ollie Thorne | B129: BS | C129: S | D129: 1 | G129: Rachael Fletcher | H129: BS | I129: V45 | J129: 1
A130: Owen Bailey | B130: BS | C130: V40 | D130: 1 | G130: Rachel Rissbrook | H130: BS | I130: V55 | J130: 2
A131: Paul Andrew | B131: BS | C131: V40 | D131: 1 | G131: Rachel Turvey | H131: BS | I131: V45 | J131: 1
A132: Paul Dearlove | B132: BS | C132: V50 | D132: 1 | E132: 63 | G132: Rebecca Dolan | H132: BS | I132: S | J132: 1
A133: Paul Kerins | B133: BS | C133: V60 | D133: 1 | G133: Rebecca Thorp | H133: BS | I133: V45 | J133: 1
A134: Paul Malone | B134: BS | C134: V50 | D134: 1 | G134: Rebecca Turner | H134: BS | I134: S | J134: 1
A135: Paul Morrison | B135: BS | C135: V40 | D135: 1 | G135: Rebecca Vale | H135: BS | I135: S | J135: 1
A136: Paul Newton | B136: BS | C136: V40 | D136: 1 | G136: Renatka Greenwood | H136: BS | I136: V45 | J136: 1
A137: Paul Scofield | B137: BS | C137: V40 | D137: 1 | G137: Robinne Colby | H137: BS | I137: V55 | J137: 1
A138: Paul Walker | B138: BS | C138: V50 | D138: 1 | G138: Rosely Cabus | H138: BS | I138: S | J138: 1
A139: Pawel Sajdak | B139: BS | C139: S | D139: 1 | G139: Rosemary Nugent | H139: BS | I139: V65 | J139: 1
A140: Pekka Aalto | B140: BS | C140: V40 | D140: 1 | G140: Sabrina Nulty | H140: BS | I140: V45 | J140: 1
A141: Peter Beatty | B141: BS | C141: V60 | D141: 1 | G141: Sally Bromham | H141: BS | I141: V45 | J141: 1
A142: Peter Jurd | B142: BS | C142: V40 | D142: 1 | G142: Sally House | H142: BS | I142: V55 | J142: 1
A143: Peter Rowe | B143: BS | C143: V50 | D143: 1 | G143: Sally Powell | H143: BS | I143: V45 | J143: 1
A144: Peter Wenzel | B144: BS | C144: V70 | D144: 1 | G144: Sanchia Aronberg | H144: BS | I144: V45 | J144: 1
A145: Peter Winfield | B145: BS | C145: V60 | D145: 1 | G145: sarah crooks | H145: BS | I145: V45 | J145: 1
A146: Philip Chaplin | B146: BS | C146: V50 | D146: 1 | G146: Sarah Foot | H146: BS | I146: V45 | J146: 1
A147: Phillip Mansfield | B147: BS | C147: V50 | D147: 1 | G147: Sarah Godfrey | H147: BS | I147: V45 | J147: 1
A148: Pierre Njeim | B148: BS | C148: S | D148: 1 | G148: Sarah Nagle | H148: BS | I148: V45 | J148: 1
A149: Quentin Downes | B149: BS | C149: V40 | D149: 1 | G149: Sarah Smith | H149: BS | I149: V45 | J149: 1
A150: Richard Eddershaw | B150: BS | C150: V60 | D150: 1 | G150: Sarah Webber | H150: BS | I150: V55 | J150: 1
A151: Richard Foweraker | B151: BS | C151: V40 | D151: 1 | E151: 49 | G151: Selina Walkley | H151: BS | I151: V45 | J151: 1
A152: Robert Thorpe | B152: BS | C152: V50 | D152: 1 | E152: 14 | G152: Serena Beresford | H152: BS | I152: V45 | J152: 1
A153: Robin Newman | B153: BS | C153: V50 | D153: 1 | G153: Sharon Davall | H153: BS | I153: V45 | J153: 1
A154: Roger Berry | B154: BS | C154: V40 | D154: 1 | G154: Sharon Neary | H154: BS | I154: V55 | J154: 1
A155: Rohit Dayama | B155: BS | C155: V40 | D155: 1 | E155: 73 | G155: Sharon Rootkin | H155: BS | I155: V55 | J155: 1
A156: Sam Greatrex | B156: BS | C156: V40 | D156: 1 | G156: Shirley Ball | H156: BS | I156: V65 | J156: 1
A157: Samuel Brennan | B157: BS | C157: S | D157: 1 | G157: Sophie Barc | H157: BS | I157: V45 | J157: 1 | K157: 6
A158: Samuel Pedley | B158: BS | C158: S | D158: 1 | E158: 2 | G158: Stefanie Azuga | H158: BS | I158: V45 | J158: 1
A159: Shane Tomlinson | B159: BS | C159: V40 | D159: 1 | G159: Stefanie Loft | H159: BS | I159: V45 | J159: 1
A160: Simon Dewhurst | B160: BS | C160: S | D160: 1 | G160: Susan Anderson | H160: BS | I160: V45 | J160: 1
A161: Simon Hoy | B161: BS | C161: V40 | D161: 1 | G161: Susan Judge | H161: BS | I161: V45 | J161: 1
A162: Simon Judkins | B162: BS | C162: V40 | D162: 1 | G162: Susan Tidman | H162: BS | I162: V45 | J162: 1
A163: Simon Treadwell | B163: BS | C163: S | D163: 1 | G163: Suzanne White | H163: BS | I163: V55 | J163: 1
A164: Stephen Ball | B164: BS | C164: V70 | D164: 1 | G164: Theresa Burke | H164: BS | I164: V65 | J164: 1
A165: Stephen Berry | B165: BS | C165: V40 | D165: 1 | G165: Tory Foot | H165: BS | I165: S | J165: 1
A166: Stephen Bullough | B166: BS | C166: S | D166: 1 | G166: Trudy Lynch | H166: BS | I166: V45 | J166: 1
A167: Stephen Chimunye | B167: BS | C167: V50 | D167: 1 | G167: Vicky Simpson | H167: BS | I167: V45 | J167: 1
A168: Stephen Crafford | B168: BS | C168: V50 | D168: 1 | G168: Victoria Cutler | H168: BS | I168: V35 | J168: 1
A169: Stephen Wilkes | B169: BS | C169: V50 | D169: 1 | G169: Victoria Maddox | H169: BS | I169: V45 | J169: 1
A170: Steven Vale | B170: BS | C170: V50 | D170: 1 | G170: Vivienne Law | H170: BS | I170: V55 | J170: 1
A171: Stuart Davenport | B171: BS | C171: V50 | D171: 1 | G171: Zoë Burnet | H171: BS | I171: V45 | J171: 2
A172: Stuart Longley | B172: BS | C172: V40 | D172: 1 | E172: 53 | G172: Name | H172: Club | I172: Age Category | J172: Claim
A173: Terry Robinson | B173: BS | C173: V70 | D173: 1 | G173: Alex Soady | H173: HRC | I173: S | J173: 1
A174: Themi Petridis | B174: BS | C174: V40 | D174: 1 | G174: Alison Bull | H174: HRC | I174: V55 | J174: 1
A175: Thomas Castle | B175: BS | C175: V40 | D175: 1 | G175: Alison Wilkinson | H175: HRC | I175: V55 | J175: 1 | K175: 38
A176: Thomas Wilton | B176: BS | C176: S | D176: 1 | G176: Allison Beeton | H176: HRC | I176: V55 | J176: 1 | K176: 13
A177: Tim Kelly | B177: BS | C177: V60 | D177: 1 | G177: Amy-Louise Ironmonger | H177: HRC | I177: S | J177: 1
A178: Tom Raby | B178: BS | C178: S | D178: 2 | G178: Angela Cook | H178: HRC | I178: V55 | J178: 1
A179: Tony Chada | B179: BS | C179: V50 | D179: 1 | G179: Angela Mariconda | H179: HRC | I179: V55 | J179: 1
A180: Tony Dawkins | B180: BS | C180: V60 | D180: 2 | G180: Anna Robey | H180: HRC | I180: V35 | J180: 1 | K180: 37
A181: Tony Gaunt | B181: BS | C181: V70 | D181: 1 | G181: Antonella Crudgington | H181: HRC | I181: V45 | J181: 1
A182: Wayne Greet | B182: BS | C182: V50 | D182: 1 | G182: Bethany Drake | H182: HRC | I182: S | J182: 1
A183: Will Bell | B183: BS | C183: S | D183: 1 | G183: Bobbie Muschamp | H183: HRC | I183: S | J183: 1
A184: Will Hunt Vincent | B184: BS | C184: V50 | D184: 1 | G184: Brady Ramsay | H184: HRC | I184: V45 | J184: 1
A185: Will Morton | B185: BS | C185: S | D185: 2 | G185: Carinne Jay | H185: HRC | I185: V55 | J185: 1
A186: William Gilder | B186: BS | C186: S | D186: 1 | G186: Catherine Ridge | H186: HRC | I186: V35 | J186: 1 | K186: 9
A187: Name | B187: Club | C187: Age Category | D187: Claim | G187: Charleen Tillotson | H187: HRC | I187: V35 | J187: 1
A188: Adam Galloway | B188: HRC | C188: S | D188: 1 | G188: Charlotte Berndes | H188: HRC | I188: S | J188: 1
A189: Alan Chatterton | B189: HRC | C189: S | D189: 1 | G189: Christina Minter | H189: HRC | I189: V45 | J189: 1
A190: Alan Cootes | B190: HRC | C190: V60 | D190: 1 | E190: 70 | G190: Claire Carter | H190: HRC | I190: V45 | J190: 1
A191: Alan Godbold | B191: HRC | C191: V50 | D191: 1 | G191: Claire Clark | H191: HRC | I191: V35 | J191: 1
A192: Alan Knightley | B192: HRC | C192: V50 | D192: 1 | G192: Claire Johnson | H192: HRC | I192: V45 | J192: 1
A193: Alan Wellbelove | B193: HRC | C193: V60 | D193: 1 | G193: Claire Morris | H193: HRC | I193: V35 | J193: 1 | K193: 44
A194: Alexis Ellington | B194: HRC | C194: V50 | D194: 1 | G194: Danielle Trouve | H194: HRC | I194: S | J194: 1
A195: Andrew Kinney | B195: HRC | C195: V50 | D195: 1 | G195: Dawn Elford | H195: HRC | I195: V45 | J195: 1
A196: Andrew Smith | B196: HRC | C196: V50 | D196: 1 | G196: Debbie Barry | H196: HRC | I196: V55 | J196: 1
A197: Andrew Terrell | B197: HRC | C197: V40 | D197: 1 | G197: Debbie Mead | H197: HRC | I197: V45 | J197: 1
A198: Art Tonge | B198: HRC | C198: S | D198: 1 | G198: Deborah Pomphret | H198: HRC | I198: V55 | J198: 1
A199: Ben Adams | B199: HRC | C199: V40 | D199: 1 | G199: Deborah Read | H199: HRC | I199: V35 | J199: 1 | K199: 56
A200: Ben Fowler | B200: HRC | C200: V40 | D200: 1 | G200: Dionne Jones | H200: HRC | I200: V45 | J200: 1
... 327 more rows

Sheet Results
B1: Mens Score | J1: Mens Score
B2: Club | C2: Race 1 | D2: Race 2 | E2: Race 3 | F2: Race 4 | G2: Total | J2: Club | K2: Race 1 | L2: Race 2 | M2: Race 3 | N2: Race 4 | O2: Total
B3: =Control!AD3 -> Ware Joggers | C3: 53 | D3: 47 | E3: 51 | F3: 49 | G3: =SUM(C3:F3) -> 200 | J3: Ware Joggers | K3: =IF(ISNA(RANK(C3,C$3:C$6)),0,RANK(C3,C$3:C$6)) -> 4 | L3: 4 | M3: 4 | N3: =IF(ISNA(RANK(F3,F$3:F$6)),0,RANK(F3,F$3:F$6)) -> 4 | O3: =SUM(K3:N3) -> 16
B4: =Control!AD4 -> Bishop's Stortford | C4: 131 | D4: 162 | E4: 186 | F4: 197 | G4: =SUM(C4:F4) -> 676 | J4: Bishop's Stortford | K4: 3 | L4: 3 | M4: 3 | N4: =IF(ISNA(RANK(F4,F$3:F$6)),0,RANK(F4,F$3:F$6)) -> 3 | O4: =SUM(K4:N4) -> 12
B5: =Control!AD5 -> Saffron Striders | C5: 321 | D5: 340 | E5: 210 | F5: 280 | G5: =SUM(C5:F5) -> 1151 | J5: Saffron Striders | K5: 1 | L5: 1 | M5: 2 | N5: =IF(ISNA(RANK(F5,F$3:F$6)),0,RANK(F5,F$3:F$6)) -> 1 | O5: 5
B6: =Control!AD6 -> Harlow Running & Tri Club | C6: 171 | D6: 196 | E6: 235 | F6: 224 | G6: =SUM(C6:F6) -> 826 | J6: Harlow Running & Tri Club | K6: 2 | L6: 2 | M6: 1 | N6: =IF(ISNA(RANK(F6,F$3:F$6)),0,RANK(F6,F$3:F$6)) -> 2 | O6: 7
D7: 824 | E7: 840 | F7: 680
B14: Ladies Score | J14: Ladies Score
B15: Club | C15: Race 1 | D15: Race 2 | E15: Race 3 | F15: Race 4 | G15: Total | J15: Club | K15: Race 1 | L15: Race 2 | M15: Race 3 | N15: Race 4 | O15: Total
B16: =Control!AD16 -> Ware Joggers | C16: 78 | D16: 83 | E16: 90 | F16: 60 | G16: =SUM(C16:F16) -> 311 | J16: Ware Joggers | K16: =IF(ISNA(RANK(C16,C$16:C$19)),0,RANK(C16,C$16:C$19)) -> 4 | L16: =IF(ISNA(RANK(D16,D$16:D$19)),0,RANK(D16,D$16:D$19)) -> 4 | M16: 4 | N16: =IF(ISNA(RANK(F16,F$16:F$19)),0,RANK(F16,F$16:F$19)) -> 4 | O16: =SUM(K16:N16) -> 16
B17: =Control!AD17 -> Bishop's Stortford | C17: 105 | D17: 169 | E17: 91 | F17: 254 | G17: =SUM(C17:F17) -> 619 | J17: Bishop's Stortford | K17: =IF(ISNA(RANK(C17,C$16:C$19)),0,RANK(C17,C$16:C$19)) -> 3 | L17: 2 | M17: 3 | N17: =IF(ISNA(RANK(F17,F$16:F$19)),0,RANK(F17,F$16:F$19)) -> 1 | O17: 9
B18: =Control!AD18 -> Saffron Striders | C18: 245 | D18: 386 | E18: 224 | F18: 250 | G18: =SUM(C18:F18) -> 1105 | J18: Saffron Striders | K18: 1 | L18: 1 | M18: 1 | N18: =IF(ISNA(RANK(F18,F$16:F$19)),0,RANK(F18,F$16:F$19)) -> 2 | O18: 5
B19: =Control!AD19 -> Harlow Running & Tri Club | C19: 166 | D19: 111 | E19: 179 | F19: 114 | G19: =SUM(C19:F19) -> 570 | J19: Harlow Running & Tri Club | K19: 2 | L19: 3 | M19: 2 | N19: =IF(ISNA(RANK(F19,F$16:F$19)),0,RANK(F19,F$16:F$19)) -> 3 | O19: 10
D20: 520 | E20: 616 | F20: 544
B27: Overall Score | J27: Overall Score
B28: Club | C28: Race 1 | D28: Race 2 | E28: Race 3 | F28: Race 4 | G28: Total | J28: Club | K28: Race 1 | L28: Race 2 | M28: Race 3 | N28: Race 4 | O28: Total
B29: =B16 -> Ware Joggers | C29: =C3+C16 -> 131 | D29: 130 | E29: 141 | F29: =F3+F16 -> 109 | G29: =SUM(C29:F29) -> 511 | J29: Ware Joggers | K29: =IF(ISNA(RANK(C29,C$29:C$32)),0,RANK(C29,C$29:C$32)) -> 4 | L29: =IF(ISNA(RANK(D29,D$29:D$32)),0,RANK(D29,D$29:D$32)) -> 4 | M29: 4 | N29: =IF(F29=0,0,RANK(F29,F$29:F$32)) -> 4 | O29: =SUM(K29:N29) -> 16
B30: =B17 -> Bishop's Stortford | C30: 236 | D30: 331 | E30: 277 | F30: =F4+F17 -> 451 | G30: 1295 | J30: Bishop's Stortford | K30: =IF(ISNA(RANK(C30,C$29:C$32)),0,RANK(C30,C$29:C$32)) -> 3 | L30: 2 | M30: 3 | N30: =IF(F30=0,0,RANK(F30,F$29:F$32)) -> 2 | O30: 10
B31: Saffron Striders | C31: 566 | D31: 726 | E31: 434 | F31: =F5+F18 -> 530 | G31: 2256 | J31: Saffron Striders | K31: 1 | L31: 1 | M31: 1 | N31: 1 | O31: 4
B32: Harlow Running & Tri Club | C32: 337 | D32: 307 | E32: 414 | F32: =F6+F19 -> 338 | G32: 1396 | J32: Harlow Running & Tri Club | K32: 2 | L32: 3 | M32: 2 | N32: 3 | O32: 10

Sheet Scores-Men (hidden)

Sheet Scores-ladies (hidden)

Sheet Individual Series Winners
A1: Mens
A2: Michael Waddington | B2: WJ | C2: S
A3: Andrew Mynott | B3: WJ | C3: V40
A4: Rob Lowe | B4: HRC | C4: V50
A5: Ian MacDougall | B5: SS | C5: V60
A6: Colin Naman | B6: WJ | C6: V70
A8: Ladies
A9: Lindsey Ireland | B9: BS | C9: S
A10: Katy Woodward | B10: WJ | C10: V35
A11: Maraianne Mitchell | B11: WJ | C11: V45
A12: Cate Campany | B12: WJ | C12: V55
A13: Pamela Wilson | B13: WJ | C13: V65

Sheet Race 1-Men
A1: Overall | G1: Ware Joggers | N1: Bishop's Stortford | U1: Saffron Striders | AB1: Harlow Running & Tri Club
A2: Name | B2: Club | C2: Age Category | D2: Claim | E2: Position | G2: Name | H2: Club | I2: Age Category | J2: Claim | K2: Position | N2: Name | O2: Club | P2: Age Category | Q2: Claim | R2: Position | U2: Name | V2: Club | W2: Age Category | X2: Claim | Y2: Position | AB2: Name | AC2: Club | AD2: Age Category | AE2: Claim | AF2: Position | AI2: Name | AJ2: Club | AK2: Age Category | AL2: Claim | AM2: Position
A3: Michael Waddington | B3: WJ | C3: S | D3: 1 | E3: 1 | G3: Michael Waddington | H3: WJ | I3: S | J3: 1 | K3: 1 | L3: 1 | N3: Mark Spiller | O3: BS | P3: S | Q3: 1 | R3: 4 | S3: 4 | U3: David Raimondo | V3: SS | W3: V40 | X3: 1 | Y3: 7 | Z3: 7 | AB3: Rob Lowe | AC3: HRC | AD3: V50 | AE3: 1 | AF3: 3 | AG3: 3
A4: Andrew Mynott | B4: WJ | C4: V40 | D4: 1 | E4: 2 | G4: Andrew Mynott | H4: WJ | I4: V40 | J4: 1 | K4: 2 | L4: 2 | N4: Robert Thorpe | O4: BS | P4: V50 | Q4: 1 | R4: 13 | S4: 13 | U4: Tim McMahon | V4: SS | W4: V40 | X4: 1 | Y4: 23 | Z4: 23 | AB4: Martin Westley | AC4: HRC | AD4: S | AE4: 1 | AF4: 11 | AG4: 11
A5: Rob Lowe | B5: HRC | C5: V50 | D5: 1 | E5: 3 | G5: Kevin Francis | H5: WJ | I5: V40 | J5: 1 | K5: 5 | L5: 5 | N5: Stephen Wilkes | O5: BS | P5: V50 | Q5: 1 | R5: 14 | S5: 14 | U5: Ian MacDougall | V5: SS | W5: V60 | X5: 1 | Y5: 28 | Z5: 28 | AB5: Martyn Coulter | AC5: HRC | AD5: S | AE5: 1 | AF5: 18 | AG5: 18
A6: Mark Spiller | B6: BS | C6: S | D6: 1 | E6: 4 | G6: Will Breese | H6: WJ | I6: S | J6: 1 | K6: 6 | L6: 6 | N6: Keir Mann | O6: BS | P6: V40 | Q6: 1 | R6: 15 | S6: 15 | U6: Marco Arcidiacono | V6: SS | W6: V50 | X6: 1 | Y6: 40 | Z6: 40 | AB6: Colin Baker | AC6: HRC | AD6: V40 | AE6: 1 | AF6: 20 | AG6: 20
A7: Kevin Francis | B7: WJ | C7: V40 | D7: 1 | E7: 5 | G7: Tom Quinn | H7: WJ | I7: S | J7: 1 | K7: 8 | L7: 8 | N7: Matthew Ironside | O7: BS | P7: V40 | Q7: 1 | R7: 16 | S7: 16 | U7: Iain Cumming | V7: SS | W7: S | X7: 1 | Y7: 44 | Z7: 44 | AB7: Ryan Smith | AC7: HRC | AD7: V40 | AE7: 1 | AF7: 22 | AG7: 22
A8: Will Breese | B8: WJ | C8: S | D8: 1 | E8: 6 | G8: Matt Brown | H8: WJ | I8: V40 | J8: 1 | K8: 9 | L8: 9 | N8: Peter Jurd | O8: BS | P8: V40 | Q8: 1 | R8: 17 | S8: 17 | U8: Toby Lumsden | V8: SS | W8: V60 | X8: 1 | Y8: 58 | Z8: 58 | AB8: Christian Golebiowski | AC8: HRC | AD8: S | AE8: 1 | AF8: 31 | AG8: 31
A9: David Raimondo | B9: SS | C9: V40 | D9: 1 | E9: 7 | G9: Kevin Sambridge | H9: WJ | I9: V50 | J9: 1 | K9: 10 | L9: 10 | N9: Matthew Cole | O9: BS | P9: V40 | Q9: 1 | R9: 25 | S9: 25 | U9: Nigel Poad | V9: SS | W9: V50 | X9: 1 | Y9: 59 | Z9: 59 | AB9: Benjamin Usher | AC9: HRC | AD9: S | AE9: 1 | AF9: 32 | AG9: 32
A10: Tom Quinn | B10: WJ | C10: S | D10: 1 | E10: 8 | G10: Mark Ford | H10: WJ | I10: S | J10: 1 | K10: 12 | L10: 12 | N10: Nick Smith | O10: BS | P10: V40 | Q10: 1 | R10: 27 | S10: 27 | U10: Neil Halls | V10: SS | W10: V50 | X10: 1 | Y10: 62 | Z10: 62 | AB10: Andrew Terrell | AC10: HRC | AD10: V40 | AE10: 1 | AF10: 34 | AG10: 34
A11: Matt Brown | B11: WJ | C11: V40 | D11: 1 | E11: 9 | G11: Neil Bull | H11: WJ | I11: V40 | J11: 1 | K11: 19 | N11: Adam Chapman | O11: BS | P11: V40 | Q11: 1 | R11: 33 | U11: John James | V11: SS | W11: V60 | X11: 1 | Y11: 64 | AB11: Thomas Beales | AC11: HRC | AD11: V40 | AE11: 1 | AF11: 37
A12: Kevin Sambridge | B12: WJ | C12: V50 | D12: 1 | E12: 10 | G12: Garth Morris | H12: WJ | I12: V60 | J12: 1 | K12: 21 | N12: Dominic Mason | O12: BS | P12: V50 | Q12: 1 | R12: 35 | U12: Richard Balarkas | V12: SS | W12: V60 | X12: 1 | Y12: 67 | AB12: Phil Middleton | AC12: HRC | AD12: V40 | AE12: 1 | AF12: 41
A13: Martin Westley | B13: HRC | C13: S | D13: 1 | E13: 11 | G13: Andrew Kavanagh | H13: WJ | I13: S | J13: 1 | K13: 24 | N13: Joe Lightfoot | O13: BS | P13: S | Q13: 1 | R13: 56 | U13: Arthur Oliva | V13: SS | W13: V60 | X13: 1 | Y13: 68 | AB13: Jermaine Shand | AC13: HRC | AD13: S | AE13: 1 | AF13: 43
A14: Mark Ford | B14: WJ | C14: S | D14: 1 | E14: 12 | G14: Nick Kenyon-Muir | H14: WJ | I14: V50 | J14: 1 | K14: 26 | N14: NEIL GAGE | O14: BS | P14: V40 | Q14: 1 | R14: 57 | U14: Alistair Cooke | V14: SS | W14: V40 | X14: 1 | Y14: 78 | AB14: Bradley Power | AC14: HRC | AD14: S | AE14: 1 | AF14: 45
A15: Robert Thorpe | B15: BS | C15: V50 | D15: 1 | E15: 13 | G15: Jamie Higgs | H15: WJ | I15: V40 | J15: 1 | K15: 29 | N15: Matthieu Militon | O15: BS | P15: V50 | Q15: 1 | R15: 60 | AB15: Jon Steadman | AC15: HRC | AD15: V50 | AE15: 1 | AF15: 47
A16: Stephen Wilkes | B16: BS | C16: V50 | D16: 1 | E16: 14 | G16: Stefan Gauntlett | H16: WJ | I16: S | J16: 1 | K16: 30 | N16: Richard Foweraker | O16: BS | P16: V40 | Q16: 1 | R16: 61 | AB16: James Catton | AC16: HRC | AD16: S | AE16: 1 | AF16: 48
A17: Keir Mann | B17: BS | C17: V40 | D17: 1 | E17: 15 | G17: Russell Cook | H17: WJ | I17: S | J17: 1 | K17: 36 | N17: Chris Chew | O17: BS | P17: V50 | Q17: 1 | R17: 63 | AB17: Lewis Goodwin | AC17: HRC | AD17: S | AE17: 1 | AF17: 49
A18: Matthew Ironside | B18: BS | C18: V40 | D18: 1 | E18: 16 | G18: Mark Sanz | H18: WJ | I18: V50 | J18: 1 | K18: 38 | N18: John Kennedy | O18: BS | P18: V50 | Q18: 1 | R18: 66 | AB18: Lee Webber | AC18: HRC | AD18: V40 | AE18: 1 | AF18: 50
A19: Peter Jurd | B19: BS | C19: V40 | D19: 1 | E19: 17 | G19: Mikey Wilce | H19: WJ | I19: S | J19: 1 | K19: 39 | N19: Jamie Smith | O19: BS | P19: V40 | Q19: 1 | R19: 69 | AB19: Marc Witham | AC19: HRC | AD19: V40 | AE19: 1 | AF19: 52
A20: Martyn Coulter | B20: HRC | C20: S | D20: 1 | E20: 18 | G20: Adam Watson | H20: WJ | I20: V40 | J20: 1 | K20: 42 | N20: Paul Dearlove | O20: BS | P20: V50 | Q20: 1 | R20: 72 | AB20: Keith Streeter | AC20: HRC | AD20: V50 | AE20: 1 | AF20: 53
A21: Neil Bull | B21: WJ | C21: V40 | D21: 1 | E21: 19 | G21: Alan Taylor | H21: WJ | I21: V50 | J21: 1 | K21: 46 | N21: Martin Howe | O21: BS | P21: V60 | Q21: 1 | R21: 74 | AB21: Jason Fox | AC21: HRC | AD21: V50 | AE21: 1 | AF21: 54
A22: Colin Baker | B22: HRC | C22: V40 | D22: 1 | E22: 20 | G22: Peter Baker | H22: WJ | I22: V60 | J22: 1 | K22: 51 | N22: Lee Vass | O22: BS | P22: V40 | Q22: 1 | R22: 75 | AB22: Miguel Luque | AC22: HRC | AD22: V50 | AE22: 1 | AF22: 65
A23: Garth Morris | B23: WJ | C23: V60 | D23: 1 | E23: 21 | G23: Jonathan Hall | H23: WJ | I23: V40 | J23: 1 | K23: 55 | N23: Lee Pickering | O23: BS | P23: V50 | Q23: 1 | R23: 82 | AB23: John Bull | AC23: HRC | AD23: V50 | AE23: 1 | AF23: 70
A24: Ryan Smith | B24: HRC | C24: V40 | D24: 1 | E24: 22 | G24: Simon Joyce | H24: WJ | I24: V50 | J24: 1 | K24: 76 | N24: Ian Penson | O24: BS | P24: V60 | Q24: 1 | R24: 86 | AB24: Gary Mead | AC24: HRC | AD24: V50 | AE24: 1 | AF24: 71
A25: Tim McMahon | B25: SS | C25: V40 | D25: 1 | E25: 23 | G25: Clive Smith | H25: WJ | I25: V60 | J25: 1 | K25: 79 | AB25: John Tennant | AC25: HRC | AD25: V70 | AE25: 1 | AF25: 73
A26: Andrew Kavanagh | B26: WJ | C26: S | D26: 1 | E26: 24 | G26: Phillip Barnard | H26: WJ | I26: V60 | J26: 1 | K26: 80 | AB26: Alan Cootes | AC26: HRC | AD26: V60 | AE26: 1 | AF26: 77
A27: Matthew Cole | B27: BS | C27: V40 | D27: 1 | E27: 25 | G27: Roger Partridge | H27: WJ | I27: V60 | J27: 1 | K27: 89 | AB27: Pasquale Pellecchia | AC27: HRC | AD27: V70 | AE27: 1 | AF27: 81
A28: Nick Kenyon-Muir | B28: WJ | C28: V50 | D28: 1 | E28: 26 | G28: Colin Naman | H28: WJ | I28: V70 | J28: 1 | K28: 90 | AB28: Tj Rowlands | AC28: HRC | AD28: V40 | AE28: 1 | AF28: 83
A29: Nick Smith | B29: BS | C29: V40 | D29: 1 | E29: 27 | AB29: Frankie Forsyth | AC29: HRC | AD29: S | AE29: 1 | AF29: 84
A30: Ian MacDougall | B30: SS | C30: V60 | D30: 1 | E30: 28 | AB30: Michael Robey | AC30: HRC | AD30: V40 | AE30: 1 | AF30: 85
A31: Jamie Higgs | B31: WJ | C31: V40 | D31: 1 | E31: 29 | AB31: Sjaak Van der Poel | AC31: HRC | AD31: S | AE31: 1 | AF31: 87
A32: Stefan Gauntlett | B32: WJ | C32: S | D32: 1 | E32: 30 | AB32: Colin Langbridge | AC32: HRC | AD32: S | AE32: 1 | AF32: 88
A33: Christian Golebiowski | B33: HRC | C33: S | D33: 1 | E33: 31
A34: Benjamin Usher | B34: HRC | C34: S | D34: 1 | E34: 32
A35: Adam Chapman | B35: BS | C35: V40 | D35: 1 | E35: 33 | G35: Senior | N35: V40 | U35: V50 | AB35: V60 | AI35: V70
A36: Andrew Terrell | B36: HRC | C36: V40 | D36: 1 | E36: 34 | G36: Name | H36: Club | I36: Age Category | J36: Claim | K36: Overall Position | L36: Category Position | N36: Name | O36: Club | P36: Age Category | Q36: Claim | R36: Overall Position | S36: Category Position | U36: Name | V36: Club | W36: Age Category | X36: Claim | Y36: Overall Position | Z36: Category Position | AB36: Name | AC36: Club | AD36: Age Category | AE36: Claim | AF36: Overall Position | AG36: Category Position | AI36: Name | AJ36: Club | AK36: Age Category | AL36: Claim | AM36: Overall Position | AN36: Category Position
A37: Dominic Mason | B37: BS | C37: V50 | D37: 1 | E37: 35 | G37: Michael Waddington | H37: WJ | I37: S | J37: 1 | K37: 1 | L37: 1 | N37: Andrew Mynott | O37: WJ | P37: V40 | Q37: 1 | R37: 2 | S37: 1 | U37: Rob Lowe | V37: HRC | W37: V50 | X37: 1 | Y37: 3 | Z37: 1 | AB37: Garth Morris | AC37: WJ | AD37: V60 | AE37: 1 | AF37: 21 | AG37: 1 | AI37: John Tennant | AJ37: HRC | AK37: V70 | AL37: 1 | AM37: 73 | AN37: 1
A38: Russell Cook | B38: WJ | C38: S | D38: 1 | E38: 36 | G38: Mark Spiller | H38: BS | I38: S | J38: 1 | K38: 4 | L38: 2 | N38: Kevin Francis | O38: WJ | P38: V40 | Q38: 1 | R38: 5 | S38: 2 | U38: Kevin Sambridge | V38: WJ | W38: V50 | X38: 1 | Y38: 10 | Z38: 2 | AB38: Ian MacDougall | AC38: SS | AD38: V60 | AE38: 1 | AF38: 28 | AG38: 2 | AI38: Pasquale Pellecchia | AJ38: HRC | AK38: V70 | AL38: 1 | AM38: 81 | AN38: 2
A39: Thomas Beales | B39: HRC | C39: V40 | D39: 1 | E39: 37 | G39: Will Breese | H39: WJ | I39: S | J39: 1 | K39: 6 | L39: 3 | N39: David Raimondo | O39: SS | P39: V40 | Q39: 1 | R39: 7 | S39: 3 | U39: Robert Thorpe | V39: BS | W39: V50 | X39: 1 | Y39: 13 | Z39: 3 | AB39: Peter Baker | AC39: WJ | AD39: V60 | AE39: 1 | AF39: 51 | AG39: 3 | AI39: Colin Naman | AJ39: WJ | AK39: V70 | AL39: 1 | AM39: 90 | AN39: 3
A40: Mark Sanz | B40: WJ | C40: V50 | D40: 1 | E40: 38 | G40: Tom Quinn | H40: WJ | I40: S | J40: 1 | K40: 8 | L40: 4 | N40: Matt Brown | O40: WJ | P40: V40 | Q40: 1 | R40: 9 | S40: 4 | U40: Stephen Wilkes | V40: BS | W40: V50 | X40: 1 | Y40: 14 | Z40: 4 | AB40: Toby Lumsden | AC40: SS | AD40: V60 | AE40: 1 | AF40: 58 | AG40: 4
A41: Mikey Wilce | B41: WJ | C41: S | D41: 1 | E41: 39 | G41: Martin Westley | H41: HRC | I41: S | J41: 1 | K41: 11 | L41: 5 | N41: Keir Mann | O41: BS | P41: V40 | Q41: 1 | R41: 15 | S41: 5 | U41: Nick Kenyon-Muir | V41: WJ | W41: V50 | X41: 1 | Y41: 26 | Z41: 5 | AB41: John James | AC41: SS | AD41: V60 | AE41: 1 | AF41: 64 | AG41: 5
A42: Marco Arcidiacono | B42: SS | C42: V50 | D42: 1 | E42: 40 | G42: Mark Ford | H42: WJ | I42: S | J42: 1 | K42: 12 | L42: 6 | N42: Matthew Ironside | O42: BS | P42: V40 | Q42: 1 | R42: 16 | S42: 6 | U42: Dominic Mason | V42: BS | W42: V50 | X42: 1 | Y42: 35 | Z42: 6 | AB42: Richard Balarkas | AC42: SS | AD42: V60 | AE42: 1 | AF42: 67 | AG42: 6
A43: Phil Middleton | B43: HRC | C43: V40 | D43: 1 | E43: 41 | G43: Martyn Coulter | H43: HRC | I43: S | J43: 1 | K43: 18 | L43: 7 | N43: Peter Jurd | O43: BS | P43: V40 | Q43: 1 | R43: 17 | S43: 7 | U43: Mark Sanz | V43: WJ | W43: V50 | X43: 1 | Y43: 38 | Z43: 7 | AB43: Arthur Oliva | AC43: SS | AD43: V60 | AE43: 1 | AF43: 68 | AG43: 7
A44: Adam Watson | B44: WJ | C44: V40 | D44: 1 | E44: 42 | G44: Andrew Kavanagh | H44: WJ | I44: S | J44: 1 | K44: 24 | L44: 8 | N44: Neil Bull | O44: WJ | P44: V40 | Q44: 1 | R44: 19 | S44: 8 | U44: Marco Arcidiacono | V44: SS | W44: V50 | X44: 1 | Y44: 40 | Z44: 8 | AB44: Martin Howe | AC44: BS | AD44: V60 | AE44: 1 | AF44: 74 | AG44: 8
A45: Jermaine Shand | B45: HRC | C45: S | D45: 1 | E45: 43 | G45: Stefan Gauntlett | H45: WJ | I45: S | J45: 1 | K45: 30 | L45: 9 | N45: Colin Baker | O45: HRC | P45: V40 | Q45: 1 | R45: 20 | S45: 9 | U45: Alan Taylor | V45: WJ | W45: V50 | X45: 1 | Y45: 46 | Z45: 9 | AB45: Alan Cootes | AC45: HRC | AD45: V60 | AE45: 1 | AF45: 77 | AG45: 9
A46: Iain Cumming | B46: SS | C46: S | D46: 1 | E46: 44 | G46: Christian Golebiowski | H46: HRC | I46: S | J46: 1 | K46: 31 | L46: 10 | N46: Ryan Smith | O46: HRC | P46: V40 | Q46: 1 | R46: 22 | S46: 10 | U46: Jon Steadman | V46: HRC | W46: V50 | X46: 1 | Y46: 47 | Z46: 10 | AB46: Clive Smith | AC46: WJ | AD46: V60 | AE46: 1 | AF46: 79 | AG46: 10
A47: Bradley Power | B47: HRC | C47: S | D47: 1 | E47: 45 | G47: Benjamin Usher | H47: HRC | I47: S | J47: 1 | K47: 32 | L47: 11 | N47: Tim McMahon | O47: SS | P47: V40 | Q47: 1 | R47: 23 | S47: 11 | U47: Keith Streeter | V47: HRC | W47: V50 | X47: 1 | Y47: 53 | Z47: 11 | AB47: Phillip Barnard | AC47: WJ | AD47: V60 | AE47: 1 | AF47: 80 | AG47: 11
A48: Alan Taylor | B48: WJ | C48: V50 | D48: 1 | E48: 46 | G48: Russell Cook | H48: WJ | I48: S | J48: 1 | K48: 36 | L48: 12 | N48: Matthew Cole | O48: BS | P48: V40 | Q48: 1 | R48: 25 | S48: 12 | U48: Jason Fox | V48: HRC | W48: V50 | X48: 1 | Y48: 54 | Z48: 12 | AB48: Ian Penson | AC48: BS | AD48: V60 | AE48: 1 | AF48: 86 | AG48: 12
A49: Jon Steadman | B49: HRC | C49: V50 | D49: 1 | E49: 47 | G49: Mikey Wilce | H49: WJ | I49: S | J49: 1 | K49: 39 | L49: 13 | N49: Nick Smith | O49: BS | P49: V40 | Q49: 1 | R49: 27 | S49: 13 | U49: Nigel Poad | V49: SS | W49: V50 | X49: 1 | Y49: 59 | Z49: 13 | AB49: Roger Partridge | AC49: WJ | AD49: V60 | AE49: 1 | AF49: 89 | AG49: 13
A50: James Catton | B50: HRC | C50: S | D50: 1 | E50: 48 | G50: Jermaine Shand | H50: HRC | I50: S | J50: 1 | K50: 43 | L50: 14 | N50: Jamie Higgs | O50: WJ | P50: V40 | Q50: 1 | R50: 29 | S50: 14 | U50: Matthieu Militon | V50: BS | W50: V50 | X50: 1 | Y50: 60 | Z50: 14
A51: Lewis Goodwin | B51: HRC | C51: S | D51: 1 | E51: 49 | G51: Iain Cumming | H51: SS | I51: S | J51: 1 | K51: 44 | L51: 15 | N51: Adam Chapman | O51: BS | P51: V40 | Q51: 1 | R51: 33 | S51: 15 | U51: Neil Halls | V51: SS | W51: V50 | X51: 1 | Y51: 62 | Z51: 15
A52: Lee Webber | B52: HRC | C52: V40 | D52: 1 | E52: 50 | G52: Bradley Power | H52: HRC | I52: S | J52: 1 | K52: 45 | L52: 16 | N52: Andrew Terrell | O52: HRC | P52: V40 | Q52: 1 | R52: 34 | S52: 16 | U52: Chris Chew | V52: BS | W52: V50 | X52: 1 | Y52: 63 | Z52: 16
A53: Peter Baker | B53: WJ | C53: V60 | D53: 1 | E53: 51 | G53: James Catton | H53: HRC | I53: S | J53: 1 | K53: 48 | L53: 17 | N53: Thomas Beales | O53: HRC | P53: V40 | Q53: 1 | R53: 37 | S53: 17 | U53: Miguel Luque | V53: HRC | W53: V50 | X53: 1 | Y53: 65 | Z53: 17
A54: Marc Witham | B54: HRC | C54: V40 | D54: 1 | E54: 52 | G54: Lewis Goodwin | H54: HRC | I54: S | J54: 1 | K54: 49 | L54: 18 | N54: Phil Middleton | O54: HRC | P54: V40 | Q54: 1 | R54: 41 | S54: 18 | U54: John Kennedy | V54: BS | W54: V50 | X54: 1 | Y54: 66 | Z54: 18
A55: Keith Streeter | B55: HRC | C55: V50 | D55: 1 | E55: 53 | G55: Joe Lightfoot | H55: BS | I55: S | J55: 1 | K55: 56 | L55: 19 | N55: Adam Watson | O55: WJ | P55: V40 | Q55: 1 | R55: 42 | S55: 19 | U55: John Bull | V55: HRC | W55: V50 | X55: 1 | Y55: 70 | Z55: 19
A56: Jason Fox | B56: HRC | C56: V50 | D56: 1 | E56: 54 | G56: Frankie Forsyth | H56: HRC | I56: S | J56: 1 | K56: 84 | L56: 20 | N56: Lee Webber | O56: HRC | P56: V40 | Q56: 1 | R56: 50 | S56: 20 | U56: Gary Mead | V56: HRC | W56: V50 | X56: 1 | Y56: 71 | Z56: 20
A57: Jonathan Hall | B57: WJ | C57: V40 | D57: 1 | E57: 55 | G57: Sjaak Van der Poel | H57: HRC | I57: S | J57: 1 | K57: 87 | L57: 21 | N57: Marc Witham | O57: HRC | P57: V40 | Q57: 1 | R57: 52 | S57: 21 | U57: Paul Dearlove | V57: BS | W57: V50 | X57: 1 | Y57: 72 | Z57: 21
A58: Joe Lightfoot | B58: BS | C58: S | D58: 1 | E58: 56 | G58: Colin Langbridge | H58: HRC | I58: S | J58: 1 | K58: 88 | L58: 22 | N58: Jonathan Hall | O58: WJ | P58: V40 | Q58: 1 | R58: 55 | S58: 22 | U58: Simon Joyce | V58: WJ | W58: V50 | X58: 1 | Y58: 76 | Z58: 22
A59: NEIL GAGE | B59: BS | C59: V40 | D59: 1 | E59: 57 | N59: NEIL GAGE | O59: BS | P59: V40 | Q59: 1 | R59: 57 | S59: 23 | U59: Lee Pickering | V59: BS | W59: V50 | X59: 1 | Y59: 82 | Z59: 23
A60: Toby Lumsden | B60: SS | C60: V60 | D60: 1 | E60: 58 | N60: Richard Foweraker | O60: BS | P60: V40 | Q60: 1 | R60: 61 | S60: 24
A61: Nigel Poad | B61: SS | C61: V50 | D61: 1 | E61: 59 | N61: Jamie Smith | O61: BS | P61: V40 | Q61: 1 | R61: 69 | S61: 25
A62: Matthieu Militon | B62: BS | C62: V50 | D62: 1 | E62: 60 | N62: Lee Vass | O62: BS | P62: V40 | Q62: 1 | R62: 75 | S62: 26
A63: Richard Foweraker | B63: BS | C63: V40 | D63: 1 | E63: 61 | N63: Alistair Cooke | O63: SS | P63: V40 | Q63: 1 | R63: 78 | S63: 27
A64: Neil Halls | B64: SS | C64: V50 | D64: 1 | E64: 62 | N64: Tj Rowlands | O64: HRC | P64: V40 | Q64: 1 | R64: 83 | S64: 28
A65: Chris Chew | B65: BS | C65: V50 | D65: 1 | E65: 63 | N65: Michael Robey | O65: HRC | P65: V40 | Q65: 1 | R65: 85 | S65: 29
A66: John James | B66: SS | C66: V60 | D66: 1 | E66: 64
A67: Miguel Luque | B67: HRC | C67: V50 | D67: 1 | E67: 65
A68: John Kennedy | B68: BS | C68: V50 | D68: 1 | E68: 66
A69: Richard Balarkas | B69: SS | C69: V60 | D69: 1 | E69: 67
A70: Arthur Oliva | B70: SS | C70: V60 | D70: 1 | E70: 68
A71: Jamie Smith | B71: BS | C71: V40 | D71: 1 | E71: 69
A72: John Bull | B72: HRC | C72: V50 | D72: 1 | E72: 70
A73: Gary Mead | B73: HRC | C73: V50 | D73: 1 | E73: 71
A74: Paul Dearlove | B74: BS | C74: V50 | D74: 1 | E74: 72
A75: John Tennant | B75: HRC | C75: V70 | D75: 1 | E75: 73
A76: Martin Howe | B76: BS | C76: V60 | D76: 1 | E76: 74
A77: Lee Vass | B77: BS | C77: V40 | D77: 1 | E77: 75
A78: Simon Joyce | B78: WJ | C78: V50 | D78: 1 | E78: 76
A79: Alan Cootes | B79: HRC | C79: V60 | D79: 1 | E79: 77
A80: Alistair Cooke | B80: SS | C80: V40 | D80: 1 | E80: 78
A81: Clive Smith | B81: WJ | C81: V60 | D81: 1 | E81: 79
A82: Phillip Barnard | B82: WJ | C82: V60 | D82: 1 | E82: 80
A83: Pasquale Pellecchia | B83: HRC | C83: V70 | D83: 1 | E83: 81
A84: Lee Pickering | B84: BS | C84: V50 | D84: 1 | E84: 82
A85: Tj Rowlands | B85: HRC | C85: V40 | D85: 1 | E85: 83
A86: Frankie Forsyth | B86: HRC | C86: S | D86: 1 | E86: 84
A87: Michael Robey | B87: HRC | C87: V40 | D87: 1 | E87: 85
A88: Ian Penson | B88: BS | C88: V60 | D88: 1 | E88: 86
A89: Sjaak Van der Poel | B89: HRC | C89: S | D89: 1 | E89: 87
A90: Colin Langbridge | B90: HRC | C90: S | D90: 1 | E90: 88
A91: Roger Partridge | B91: WJ | C91: V60 | D91: 1 | E91: 89
A92: Colin Naman | B92: WJ | C92: V70 | D92: 1 | E92: 90

Sheet Race 1-Ladies
A1: Overall | G1: Ware Joggers | N1: Bishop's Stortford | U1: Saffron Striders | AB1: Harlow Running & Tri Club
A2: Name | B2: Club | C2: Age Category | D2: Claim | E2: Position | G2: Name | H2: Club | I2: Age Category | J2: Claim | K2: Position | N2: Name | O2: Club | P2: Age Category | Q2: Claim | R2: Position | U2: Name | V2: Club | W2: Age Category | X2: Claim | Y2: Position | AB2: Name | AC2: Club | AD2: Age Category | AE2: Claim | AF2: Position | AI2: Name | AJ2: Club | AK2: Age Category | AL2: Claim | AM2: Position
A3: Katy Woodward | B3: WJ | C3: V35 | D3: 1 | E3: 1 | G3: Katy Woodward | H3: WJ | I3: V35 | J3: 1 | K3: 1 | L3: 1 | N3: Elizabeth Bellinger | O3: BS | P3: V45 | Q3: 1 | R3: 3 | S3: 3 | U3: Zib Gotto | V3: SS | W3: V45 | X3: 1 | Y3: 9 | Z3: 9 | AB3: Terri Wiley | AC3: HRC | AD3: V35 | AE3: 1 | AF3: 2 | AG3: 2
A4: Terri Wiley | B4: HRC | C4: V35 | D4: 1 | E4: 2 | G4: Katrina Dobson | H4: WJ | I4: V35 | J4: 1 | K4: 4 | L4: 4 | N4: Sophie Barc | O4: BS | P4: V45 | Q4: 1 | R4: 6 | S4: 6 | U4: Kerry Harrington | V4: SS | W4: V45 | X4: 1 | Y4: 21 | Z4: 21 | AB4: Paige Bircham | AC4: HRC | AD4: S | AE4: 1 | AF4: 16 | AG4: 16
A5: Elizabeth Bellinger | B5: BS | C5: V45 | D5: 1 | E5: 3 | G5: Marianne Mitchell | H5: WJ | I5: V45 | J5: 1 | K5: 5 | L5: 5 | N5: Grace Mason | O5: BS | P5: S | Q5: 2 | R5: 8 | S5: 8 | U5: Lucie Heanley | V5: SS | W5: V35 | X5: 1 | Y5: 23 | Z5: 23 | AB5: Ella Wager | AC5: HRC | AD5: S | AE5: 1 | AF5: 19 | AG5: 19
A6: Katrina Dobson | B6: WJ | C6: V35 | D6: 1 | E6: 4 | G6: Susan Millward | H6: WJ | I6: V45 | J6: 1 | K6: 7 | L6: 7 | N6: Emily Clancey | O6: BS | P6: S | Q6: 1 | R6: 10 | S6: 10 | U6: Charlotte Teall | V6: SS | W6: V35 | X6: 1 | Y6: 34 | Z6: 34 | AB6: Louise Cootes | AC6: HRC | AD6: V35 | AE6: 1 | AF6: 20 | AG6: 20
A7: Marianne Mitchell | B7: WJ | C7: V45 | D7: 1 | E7: 5 | G7: Beverley McLees | H7: WJ | I7: V45 | J7: 1 | K7: 11 | L7: 11 | N7: Laura Hollis | O7: BS | P7: V45 | Q7: 1 | R7: 12 | S7: 12 | U7: Annabel Crossmen | V7: SS | W7: S | X7: 1 | Y7: 35 | Z7: 35 | AB7: Sandra Rust | AC7: HRC | AD7: V55 | AE7: 1 | AF7: 24 | AG7: 24
A8: Sophie Barc | B8: BS | C8: V45 | D8: 1 | E8: 6 | G8: Emma Mulley | H8: WJ | I8: V35 | J8: 1 | K8: 15 | L8: 15 | N8: Lily Murray | O8: BS | P8: S | Q8: 1 | R8: 13 | S8: 13 | U8: Charlotte Diggins | V8: SS | W8: V45 | X8: 1 | Y8: 38 | Z8: 38 | AB8: Linda Helm-Manley | AC8: HRC | AD8: V55 | AE8: 1 | AF8: 26 | AG8: 26
A9: Susan Millward | B9: WJ | C9: V45 | D9: 1 | E9: 7 | G9: Anthea Francis | H9: WJ | I9: V45 | J9: 1 | K9: 17 | L9: 17 | N9: Lindsey Ireland | O9: BS | P9: S | Q9: 1 | R9: 14 | S9: 14 | U9: Margit Wendelberger James | V9: SS | W9: V55 | X9: 1 | Y9: 42 | Z9: 42 | AB9: Michelle Hyde | AC9: HRC | AD9: V35 | AE9: 1 | AF9: 29 | AG9: 29
A10: Grace Mason | B10: BS | C10: S | D10: 2 | E10: 8 | G10: Emily Reid | H10: WJ | I10: V45 | J10: 1 | K10: 18 | L10: 18 | N10: Peijie Zhu | O10: BS | P10: V45 | Q10: 1 | R10: 39 | S10: 39 | U10: Rachel Everitt | V10: SS | W10: S | X10: 1 | Y10: 43 | Z10: 43 | AB10: Michelle Sheridan | AC10: HRC | AD10: V35 | AE10: 1 | AF10: 30 | AG10: 30
A11: Zib Gotto | B11: SS | C11: V45 | D11: 1 | E11: 9 | G11: Gemma Charville | H11: WJ | I11: V35 | J11: 1 | K11: 22 | N11: Jenny Brayshaw | O11: BS | P11: V65 | Q11: 1 | R11: 54 | AB11: Gail Nicholls | AC11: HRC | AD11: V55 | AE11: 1 | AF11: 31
A12: Emily Clancey | B12: BS | C12: S | D12: 1 | E12: 10 | G12: Cate Campany | H12: WJ | I12: V55 | J12: 1 | K12: 25 | N12: Niki Champion | O12: BS | P12: V45 | Q12: 1 | R12: 56 | AB12: Emma Luck | AC12: HRC | AD12: V45 | AE12: 1 | AF12: 33
A13: Beverley McLees | B13: WJ | C13: V45 | D13: 1 | E13: 11 | G13: Jemina Punni | H13: WJ | I13: V35 | J13: 1 | K13: 27 | N13: Cathy Dutta | O13: BS | P13: V55 | Q13: 1 | R13: 57 | AB13: Kerry Mavris | AC13: HRC | AD13: V45 | AE13: 1 | AF13: 37
A14: Laura Hollis | B14: BS | C14: V45 | D14: 1 | E14: 12 | G14: Pamela Wilson | H14: WJ | I14: V65 | J14: 1 | K14: 28 | N14: Fay Dodgen | O14: BS | P14: V55 | Q14: 1 | R14: 63 | AB14: Louise Kedge | AC14: HRC | AD14: V35 | AE14: 1 | AF14: 41
A15: Lily Murray | B15: BS | C15: S | D15: 1 | E15: 13 | G15: Deborah Amies | H15: WJ | I15: V55 | J15: 1 | K15: 32 | N15: Victoria Cutler | O15: BS | P15: V35 | Q15: 1 | R15: 65 | AB15: Jane Evans | AC15: HRC | AD15: V55 | AE15: 1 | AF15: 44
A16: Lindsey Ireland | B16: BS | C16: S | D16: 1 | E16: 14 | G16: Jennifer Evans | H16: WJ | I16: S | J16: 1 | K16: 36 | N16: Bekah Lawrence | O16: BS | P16: S | Q16: 1 | R16: 66 | AB16: Melissa Rowlands | AC16: HRC | AD16: V35 | AE16: 1 | AF16: 45
A17: Emma Mulley | B17: WJ | C17: V35 | D17: 1 | E17: 15 | G17: Sam Rowe | H17: WJ | I17: V55 | J17: 1 | K17: 40 | AB17: Anna Robey | AC17: HRC | AD17: V35 | AE17: 1 | AF17: 46
A18: Paige Bircham | B18: HRC | C18: S | D18: 1 | E18: 16 | G18: Paula Gollop | H18: WJ | I18: V35 | J18: 1 | K18: 48 | AB18: Sandra Webber | AC18: HRC | AD18: V35 | AE18: 1 | AF18: 47
A19: Anthea Francis | B19: WJ | C19: V45 | D19: 1 | E19: 17 | G19: Lynsay Evans | H19: WJ | I19: V55 | J19: 1 | K19: 50 | AB19: Kate Babb | AC19: HRC | AD19: V55 | AE19: 1 | AF19: 49
A20: Emily Reid | B20: WJ | C20: V45 | D20: 1 | E20: 18 | G20: Rhonda Moon | H20: WJ | I20: V45 | J20: 1 | K20: 53 | AB20: Claire Morris | AC20: HRC | AD20: V35 | AE20: 1 | AF20: 51
A21: Ella Wager | B21: HRC | C21: S | D21: 1 | E21: 19 | G21: Anne Ramsden | H21: WJ | I21: V65 | J21: 1 | K21: 55 | AB21: Kelly Mcgill | AC21: HRC | AD21: V45 | AE21: 1 | AF21: 52
A22: Louise Cootes | B22: HRC | C22: V35 | D22: 1 | E22: 20 | G22: Marcia Fisher | H22: WJ | I22: V45 | J22: 1 | K22: 58 | AB22: Selina Morgan | AC22: HRC | AD22: V35 | AE22: 1 | AF22: 59
A23: Kerry Harrington | B23: SS | C23: V45 | D23: 1 | E23: 21 | G23: Jacqui Barnard | H23: WJ | I23: V55 | J23: 1 | K23: 62 | AB23: Karen Moir | AC23: HRC | AD23: V55 | AE23: 1 | AF23: 60
A24: Gemma Charville | B24: WJ | C24: V35 | D24: 1 | E24: 22 | AB24: Keren Greenall | AC24: HRC | AD24: V45 | AE24: 1 | AF24: 61
A25: Lucie Heanley | B25: SS | C25: V35 | D25: 1 | E25: 23 | AB25: Stacey Miziolek | AC25: HRC | AD25: V45 | AE25: 1 | AF25: 64
A26: Sandra Rust | B26: HRC | C26: V55 | D26: 1 | E26: 24
A27: Cate Campany | B27: WJ | C27: V55 | D27: 1 | E27: 25
A28: Linda Helm-Manley | B28: HRC | C28: V55 | D28: 1 | E28: 26 | G28: Senior | N28: V35 | U28: V45 | AB28: V55 | AI28: V65
A29: Jemina Punni | B29: WJ | C29: V35 | D29: 1 | E29: 27 | G29: Name | H29: Club | I29: Age Category | J29: Claim | K29: Overall Position | L29: Category Position | N29: Name | O29: Club | P29: Age Category | Q29: Claim | R29: Overall Position | S29: Category Position | U29: Name | V29: Club | W29: Age Category | X29: Claim | Y29: Overall Position | Z29: Category Position | AB29: Name | AC29: Club | AD29: Age Category | AE29: Claim | AF29: Overall Position | AG29: Category Position | AI29: Name | AJ29: Club | AK29: Age Category | AL29: Claim | AM29: Overall Position | AN29: Category Position
A30: Pamela Wilson | B30: WJ | C30: V65 | D30: 1 | E30: 28 | G30: Grace Mason | H30: BS | I30: S | J30: 2 | K30: 8 | L30: 1 | N30: Katy Woodward | O30: WJ | P30: V35 | Q30: 1 | R30: 1 | S30: 1 | U30: Elizabeth Bellinger | V30: BS | W30: V45 | X30: 1 | Y30: 3 | Z30: 1 | AB30: Sandra Rust | AC30: HRC | AD30: V55 | AE30: 1 | AF30: 24 | AG30: 1 | AI30: Pamela Wilson | AJ30: WJ | AK30: V65 | AL30: 1 | AM30: 28 | AN30: 1
A31: Michelle Hyde | B31: HRC | C31: V35 | D31: 1 | E31: 29 | G31: Emily Clancey | H31: BS | I31: S | J31: 1 | K31: 10 | L31: 2 | N31: Terri Wiley | O31: HRC | P31: V35 | Q31: 1 | R31: 2 | S31: 2 | U31: Marianne Mitchell | V31: WJ | W31: V45 | X31: 1 | Y31: 5 | Z31: 2 | AB31: Cate Campany | AC31: WJ | AD31: V55 | AE31: 1 | AF31: 25 | AG31: 2 | AI31: Jenny Brayshaw | AJ31: BS | AK31: V65 | AL31: 1 | AM31: 54 | AN31: 2
A32: Michelle Sheridan | B32: HRC | C32: V35 | D32: 1 | E32: 30 | G32: Lily Murray | H32: BS | I32: S | J32: 1 | K32: 13 | L32: 3 | N32: Katrina Dobson | O32: WJ | P32: V35 | Q32: 1 | R32: 4 | S32: 3 | U32: Sophie Barc | V32: BS | W32: V45 | X32: 1 | Y32: 6 | Z32: 3 | AB32: Linda Helm-Manley | AC32: HRC | AD32: V55 | AE32: 1 | AF32: 26 | AG32: 3 | AI32: Anne Ramsden | AJ32: WJ | AK32: V65 | AL32: 1 | AM32: 55 | AN32: 3
A33: Gail Nicholls | B33: HRC | C33: V55 | D33: 1 | E33: 31 | G33: Lindsey Ireland | H33: BS | I33: S | J33: 1 | K33: 14 | L33: 4 | N33: Emma Mulley | O33: WJ | P33: V35 | Q33: 1 | R33: 15 | S33: 4 | U33: Susan Millward | V33: WJ | W33: V45 | X33: 1 | Y33: 7 | Z33: 4 | AB33: Gail Nicholls | AC33: HRC | AD33: V55 | AE33: 1 | AF33: 31 | AG33: 4
A34: Deborah Amies | B34: WJ | C34: V55 | D34: 1 | E34: 32 | G34: Paige Bircham | H34: HRC | I34: S | J34: 1 | K34: 16 | L34: 5 | N34: Louise Cootes | O34: HRC | P34: V35 | Q34: 1 | R34: 20 | S34: 5 | U34: Zib Gotto | V34: SS | W34: V45 | X34: 1 | Y34: 9 | Z34: 5 | AB34: Deborah Amies | AC34: WJ | AD34: V55 | AE34: 1 | AF34: 32 | AG34: 5
A35: Emma Luck | B35: HRC | C35: V45 | D35: 1 | E35: 33 | G35: Ella Wager | H35: HRC | I35: S | J35: 1 | K35: 19 | L35: 6 | N35: Gemma Charville | O35: WJ | P35: V35 | Q35: 1 | R35: 22 | S35: 6 | U35: Beverley McLees | V35: WJ | W35: V45 | X35: 1 | Y35: 11 | Z35: 6 | AB35: Sam Rowe | AC35: WJ | AD35: V55 | AE35: 1 | AF35: 40 | AG35: 6
A36: Charlotte Teall | B36: SS | C36: V35 | D36: 1 | E36: 34 | G36: Annabel Crossmen | H36: SS | I36: S | J36: 1 | K36: 35 | L36: 7 | N36: Lucie Heanley | O36: SS | P36: V35 | Q36: 1 | R36: 23 | S36: 7 | U36: Laura Hollis | V36: BS | W36: V45 | X36: 1 | Y36: 12 | Z36: 7 | AB36: Margit Wendelberger James | AC36: SS | AD36: V55 | AE36: 1 | AF36: 42 | AG36: 7
A37: Annabel Crossmen | B37: SS | C37: S | D37: 1 | E37: 35 | G37: Jennifer Evans | H37: WJ | I37: S | J37: 1 | K37: 36 | L37: 8 | N37: Jemina Punni | O37: WJ | P37: V35 | Q37: 1 | R37: 27 | S37: 8 | U37: Anthea Francis | V37: WJ | W37: V45 | X37: 1 | Y37: 17 | Z37: 8 | AB37: Jane Evans | AC37: HRC | AD37: V55 | AE37: 1 | AF37: 44 | AG37: 8
A38: Jennifer Evans | B38: WJ | C38: S | D38: 1 | E38: 36 | G38: Rachel Everitt | H38: SS | I38: S | J38: 1 | K38: 43 | L38: 9 | N38: Michelle Hyde | O38: HRC | P38: V35 | Q38: 1 | R38: 29 | S38: 9 | U38: Emily Reid | V38: WJ | W38: V45 | X38: 1 | Y38: 18 | Z38: 9 | AB38: Kate Babb | AC38: HRC | AD38: V55 | AE38: 1 | AF38: 49 | AG38: 9
A39: Kerry Mavris | B39: HRC | C39: V45 | D39: 1 | E39: 37 | G39: Bekah Lawrence | H39: BS | I39: S | J39: 1 | K39: 66 | L39: 10 | N39: Michelle Sheridan | O39: HRC | P39: V35 | Q39: 1 | R39: 30 | S39: 10 | U39: Kerry Harrington | V39: SS | W39: V45 | X39: 1 | Y39: 21 | Z39: 10 | AB39: Lynsay Evans | AC39: WJ | AD39: V55 | AE39: 1 | AF39: 50 | AG39: 10
A40: Charlotte Diggins | B40: SS | C40: V45 | D40: 1 | E40: 38 | N40: Charlotte Teall | O40: SS | P40: V35 | Q40: 1 | R40: 34 | S40: 11 | U40: Emma Luck | V40: HRC | W40: V45 | X40: 1 | Y40: 33 | Z40: 11 | AB40: Cathy Dutta | AC40: BS | AD40: V55 | AE40: 1 | AF40: 57 | AG40: 11
A41: Peijie Zhu | B41: BS | C41: V45 | D41: 1 | E41: 39 | N41: Louise Kedge | O41: HRC | P41: V35 | Q41: 1 | R41: 41 | S41: 12 | U41: Kerry Mavris | V41: HRC | W41: V45 | X41: 1 | Y41: 37 | Z41: 12 | AB41: Karen Moir | AC41: HRC | AD41: V55 | AE41: 1 | AF41: 60 | AG41: 12
A42: Sam Rowe | B42: WJ | C42: V55 | D42: 1 | E42: 40 | N42: Melissa Rowlands | O42: HRC | P42: V35 | Q42: 1 | R42: 45 | S42: 13 | U42: Charlotte Diggins | V42: SS | W42: V45 | X42: 1 | Y42: 38 | Z42: 13 | AB42: Jacqui Barnard | AC42: WJ | AD42: V55 | AE42: 1 | AF42: 62 | AG42: 13
A43: Louise Kedge | B43: HRC | C43: V35 | D43: 1 | E43: 41 | N43: Anna Robey | O43: HRC | P43: V35 | Q43: 1 | R43: 46 | S43: 14 | U43: Peijie Zhu | V43: BS | W43: V45 | X43: 1 | Y43: 39 | Z43: 14 | AB43: Fay Dodgen | AC43: BS | AD43: V55 | AE43: 1 | AF43: 63 | AG43: 14
A44: Margit Wendelberger James | B44: SS | C44: V55 | D44: 1 | E44: 42 | N44: Sandra Webber | O44: HRC | P44: V35 | Q44: 1 | R44: 47 | S44: 15 | U44: Kelly Mcgill | V44: HRC | W44: V45 | X44: 1 | Y44: 52 | Z44: 15
A45: Rachel Everitt | B45: SS | C45: S | D45: 1 | E45: 43 | N45: Paula Gollop | O45: WJ | P45: V35 | Q45: 1 | R45: 48 | S45: 16 | U45: Rhonda Moon | V45: WJ | W45: V45 | X45: 1 | Y45: 53 | Z45: 16
A46: Jane Evans | B46: HRC | C46: V55 | D46: 1 | E46: 44 | N46: Claire Morris | O46: HRC | P46: V35 | Q46: 1 | R46: 51 | S46: 17 | U46: Niki Champion | V46: BS | W46: V45 | X46: 1 | Y46: 56 | Z46: 17
A47: Melissa Rowlands | B47: HRC | C47: V35 | D47: 1 | E47: 45 | N47: Selina Morgan | O47: HRC | P47: V35 | Q47: 1 | R47: 59 | S47: 18 | U47: Marcia Fisher | V47: WJ | W47: V45 | X47: 1 | Y47: 58 | Z47: 18
A48: Anna Robey | B48: HRC | C48: V35 | D48: 1 | E48: 46 | N48: Victoria Cutler | O48: BS | P48: V35 | Q48: 1 | R48: 65 | S48: 19 | U48: Keren Greenall | V48: HRC | W48: V45 | X48: 1 | Y48: 61 | Z48: 19
A49: Sandra Webber | B49: HRC | C49: V35 | D49: 1 | E49: 47 | U49: Stacey Miziolek | V49: HRC | W49: V45 | X49: 1 | Y49: 64 | Z49: 20
A50: Paula Gollop | B50: WJ | C50: V35 | D50: 1 | E50: 48
A51: Kate Babb | B51: HRC | C51: V55 | D51: 1 | E51: 49
A52: Lynsay Evans | B52: WJ | C52: V55 | D52: 1 | E52: 50
A53: Claire Morris | B53: HRC | C53: V35 | D53: 1 | E53: 51
A54: Kelly Mcgill | B54: HRC | C54: V45 | D54: 1 | E54: 52
A55: Rhonda Moon | B55: WJ | C55: V45 | D55: 1 | E55: 53
A56: Jenny Brayshaw | B56: BS | C56: V65 | D56: 1 | E56: 54
A57: Anne Ramsden | B57: WJ | C57: V65 | D57: 1 | E57: 55
A58: Niki Champion | B58: BS | C58: V45 | D58: 1 | E58: 56
A59: Cathy Dutta | B59: BS | C59: V55 | D59: 1 | E59: 57
A60: Marcia Fisher | B60: WJ | C60: V45 | D60: 1 | E60: 58
A61: Selina Morgan | B61: HRC | C61: V35 | D61: 1 | E61: 59
A62: Karen Moir | B62: HRC | C62: V55 | D62: 1 | E62: 60
A63: Keren Greenall | B63: HRC | C63: V45 | D63: 1 | E63: 61
A64: Jacqui Barnard | B64: WJ | C64: V55 | D64: 1 | E64: 62
A65: Fay Dodgen | B65: BS | C65: V55 | D65: 1 | E65: 63
A66: Stacey Miziolek | B66: HRC | C66: V45 | D66: 1 | E66: 64
A67: Victoria Cutler | B67: BS | C67: V35 | D67: 1 | E67: 65
A68: Bekah Lawrence | B68: BS | C68: S | D68: 1 | E68: 66

Sheet Race 2-Men
A1: Overall | G1: Ware Joggers | N1: Bishop's Stortford | U1: Saffron Striders | AB1: Harlow Running & Tri Club
A2: Name | B2: Club | C2: Age Category | D2: Claim | E2: Position | G2: Name | H2: Club | I2: Age Category | J2: Claim | K2: Position | N2: Name | O2: Club | P2: Age Category | Q2: Claim | R2: Position | U2: Name | V2: Club | W2: Age Category | X2: Claim | Y2: Position | AB2: Name | AC2: Club | AD2: Age Category | AE2: Claim | AF2: Position | AI2: Name | AJ2: Club | AK2: Age Category | AL2: Claim | AM2: Position
A3: Michael Waddington | B3: WJ | C3: S | D3: 1 | E3: 1 | G3: Michael Waddington | H3: WJ | I3: S | J3: 1 | K3: 1 | L3: 1 | N3: Dylan Van Wyk | O3: BS | P3: S | Q3: 1 | R3: 3 | S3: 3 | U3: Tim McMahon | V3: SS | W3: V40 | X3: 1 | Y3: 17 | Z3: 17 | AB3: Rob Lowe | AC3: HRC | AD3: V50 | AE3: 1 | AF3: 5 | AG3: 5
A4: Andrew Mynott | B4: WJ | C4: V40 | D4: 1 | E4: 2 | G4: Andrew Mynott | H4: WJ | I4: V40 | J4: 1 | K4: 2 | L4: 2 | N4: Robert Thorpe | O4: BS | P4: V50 | Q4: 1 | R4: 12 | S4: 12 | U4: Matthew Billis | V4: SS | W4: V40 | X4: 1 | Y4: 23 | Z4: 23 | AB4: Kirk Crudgington | AC4: HRC | AD4: V40 | AE4: 1 | AF4: 18 | AG4: 18
A5: Dylan Van Wyk | B5: BS | C5: S | D5: 1 | E5: 3 | G5: Tim Brignall | H5: WJ | I5: S | J5: 1 | K5: 4 | L5: 4 | N5: Matt McRandal | O5: BS | P5: S | Q5: 1 | R5: 13 | S5: 13 | U5: Ian MacDougall | V5: SS | W5: V60 | X5: 1 | Y5: 28 | Z5: 28 | AB5: Ryan Smith | AC5: HRC | AD5: V40 | AE5: 1 | AF5: 21 | AG5: 21
A6: Tim Brignall | B6: WJ | C6: S | D6: 1 | E6: 4 | G6: David Craddock | H6: WJ | I6: S | J6: 1 | K6: 6 | L6: 6 | N6: Keir Mann | O6: BS | P6: V40 | Q6: 1 | R6: 14 | S6: 14 | U6: Marco Arcidiacono | V6: SS | W6: V50 | X6: 1 | Y6: 40 | Z6: 40 | AB6: Christian Golebiowski | AC6: HRC | AD6: S | AE6: 1 | AF6: 25 | AG6: 25
A7: Rob Lowe | B7: HRC | C7: V50 | D7: 1 | E7: 5 | G7: Liam Struwe | H7: WJ | I7: S | J7: 1 | K7: 7 | L7: 7 | N7: Adam Chapman | O7: BS | P7: V40 | Q7: 1 | R7: 22 | S7: 22 | U7: Iain Cumming | V7: SS | W7: S | X7: 1 | Y7: 41 | Z7: 41 | AB7: Christopher Donnelly | AC7: HRC | AD7: V40 | AE7: 1 | AF7: 29 | AG7: 29
A8: David Craddock | B8: WJ | C8: S | D8: 1 | E8: 6 | G8: Kevin Francis | H8: WJ | I8: V40 | J8: 1 | K8: 8 | L8: 8 | N8: Matthew Cole | O8: BS | P8: V40 | Q8: 1 | R8: 27 | S8: 27 | U8: Toby Lumsden | V8: SS | W8: V60 | X8: 1 | Y8: 54 | Z8: 54 | AB8: Benjamin Usher | AC8: HRC | AD8: S | AE8: 1 | AF8: 30 | AG8: 30
A9: Liam Struwe | B9: WJ | C9: S | D9: 1 | E9: 7 | G9: Will Breese | H9: WJ | I9: S | J9: 1 | K9: 9 | L9: 9 | N9: Gary Jones | O9: BS | P9: V50 | Q9: 1 | R9: 32 | S9: 32 | U9: Neil Halls | V9: SS | W9: V50 | X9: 1 | Y9: 64 | Z9: 64 | AB9: Lee Webber | AC9: HRC | AD9: V40 | AE9: 1 | AF9: 33 | AG9: 33
A10: Kevin Francis | B10: WJ | C10: V40 | D10: 1 | E10: 8 | G10: Ian Perrins | H10: WJ | I10: S | J10: 1 | K10: 10 | L10: 10 | N10: Gordon Mcleod | O10: BS | P10: S | Q10: 1 | R10: 39 | S10: 39 | U10: Arthur Oliva | V10: SS | W10: V60 | X10: 1 | Y10: 73 | Z10: 73 | AB10: Colin Baker | AC10: HRC | AD10: V40 | AE10: 1 | AF10: 35 | AG10: 35
A11: Will Breese | B11: WJ | C11: S | D11: 1 | E11: 9 | G11: Nick Axam | H11: WJ | I11: V40 | J11: 1 | K11: 11 | N11: Dominic Mason | O11: BS | P11: V50 | Q11: 1 | R11: 47 | U11: Alistair Cooke | V11: SS | W11: V40 | X11: 1 | Y11: 77 | AB11: Jermaine Shand | AC11: HRC | AD11: S | AE11: 1 | AF11: 36
A12: Ian Perrins | B12: WJ | C12: S | D12: 1 | E12: 10 | G12: Kevin Sambridge | H12: WJ | I12: V50 | J12: 1 | K12: 15 | N12: Chris Chew | O12: BS | P12: V50 | Q12: 1 | R12: 50 | AB12: Chris Mella | AC12: HRC | AD12: S | AE12: 1 | AF12: 44
A13: Nick Axam | B13: WJ | C13: V40 | D13: 1 | E13: 11 | G13: Tom Porter | H13: WJ | I13: S | J13: 1 | K13: 16 | N13: Samuel Brennan | O13: BS | P13: S | Q13: 1 | R13: 58 | AB13: Marc Witham | AC13: HRC | AD13: V40 | AE13: 1 | AF13: 45
A14: Robert Thorpe | B14: BS | C14: V50 | D14: 1 | E14: 12 | G14: Neil Bull | H14: WJ | I14: V40 | J14: 1 | K14: 19 | N14: Jamie Smith | O14: BS | P14: V40 | Q14: 1 | R14: 59 | AB14: Timothy Wood | AC14: HRC | AD14: S | AE14: 1 | AF14: 46
A15: Matt McRandal | B15: BS | C15: S | D15: 1 | E15: 13 | G15: Vincent Riviere | H15: WJ | I15: V40 | J15: 1 | K15: 20 | N15: Peter Beatty | O15: BS | P15: V60 | Q15: 1 | R15: 61 | AB15: Alan Knightley | AC15: HRC | AD15: V50 | AE15: 1 | AF15: 49
A16: Keir Mann | B16: BS | C16: V40 | D16: 1 | E16: 14 | G16: Matt Brown | H16: WJ | I16: V40 | J16: 1 | K16: 24 | N16: John Kennedy | O16: BS | P16: V50 | Q16: 1 | R16: 62 | AB16: Chris Burgess | AC16: HRC | AD16: V50 | AE16: 1 | AF16: 51
A17: Kevin Sambridge | B17: WJ | C17: V50 | D17: 1 | E17: 15 | G17: Stefan Gauntlett | H17: WJ | I17: S | J17: 1 | K17: 26 | N17: NEIL GAGE | O17: BS | P17: V40 | Q17: 1 | R17: 65 | AB17: James Dowsett | AC17: HRC | AD17: V40 | AE17: 1 | AF17: 53
A18: Tom Porter | B18: WJ | C18: S | D18: 1 | E18: 16 | G18: Jamie Higgs | H18: WJ | I18: V40 | J18: 1 | K18: 31 | N18: Richard Foweraker | O18: BS | P18: V40 | Q18: 1 | R18: 66 | AB18: Bradley Power | AC18: HRC | AD18: S | AE18: 1 | AF18: 56
A19: Tim McMahon | B19: SS | C19: V40 | D19: 1 | E19: 17 | G19: Mikey Wilce | H19: WJ | I19: S | J19: 1 | K19: 34 | N19: Peter Winfield | O19: BS | P19: V60 | Q19: 1 | R19: 69 | AB19: Sam Spurgeon | AC19: HRC | AD19: S | AE19: 1 | AF19: 60
A20: Kirk Crudgington | B20: HRC | C20: V40 | D20: 1 | E20: 18 | G20: Russell Cook | H20: WJ | I20: S | J20: 1 | K20: 37 | N20: Lee Boswell | O20: BS | P20: S | Q20: 1 | R20: 70 | AB20: Miguel Luque | AC20: HRC | AD20: V50 | AE20: 1 | AF20: 67
A21: Neil Bull | B21: WJ | C21: V40 | D21: 1 | E21: 19 | G21: Alexander Chappell | H21: WJ | I21: S | J21: 1 | K21: 38 | N21: Paul Andrew | O21: BS | P21: V40 | Q21: 1 | R21: 72 | AB21: John Bull | AC21: HRC | AD21: V50 | AE21: 1 | AF21: 68
A22: Vincent Riviere | B22: WJ | C22: V40 | D22: 1 | E22: 20 | G22: Alan Taylor | H22: WJ | I22: V50 | J22: 1 | K22: 42 | N22: Shane Tomlinson | O22: BS | P22: V40 | Q22: 1 | R22: 76 | AB22: Sean Flynn | AC22: HRC | AD22: V60 | AE22: 1 | AF22: 71
A23: Ryan Smith | B23: HRC | C23: V40 | D23: 1 | E23: 21 | G23: Mark Sanz | H23: WJ | I23: V50 | J23: 1 | K23: 43 | N23: Chris Brolly | O23: BS | P23: V60 | Q23: 1 | R23: 80 | AB23: Paul Dixon | AC23: HRC | AD23: V50 | AE23: 1 | AF23: 74
A24: Adam Chapman | B24: BS | C24: V40 | D24: 1 | E24: 22 | G24: Jonathan Hall | H24: WJ | I24: V40 | J24: 1 | K24: 48 | N24: Lee Pickering | O24: BS | P24: V50 | Q24: 1 | R24: 83 | AB24: Gary Mead | AC24: HRC | AD24: V50 | AE24: 1 | AF24: 75
A25: Matthew Billis | B25: SS | C25: V40 | D25: 1 | E25: 23 | G25: Adam Watson | H25: WJ | I25: V40 | J25: 1 | K25: 52 | N25: Ian Penson | O25: BS | P25: V60 | Q25: 1 | R25: 84 | AB25: Jamie Olsen Ferreira | AC25: HRC | AD25: V40 | AE25: 1 | AF25: 78
A26: Matt Brown | B26: WJ | C26: V40 | D26: 1 | E26: 24 | G26: Andrew Biggs | H26: WJ | I26: V40 | J26: 1 | K26: 55 | AB26: John Tennant | AC26: HRC | AD26: V70 | AE26: 1 | AF26: 79
A27: Christian Golebiowski | B27: HRC | C27: S | D27: 1 | E27: 25 | G27: James Randall | H27: WJ | I27: V40 | J27: 1 | K27: 57 | AB27: Colin Langbridge | AC27: HRC | AD27: S | AE27: 1 | AF27: 85
A28: Stefan Gauntlett | B28: WJ | C28: S | D28: 1 | E28: 26 | G28: Paul Brennan | H28: WJ | I28: V50 | J28: 1 | K28: 63 | AB28: Michael Robey | AC28: HRC | AD28: V40 | AE28: 1 | AF28: 87
A29: Matthew Cole | B29: BS | C29: V40 | D29: 1 | E29: 27 | G29: Clive Smith | H29: WJ | I29: V60 | J29: 1 | K29: 81 | AB29: John Taylor | AC29: HRC | AD29: V50 | AE29: 1 | AF29: 88
A30: Ian MacDougall | B30: SS | C30: V60 | D30: 1 | E30: 28 | G30: Alan Rafferty | H30: WJ | I30: V60 | J30: 1 | K30: 82 | AB30: Jacobus Van Der Poel | AC30: HRC | AD30: V70 | AE30: 1 | AF30: 91
A31: Christopher Donnelly | B31: HRC | C31: V40 | D31: 1 | E31: 29 | G31: Roger Partridge | H31: WJ | I31: V60 | J31: 1 | K31: 86 | AB31: Tj Rowlands | AC31: HRC | AD31: V40 | AE31: 1 | AF31: 93
A32: Benjamin Usher | B32: HRC | C32: S | D32: 1 | E32: 30 | G32: Nick Cheal | H32: WJ | I32: V70 | J32: 1 | K32: 89
A33: Jamie Higgs | B33: WJ | C33: V40 | D33: 1 | E33: 31 | G33: Phil Hudson | H33: WJ | I33: V60 | J33: 1 | K33: 90
A34: Gary Jones | B34: BS | C34: V50 | D34: 1 | E34: 32 | G34: Colin Naman | H34: WJ | I34: V70 | J34: 1 | K34: 92
A35: Lee Webber | B35: HRC | C35: V40 | D35: 1 | E35: 33
A36: Mikey Wilce | B36: WJ | C36: S | D36: 1 | E36: 34
A37: Colin Baker | B37: HRC | C37: V40 | D37: 1 | E37: 35 | G37: Senior | N37: V40 | U37: V50 | AB37: V60 | AI37: V70
A38: Jermaine Shand | B38: HRC | C38: S | D38: 1 | E38: 36 | G38: Name | H38: Club | I38: Age Category | J38: Claim | K38: Overall Position | L38: Category Position | N38: Name | O38: Club | P38: Age Category | Q38: Claim | R38: Overall Position | S38: Category Position | U38: Name | V38: Club | W38: Age Category | X38: Claim | Y38: Overall Position | Z38: Category Position | AB38: Name | AC38: Club | AD38: Age Category | AE38: Claim | AF38: Overall Position | AG38: Category Position | AI38: Name | AJ38: Club | AK38: Age Category | AL38: Claim | AM38: Overall Position | AN38: Category Position
A39: Russell Cook | B39: WJ | C39: S | D39: 1 | E39: 37 | G39: Michael Waddington | H39: WJ | I39: S | J39: 1 | K39: 1 | L39: 1 | N39: Andrew Mynott | O39: WJ | P39: V40 | Q39: 1 | R39: 2 | S39: 1 | U39: Rob Lowe | V39: HRC | W39: V50 | X39: 1 | Y39: 5 | Z39: 1 | AB39: Ian MacDougall | AC39: SS | AD39: V60 | AE39: 1 | AF39: 28 | AG39: 1 | AI39: John Tennant | AJ39: HRC | AK39: V70 | AL39: 1 | AM39: 79 | AN39: 1
A40: Alexander Chappell | B40: WJ | C40: S | D40: 1 | E40: 38 | G40: Dylan Van Wyk | H40: BS | I40: S | J40: 1 | K40: 3 | L40: 2 | N40: Kevin Francis | O40: WJ | P40: V40 | Q40: 1 | R40: 8 | S40: 2 | U40: Robert Thorpe | V40: BS | W40: V50 | X40: 1 | Y40: 12 | Z40: 2 | AB40: Toby Lumsden | AC40: SS | AD40: V60 | AE40: 1 | AF40: 54 | AG40: 2 | AI40: Nick Cheal | AJ40: WJ | AK40: V70 | AL40: 1 | AM40: 89 | AN40: 2
A41: Gordon Mcleod | B41: BS | C41: S | D41: 1 | E41: 39 | G41: Tim Brignall | H41: WJ | I41: S | J41: 1 | K41: 4 | L41: 3 | N41: Nick Axam | O41: WJ | P41: V40 | Q41: 1 | R41: 11 | S41: 3 | U41: Kevin Sambridge | V41: WJ | W41: V50 | X41: 1 | Y41: 15 | Z41: 3 | AB41: Peter Beatty | AC41: BS | AD41: V60 | AE41: 1 | AF41: 61 | AG41: 3 | AI41: Jacobus Van Der Poel | AJ41: HRC | AK41: V70 | AL41: 1 | AM41: 91 | AN41: 3
A42: Marco Arcidiacono | B42: SS | C42: V50 | D42: 1 | E42: 40 | G42: David Craddock | H42: WJ | I42: S | J42: 1 | K42: 6 | L42: 4 | N42: Keir Mann | O42: BS | P42: V40 | Q42: 1 | R42: 14 | S42: 4 | U42: Gary Jones | V42: BS | W42: V50 | X42: 1 | Y42: 32 | Z42: 4 | AB42: Peter Winfield | AC42: BS | AD42: V60 | AE42: 1 | AF42: 69 | AG42: 4 | AI42: Colin Naman | AJ42: WJ | AK42: V70 | AL42: 1 | AM42: 92 | AN42: 4
A43: Iain Cumming | B43: SS | C43: S | D43: 1 | E43: 41 | G43: Liam Struwe | H43: WJ | I43: S | J43: 1 | K43: 7 | L43: 5 | N43: Tim McMahon | O43: SS | P43: V40 | Q43: 1 | R43: 17 | S43: 5 | U43: Marco Arcidiacono | V43: SS | W43: V50 | X43: 1 | Y43: 40 | Z43: 5 | AB43: Sean Flynn | AC43: HRC | AD43: V60 | AE43: 1 | AF43: 71 | AG43: 5
A44: Alan Taylor | B44: WJ | C44: V50 | D44: 1 | E44: 42 | G44: Will Breese | H44: WJ | I44: S | J44: 1 | K44: 9 | L44: 6 | N44: Kirk Crudgington | O44: HRC | P44: V40 | Q44: 1 | R44: 18 | S44: 6 | U44: Alan Taylor | V44: WJ | W44: V50 | X44: 1 | Y44: 42 | Z44: 6 | AB44: Arthur Oliva | AC44: SS | AD44: V60 | AE44: 1 | AF44: 73 | AG44: 6
A45: Mark Sanz | B45: WJ | C45: V50 | D45: 1 | E45: 43 | G45: Ian Perrins | H45: WJ | I45: S | J45: 1 | K45: 10 | L45: 7 | N45: Neil Bull | O45: WJ | P45: V40 | Q45: 1 | R45: 19 | S45: 7 | U45: Mark Sanz | V45: WJ | W45: V50 | X45: 1 | Y45: 43 | Z45: 7 | AB45: Chris Brolly | AC45: BS | AD45: V60 | AE45: 1 | AF45: 80 | AG45: 7
A46: Chris Mella | B46: HRC | C46: S | D46: 1 | E46: 44 | G46: Matt McRandal | H46: BS | I46: S | J46: 1 | K46: 13 | L46: 8 | N46: Vincent Riviere | O46: WJ | P46: V40 | Q46: 1 | R46: 20 | S46: 8 | U46: Dominic Mason | V46: BS | W46: V50 | X46: 1 | Y46: 47 | Z46: 8 | AB46: Clive Smith | AC46: WJ | AD46: V60 | AE46: 1 | AF46: 81 | AG46: 8
A47: Marc Witham | B47: HRC | C47: V40 | D47: 1 | E47: 45 | G47: Tom Porter | H47: WJ | I47: S | J47: 1 | K47: 16 | L47: 9 | N47: Ryan Smith | O47: HRC | P47: V40 | Q47: 1 | R47: 21 | S47: 9 | U47: Alan Knightley | V47: HRC | W47: V50 | X47: 1 | Y47: 49 | Z47: 9 | AB47: Alan Rafferty | AC47: WJ | AD47: V60 | AE47: 1 | AF47: 82 | AG47: 9
A48: Timothy Wood | B48: HRC | C48: S | D48: 1 | E48: 46 | G48: Christian Golebiowski | H48: HRC | I48: S | J48: 1 | K48: 25 | L48: 10 | N48: Adam Chapman | O48: BS | P48: V40 | Q48: 1 | R48: 22 | S48: 10 | U48: Chris Chew | V48: BS | W48: V50 | X48: 1 | Y48: 50 | Z48: 10 | AB48: Ian Penson | AC48: BS | AD48: V60 | AE48: 1 | AF48: 84 | AG48: 10
A49: Dominic Mason | B49: BS | C49: V50 | D49: 1 | E49: 47 | G49: Stefan Gauntlett | H49: WJ | I49: S | J49: 1 | K49: 26 | L49: 11 | N49: Matthew Billis | O49: SS | P49: V40 | Q49: 1 | R49: 23 | S49: 11 | U49: Chris Burgess | V49: HRC | W49: V50 | X49: 1 | Y49: 51 | Z49: 11 | AB49: Roger Partridge | AC49: WJ | AD49: V60 | AE49: 1 | AF49: 86 | AG49: 11
A50: Jonathan Hall | B50: WJ | C50: V40 | D50: 1 | E50: 48 | G50: Benjamin Usher | H50: HRC | I50: S | J50: 1 | K50: 30 | L50: 12 | N50: Matt Brown | O50: WJ | P50: V40 | Q50: 1 | R50: 24 | S50: 12 | U50: John Kennedy | V50: BS | W50: V50 | X50: 1 | Y50: 62 | Z50: 12 | AB50: Phil Hudson | AC50: WJ | AD50: V60 | AE50: 1 | AF50: 90 | AG50: 12
A51: Alan Knightley | B51: HRC | C51: V50 | D51: 1 | E51: 49 | G51: Mikey Wilce | H51: WJ | I51: S | J51: 1 | K51: 34 | L51: 13 | N51: Matthew Cole | O51: BS | P51: V40 | Q51: 1 | R51: 27 | S51: 13 | U51: Paul Brennan | V51: WJ | W51: V50 | X51: 1 | Y51: 63 | Z51: 13
A52: Chris Chew | B52: BS | C52: V50 | D52: 1 | E52: 50 | G52: Jermaine Shand | H52: HRC | I52: S | J52: 1 | K52: 36 | L52: 14 | N52: Christopher Donnelly | O52: HRC | P52: V40 | Q52: 1 | R52: 29 | S52: 14 | U52: Neil Halls | V52: SS | W52: V50 | X52: 1 | Y52: 64 | Z52: 14
A53: Chris Burgess | B53: HRC | C53: V50 | D53: 1 | E53: 51 | G53: Russell Cook | H53: WJ | I53: S | J53: 1 | K53: 37 | L53: 15 | N53: Jamie Higgs | O53: WJ | P53: V40 | Q53: 1 | R53: 31 | S53: 15 | U53: Miguel Luque | V53: HRC | W53: V50 | X53: 1 | Y53: 67 | Z53: 15
A54: Adam Watson | B54: WJ | C54: V40 | D54: 1 | E54: 52 | G54: Alexander Chappell | H54: WJ | I54: S | J54: 1 | K54: 38 | L54: 16 | N54: Lee Webber | O54: HRC | P54: V40 | Q54: 1 | R54: 33 | S54: 16 | U54: John Bull | V54: HRC | W54: V50 | X54: 1 | Y54: 68 | Z54: 16
A55: James Dowsett | B55: HRC | C55: V40 | D55: 1 | E55: 53 | G55: Gordon Mcleod | H55: BS | I55: S | J55: 1 | K55: 39 | L55: 17 | N55: Colin Baker | O55: HRC | P55: V40 | Q55: 1 | R55: 35 | S55: 17 | U55: Paul Dixon | V55: HRC | W55: V50 | X55: 1 | Y55: 74 | Z55: 17
A56: Toby Lumsden | B56: SS | C56: V60 | D56: 1 | E56: 54 | G56: Iain Cumming | H56: SS | I56: S | J56: 1 | K56: 41 | L56: 18 | N56: Marc Witham | O56: HRC | P56: V40 | Q56: 1 | R56: 45 | S56: 18 | U56: Gary Mead | V56: HRC | W56: V50 | X56: 1 | Y56: 75 | Z56: 18
A57: Andrew Biggs | B57: WJ | C57: V40 | D57: 1 | E57: 55 | G57: Chris Mella | H57: HRC | I57: S | J57: 1 | K57: 44 | L57: 19 | N57: Jonathan Hall | O57: WJ | P57: V40 | Q57: 1 | R57: 48 | S57: 19 | U57: Lee Pickering | V57: BS | W57: V50 | X57: 1 | Y57: 83 | Z57: 19
A58: Bradley Power | B58: HRC | C58: S | D58: 1 | E58: 56 | G58: Timothy Wood | H58: HRC | I58: S | J58: 1 | K58: 46 | L58: 20 | N58: Adam Watson | O58: WJ | P58: V40 | Q58: 1 | R58: 52 | S58: 20 | U58: John Taylor | V58: HRC | W58: V50 | X58: 1 | Y58: 88 | Z58: 20
A59: James Randall | B59: WJ | C59: V40 | D59: 1 | E59: 57 | G59: Bradley Power | H59: HRC | I59: S | J59: 1 | K59: 56 | L59: 21 | N59: James Dowsett | O59: HRC | P59: V40 | Q59: 1 | R59: 53 | S59: 21
A60: Samuel Brennan | B60: BS | C60: S | D60: 1 | E60: 58 | G60: Samuel Brennan | H60: BS | I60: S | J60: 1 | K60: 58 | L60: 22 | N60: Andrew Biggs | O60: WJ | P60: V40 | Q60: 1 | R60: 55 | S60: 22
A61: Jamie Smith | B61: BS | C61: V40 | D61: 1 | E61: 59 | G61: Sam Spurgeon | H61: HRC | I61: S | J61: 1 | K61: 60 | L61: 23 | N61: James Randall | O61: WJ | P61: V40 | Q61: 1 | R61: 57 | S61: 23
A62: Sam Spurgeon | B62: HRC | C62: S | D62: 1 | E62: 60 | G62: Lee Boswell | H62: BS | I62: S | J62: 1 | K62: 70 | L62: 24 | N62: Jamie Smith | O62: BS | P62: V40 | Q62: 1 | R62: 59 | S62: 24
A63: Peter Beatty | B63: BS | C63: V60 | D63: 1 | E63: 61 | G63: Colin Langbridge | H63: HRC | I63: S | J63: 1 | K63: 85 | L63: 25 | N63: NEIL GAGE | O63: BS | P63: V40 | Q63: 1 | R63: 65 | S63: 25
A64: John Kennedy | B64: BS | C64: V50 | D64: 1 | E64: 62 | N64: Richard Foweraker | O64: BS | P64: V40 | Q64: 1 | R64: 66 | S64: 26
A65: Paul Brennan | B65: WJ | C65: V50 | D65: 1 | E65: 63 | N65: Paul Andrew | O65: BS | P65: V40 | Q65: 1 | R65: 72 | S65: 27
A66: Neil Halls | B66: SS | C66: V50 | D66: 1 | E66: 64 | N66: Shane Tomlinson | O66: BS | P66: V40 | Q66: 1 | R66: 76 | S66: 28
A67: NEIL GAGE | B67: BS | C67: V40 | D67: 1 | E67: 65 | N67: Alistair Cooke | O67: SS | P67: V40 | Q67: 1 | R67: 77 | S67: 29
A68: Richard Foweraker | B68: BS | C68: V40 | D68: 1 | E68: 66 | N68: Jamie Olsen Ferreira | O68: HRC | P68: V40 | Q68: 1 | R68: 78 | S68: 30
A69: Miguel Luque | B69: HRC | C69: V50 | D69: 1 | E69: 67 | N69: Michael Robey | O69: HRC | P69: V40 | Q69: 1 | R69: 87 | S69: 31
A70: John Bull | B70: HRC | C70: V50 | D70: 1 | E70: 68 | N70: Tj Rowlands | O70: HRC | P70: V40 | Q70: 1 | R70: 93 | S70: 32
A71: Peter Winfield | B71: BS | C71: V60 | D71: 1 | E71: 69
A72: Lee Boswell | B72: BS | C72: S | D72: 1 | E72: 70
A73: Sean Flynn | B73: HRC | C73: V60 | D73: 1 | E73: 71
A74: Paul Andrew | B74: BS | C74: V40 | D74: 1 | E74: 72
A75: Arthur Oliva | B75: SS | C75: V60 | D75: 1 | E75: 73
A76: Paul Dixon | B76: HRC | C76: V50 | D76: 1 | E76: 74
A77: Gary Mead | B77: HRC | C77: V50 | D77: 1 | E77: 75
A78: Shane Tomlinson | B78: BS | C78: V40 | D78: 1 | E78: 76
A79: Alistair Cooke | B79: SS | C79: V40 | D79: 1 | E79: 77
A80: Jamie Olsen Ferreira | B80: HRC | C80: V40 | D80: 1 | E80: 78
A81: John Tennant | B81: HRC | C81: V70 | D81: 1 | E81: 79
A82: Chris Brolly | B82: BS | C82: V60 | D82: 1 | E82: 80
A83: Clive Smith | B83: WJ | C83: V60 | D83: 1 | E83: 81
A84: Alan Rafferty | B84: WJ | C84: V60 | D84: 1 | E84: 82
A85: Lee Pickering | B85: BS | C85: V50 | D85: 1 | E85: 83
A86: Ian Penson | B86: BS | C86: V60 | D86: 1 | E86: 84
A87: Colin Langbridge | B87: HRC | C87: S | D87: 1 | E87: 85
A88: Roger Partridge | B88: WJ | C88: V60 | D88: 1 | E88: 86
A89: Michael Robey | B89: HRC | C89: V40 | D89: 1 | E89: 87
A90: John Taylor | B90: HRC | C90: V50 | D90: 1 | E90: 88
A91: Nick Cheal | B91: WJ | C91: V70 | D91: 1 | E91: 89
A92: Phil Hudson | B92: WJ | C92: V60 | D92: 1 | E92: 90
A93: Jacobus Van Der Poel | B93: HRC | C93: V70 | D93: 1 | E93: 91
A94: Colin Naman | B94: WJ | C94: V70 | D94: 1 | E94: 92
A95: Tj Rowlands | B95: HRC | C95: V40 | D95: 1 | E95: 93

Sheet Race 2-Ladies
A1: Overall | G1: Ware Joggers | N1: Bishop's Stortford | U1: Saffron Striders | AB1: Harlow Running & Tri Club
A2: Name | B2: Club | C2: Age Category | D2: Claim | E2: Position | G2: Name | H2: Club | I2: Age Category | J2: Claim | K2: Position | N2: Name | O2: Club | P2: Age Category | Q2: Claim | R2: Position | U2: Name | V2: Club | W2: Age Category | X2: Claim | Y2: Position | AB2: Name | AC2: Club | AD2: Age Category | AE2: Claim | AF2: Position | AI2: Name | AJ2: Club | AK2: Age Category | AL2: Claim | AM2: Position
A3: Katy Woodward | B3: WJ | C3: V35 | D3: 1 | E3: 1 | G3: Katy Woodward | H3: WJ | I3: V35 | J3: 1 | K3: 1 | L3: 1 | N3: Vicky Simpson | O3: BS | P3: V45 | Q3: 1 | R3: 5 | S3: 5 | U3: Zib Gotto | V3: SS | W3: V45 | X3: 1 | Y3: 7 | Z3: 7 | AB3: Terri Wiley | AC3: HRC | AD3: V35 | AE3: 1 | AF3: 2 | AG3: 2
A4: Terri Wiley | B4: HRC | C4: V35 | D4: 1 | E4: 2 | G4: Katrina Dobson | H4: WJ | I4: V35 | J4: 1 | K4: 3 | L4: 3 | N4: Sophie Barc | O4: BS | P4: V45 | Q4: 1 | R4: 6 | S4: 6 | U4: Anne Dawson | V4: SS | W4: V35 | X4: 1 | Y4: 21 | Z4: 21 | AB4: Catherine Ridge | AC4: HRC | AD4: V35 | AE4: 1 | AF4: 10 | AG4: 10
A5: Katrina Dobson | B5: WJ | C5: V35 | D5: 1 | E5: 3 | G5: Marianne Mitchell | H5: WJ | I5: V45 | J5: 1 | K5: 4 | L5: 4 | N5: Eilidh Malcolm | O5: BS | P5: S | Q5: 1 | R5: 8 | S5: 8 | U5: Charlotte Diggins | V5: SS | W5: V45 | X5: 1 | Y5: 33 | Z5: 33 | AB5: Fieke Blackwell | AC5: HRC | AD5: V35 | AE5: 1 | AF5: 11 | AG5: 11
A6: Marianne Mitchell | B6: WJ | C6: V45 | D6: 1 | E6: 4 | G6: Susan Millward | H6: WJ | I6: V45 | J6: 1 | K6: 9 | L6: 9 | N6: Lindsey Ireland | O6: BS | P6: S | Q6: 1 | R6: 13 | S6: 13 | AB6: Donna Milton | AC6: HRC | AD6: V45 | AE6: 1 | AF6: 14 | AG6: 14
A7: Vicky Simpson | B7: BS | C7: V45 | D7: 1 | E7: 5 | G7: Lucy Dupuis | H7: WJ | I7: V45 | J7: 1 | K7: 12 | L7: 12 | N7: Chloe Boyce | O7: BS | P7: V45 | Q7: 1 | R7: 29 | S7: 29 | AB7: Linda Helm-Manley | AC7: HRC | AD7: V55 | AE7: 1 | AF7: 17 | AG7: 17
A8: Sophie Barc | B8: BS | C8: V45 | D8: 1 | E8: 6 | G8: Anthea Francis | H8: WJ | I8: V45 | J8: 1 | K8: 15 | L8: 15 | N8: Jen Burke | O8: BS | P8: V35 | Q8: 1 | R8: 34 | S8: 34 | AB8: Allison Beeton | AC8: HRC | AD8: V55 | AE8: 1 | AF8: 18 | AG8: 18
A9: Zib Gotto | B9: SS | C9: V45 | D9: 1 | E9: 7 | G9: Gemma Charville | H9: WJ | I9: V35 | J9: 1 | K9: 16 | L9: 16 | N9: Peijie Zhu | O9: BS | P9: V45 | Q9: 1 | R9: 35 | S9: 35 | AB9: Ella Wager | AC9: HRC | AD9: S | AE9: 1 | AF9: 19 | AG9: 19
A10: Eilidh Malcolm | B10: BS | C10: S | D10: 1 | E10: 8 | G10: Jemina Punni | H10: WJ | I10: V35 | J10: 1 | K10: 23 | L10: 23 | N10: Ellen Brooks | O10: BS | P10: V45 | Q10: 1 | R10: 39 | S10: 39 | AB10: Louise Cootes | AC10: HRC | AD10: V35 | AE10: 1 | AF10: 20 | AG10: 20
A11: Susan Millward | B11: WJ | C11: V45 | D11: 1 | E11: 9 | G11: Lisa Roberts | H11: WJ | I11: V45 | J11: 1 | K11: 24 | N11: Frances Iwaschkin | O11: BS | P11: V45 | Q11: 1 | R11: 42 | AB11: Sandra Rust | AC11: HRC | AD11: V55 | AE11: 1 | AF11: 22
A12: Catherine Ridge | B12: HRC | C12: V35 | D12: 1 | E12: 10 | G12: Pamela Wilson | H12: WJ | I12: V65 | J12: 1 | K12: 27 | N12: Victoria Cutler | O12: BS | P12: V35 | Q12: 1 | R12: 48 | AB12: Kerry Mavris | AC12: HRC | AD12: V45 | AE12: 1 | AF12: 25
A13: Fieke Blackwell | B13: HRC | C13: V35 | D13: 1 | E13: 11 | G13: Jennifer Evans | H13: WJ | I13: S | J13: 1 | K13: 28 | N13: Sarah Godfrey | O13: BS | P13: V45 | Q13: 1 | R13: 49 | AB13: Louise Kedge | AC13: HRC | AD13: V35 | AE13: 1 | AF13: 26
A14: Lucy Dupuis | B14: WJ | C14: V45 | D14: 1 | E14: 12 | G14: Sam Rowe | H14: WJ | I14: V55 | J14: 1 | K14: 30 | N14: Fay Dodgen | O14: BS | P14: V55 | Q14: 1 | R14: 51 | AB14: Gail Nicholls | AC14: HRC | AD14: V55 | AE14: 1 | AF14: 31
A15: Lindsey Ireland | B15: BS | C15: S | D15: 1 | E15: 13 | G15: Deborah Amies | H15: WJ | I15: V55 | J15: 1 | K15: 32 | N15: Jennifer Frewin | O15: BS | P15: V45 | Q15: 1 | R15: 52 | AB15: Kelly Mcgill | AC15: HRC | AD15: V45 | AE15: 1 | AF15: 36
A16: Donna Milton | B16: HRC | C16: V45 | D16: 1 | E16: 14 | G16: Tracy Brennan | H16: WJ | I16: V45 | J16: 1 | K16: 43 | N16: Clare Gallagher | O16: BS | P16: V45 | Q16: 1 | R16: 53 | AB16: Emma Luck | AC16: HRC | AD16: V45 | AE16: 1 | AF16: 37
A17: Anthea Francis | B17: WJ | C17: V45 | D17: 1 | E17: 15 | G17: Jeanette Collins | H17: WJ | I17: V55 | J17: 1 | K17: 44 | AB17: Brady Ramsay | AC17: HRC | AD17: V45 | AE17: 1 | AF17: 38
A18: Gemma Charville | B18: WJ | C18: V35 | D18: 1 | E18: 16 | G18: Paula Gollop | H18: WJ | I18: V35 | J18: 1 | K18: 45 | AB18: Anna Robey | AC18: HRC | AD18: V35 | AE18: 1 | AF18: 40
A19: Linda Helm-Manley | B19: HRC | C19: V55 | D19: 1 | E19: 17 | G19: Anne Ramsden | H19: WJ | I19: V65 | J19: 1 | K19: 46 | AB19: Lucy Mella-Davis | AC19: HRC | AD19: V35 | AE19: 1 | AF19: 41
A20: Allison Beeton | B20: HRC | C20: V55 | D20: 1 | E20: 18 | G20: Jenni Viner | H20: WJ | I20: V65 | J20: 1 | K20: 47
A21: Ella Wager | B21: HRC | C21: S | D21: 1 | E21: 19 | G21: Jacqui Barnard | H21: WJ | I21: V55 | J21: 1 | K21: 50
A22: Louise Cootes | B22: HRC | C22: V35 | D22: 1 | E22: 20 | G22: Rosalind Hitchen | H22: WJ | I22: V55 | J22: 1 | K22: 54
A23: Anne Dawson | B23: SS | C23: V35 | D23: 1 | E23: 21 | G23: Claron Riviere | H23: WJ | I23: V65 | J23: 1 | K23: 55
A24: Sandra Rust | B24: HRC | C24: V55 | D24: 1 | E24: 22
A25: Jemina Punni | B25: WJ | C25: V35 | D25: 1 | E25: 23
A26: Lisa Roberts | B26: WJ | C26: V45 | D26: 1 | E26: 24 | G26: Senior | N26: V35 | U26: V45 | AB26: V55 | AI26: V65
A27: Kerry Mavris | B27: HRC | C27: V45 | D27: 1 | E27: 25 | G27: Name | H27: Club | I27: Age Category | J27: Claim | K27: Overall Position | L27: Category Position | N27: Name | O27: Club | P27: Age Category | Q27: Claim | R27: Overall Position | S27: Category Position | U27: Name | V27: Club | W27: Age Category | X27: Claim | Y27: Overall Position | Z27: Category Position | AB27: Name | AC27: Club | AD27: Age Category | AE27: Claim | AF27: Overall Position | AG27: Category Position | AI27: Name | AJ27: Club | AK27: Age Category | AL27: Claim | AM27: Overall Position | AN27: Category Position
A28: Louise Kedge | B28: HRC | C28: V35 | D28: 1 | E28: 26 | G28: Eilidh Malcolm | H28: BS | I28: S | J28: 1 | K28: 8 | L28: 1 | N28: Katy Woodward | O28: WJ | P28: V35 | Q28: 1 | R28: 1 | S28: 1 | U28: Marianne Mitchell | V28: WJ | W28: V45 | X28: 1 | Y28: 4 | Z28: 1 | AB28: Linda Helm-Manley | AC28: HRC | AD28: V55 | AE28: 1 | AF28: 17 | AG28: 1 | AI28: Pamela Wilson | AJ28: WJ | AK28: V65 | AL28: 1 | AM28: 27 | AN28: 1
A29: Pamela Wilson | B29: WJ | C29: V65 | D29: 1 | E29: 27 | G29: Lindsey Ireland | H29: BS | I29: S | J29: 1 | K29: 13 | L29: 2 | N29: Terri Wiley | O29: HRC | P29: V35 | Q29: 1 | R29: 2 | S29: 2 | U29: Vicky Simpson | V29: BS | W29: V45 | X29: 1 | Y29: 5 | Z29: 2 | AB29: Allison Beeton | AC29: HRC | AD29: V55 | AE29: 1 | AF29: 18 | AG29: 2 | AI29: Anne Ramsden | AJ29: WJ | AK29: V65 | AL29: 1 | AM29: 46 | AN29: 2
A30: Jennifer Evans | B30: WJ | C30: S | D30: 1 | E30: 28 | G30: Ella Wager | H30: HRC | I30: S | J30: 1 | K30: 19 | L30: 3 | N30: Katrina Dobson | O30: WJ | P30: V35 | Q30: 1 | R30: 3 | S30: 3 | U30: Sophie Barc | V30: BS | W30: V45 | X30: 1 | Y30: 6 | Z30: 3 | AB30: Sandra Rust | AC30: HRC | AD30: V55 | AE30: 1 | AF30: 22 | AG30: 3 | AI30: Jenni Viner | AJ30: WJ | AK30: V65 | AL30: 1 | AM30: 47 | AN30: 3
A31: Chloe Boyce | B31: BS | C31: V45 | D31: 1 | E31: 29 | G31: Jennifer Evans | H31: WJ | I31: S | J31: 1 | K31: 28 | L31: 4 | N31: Catherine Ridge | O31: HRC | P31: V35 | Q31: 1 | R31: 10 | S31: 4 | U31: Zib Gotto | V31: SS | W31: V45 | X31: 1 | Y31: 7 | Z31: 4 | AB31: Sam Rowe | AC31: WJ | AD31: V55 | AE31: 1 | AF31: 30 | AG31: 4 | AI31: Claron Riviere | AJ31: WJ | AK31: V65 | AL31: 1 | AM31: 55 | AN31: 4
A32: Sam Rowe | B32: WJ | C32: V55 | D32: 1 | E32: 30 | N32: Fieke Blackwell | O32: HRC | P32: V35 | Q32: 1 | R32: 11 | S32: 5 | U32: Susan Millward | V32: WJ | W32: V45 | X32: 1 | Y32: 9 | Z32: 5 | AB32: Gail Nicholls | AC32: HRC | AD32: V55 | AE32: 1 | AF32: 31 | AG32: 5
A33: Gail Nicholls | B33: HRC | C33: V55 | D33: 1 | E33: 31 | N33: Gemma Charville | O33: WJ | P33: V35 | Q33: 1 | R33: 16 | S33: 6 | U33: Lucy Dupuis | V33: WJ | W33: V45 | X33: 1 | Y33: 12 | Z33: 6 | AB33: Deborah Amies | AC33: WJ | AD33: V55 | AE33: 1 | AF33: 32 | AG33: 6
A34: Deborah Amies | B34: WJ | C34: V55 | D34: 1 | E34: 32 | N34: Louise Cootes | O34: HRC | P34: V35 | Q34: 1 | R34: 20 | S34: 7 | U34: Donna Milton | V34: HRC | W34: V45 | X34: 1 | Y34: 14 | Z34: 7 | AB34: Jeanette Collins | AC34: WJ | AD34: V55 | AE34: 1 | AF34: 44 | AG34: 7
A35: Charlotte Diggins | B35: SS | C35: V45 | D35: 1 | E35: 33 | N35: Anne Dawson | O35: SS | P35: V35 | Q35: 1 | R35: 21 | S35: 8 | U35: Anthea Francis | V35: WJ | W35: V45 | X35: 1 | Y35: 15 | Z35: 8 | AB35: Jacqui Barnard | AC35: WJ | AD35: V55 | AE35: 1 | AF35: 50 | AG35: 8
A36: Jen Burke | B36: BS | C36: V35 | D36: 1 | E36: 34 | N36: Jemina Punni | O36: WJ | P36: V35 | Q36: 1 | R36: 23 | S36: 9 | U36: Lisa Roberts | V36: WJ | W36: V45 | X36: 1 | Y36: 24 | Z36: 9 | AB36: Fay Dodgen | AC36: BS | AD36: V55 | AE36: 1 | AF36: 51 | AG36: 9
A37: Peijie Zhu | B37: BS | C37: V45 | D37: 1 | E37: 35 | N37: Louise Kedge | O37: HRC | P37: V35 | Q37: 1 | R37: 26 | S37: 10 | U37: Kerry Mavris | V37: HRC | W37: V45 | X37: 1 | Y37: 25 | Z37: 10 | AB37: Rosalind Hitchen | AC37: WJ | AD37: V55 | AE37: 1 | AF37: 54 | AG37: 10
A38: Kelly Mcgill | B38: HRC | C38: V45 | D38: 1 | E38: 36 | N38: Jen Burke | O38: BS | P38: V35 | Q38: 1 | R38: 34 | S38: 11 | U38: Chloe Boyce | V38: BS | W38: V45 | X38: 1 | Y38: 29 | Z38: 11
A39: Emma Luck | B39: HRC | C39: V45 | D39: 1 | E39: 37 | N39: Anna Robey | O39: HRC | P39: V35 | Q39: 1 | R39: 40 | S39: 12 | U39: Charlotte Diggins | V39: SS | W39: V45 | X39: 1 | Y39: 33 | Z39: 12
A40: Brady Ramsay | B40: HRC | C40: V45 | D40: 1 | E40: 38 | N40: Lucy Mella-Davis | O40: HRC | P40: V35 | Q40: 1 | R40: 41 | S40: 13 | U40: Peijie Zhu | V40: BS | W40: V45 | X40: 1 | Y40: 35 | Z40: 13
A41: Ellen Brooks | B41: BS | C41: V45 | D41: 1 | E41: 39 | N41: Paula Gollop | O41: WJ | P41: V35 | Q41: 1 | R41: 45 | S41: 14 | U41: Kelly Mcgill | V41: HRC | W41: V45 | X41: 1 | Y41: 36 | Z41: 14
A42: Anna Robey | B42: HRC | C42: V35 | D42: 1 | E42: 40 | N42: Victoria Cutler | O42: BS | P42: V35 | Q42: 1 | R42: 48 | S42: 15 | U42: Emma Luck | V42: HRC | W42: V45 | X42: 1 | Y42: 37 | Z42: 15
A43: Lucy Mella-Davis | B43: HRC | C43: V35 | D43: 1 | E43: 41 | U43: Brady Ramsay | V43: HRC | W43: V45 | X43: 1 | Y43: 38 | Z43: 16
A44: Frances Iwaschkin | B44: BS | C44: V45 | D44: 1 | E44: 42 | U44: Ellen Brooks | V44: BS | W44: V45 | X44: 1 | Y44: 39 | Z44: 17
A45: Tracy Brennan | B45: WJ | C45: V45 | D45: 1 | E45: 43 | U45: Frances Iwaschkin | V45: BS | W45: V45 | X45: 1 | Y45: 42 | Z45: 18
A46: Jeanette Collins | B46: WJ | C46: V55 | D46: 1 | E46: 44 | U46: Tracy Brennan | V46: WJ | W46: V45 | X46: 1 | Y46: 43 | Z46: 19
A47: Paula Gollop | B47: WJ | C47: V35 | D47: 1 | E47: 45 | U47: Sarah Godfrey | V47: BS | W47: V45 | X47: 1 | Y47: 49 | Z47: 20
A48: Anne Ramsden | B48: WJ | C48: V65 | D48: 1 | E48: 46 | U48: Jennifer Frewin | V48: BS | W48: V45 | X48: 1 | Y48: 52 | Z48: 21
A49: Jenni Viner | B49: WJ | C49: V65 | D49: 1 | E49: 47 | U49: Clare Gallagher | V49: BS | W49: V45 | X49: 1 | Y49: 53 | Z49: 22
A50: Victoria Cutler | B50: BS | C50: V35 | D50: 1 | E50: 48
A51: Sarah Godfrey | B51: BS | C51: V45 | D51: 1 | E51: 49
A52: Jacqui Barnard | B52: WJ | C52: V55 | D52: 1 | E52: 50
A53: Fay Dodgen | B53: BS | C53: V55 | D53: 1 | E53: 51
A54: Jennifer Frewin | B54: BS | C54: V45 | D54: 1 | E54: 52
A55: Clare Gallagher | B55: BS | C55: V45 | D55: 1 | E55: 53
A56: Rosalind Hitchen | B56: WJ | C56: V55 | D56: 1 | E56: 54
A57: Claron Riviere | B57: WJ | C57: V65 | D57: 1 | E57: 55

Sheet Race 3-Men
A1: Overall | G1: Ware Joggers | N1: Bishop's Stortford | U1: Saffron Striders | AB1: Harlow Running & Tri Club
A2: Name | B2: Club | C2: Age Category | D2: Claim | E2: Position | G2: Name | H2: Club | I2: Age Category | J2: Claim | K2: Position | N2: Name | O2: Club | P2: Age Category | Q2: Claim | R2: Position | U2: Name | V2: Club | W2: Age Category | X2: Claim | Y2: Position | AB2: Name | AC2: Club | AD2: Age Category | AE2: Claim | AF2: Position | AI2: Name | AJ2: Club | AK2: Age Category | AL2: Claim | AM2: Position
A3: Michael Waddington | B3: WJ | C3: S | D3: 1 | E3: 1 | G3: Michael Waddington | H3: WJ | I3: S | J3: 1 | K3: 1 | L3: 1 | N3: Dylan Van Wyk | O3: BS | P3: S | Q3: 1 | R3: 3 | S3: 3 | U3: Bryn Reynolds | V3: SS | W3: S | X3: 2 | Y3: 4 | Z3: 4 | AB3: Rob Lowe | AC3: HRC | AD3: V50 | AE3: 1 | AF3: 9 | AG3: 9
A4: Andrew Mynott | B4: WJ | C4: V40 | D4: 1 | E4: 2 | G4: Andrew Mynott | H4: WJ | I4: V40 | J4: 1 | K4: 2 | L4: 2 | N4: Robert Thorpe | O4: BS | P4: V50 | Q4: 1 | R4: 11 | S4: 11 | U4: Tim McMahon | V4: SS | W4: V40 | X4: 1 | Y4: 20 | Z4: 20 | AB4: Martyn Coulter | AC4: HRC | AD4: S | AE4: 1 | AF4: 16 | AG4: 16
A5: Dylan Van Wyk | B5: BS | C5: S | D5: 1 | E5: 3 | G5: Ian Perrins | H5: WJ | I5: S | J5: 1 | K5: 5 | L5: 5 | N5: Keir Mann | O5: BS | P5: V40 | Q5: 1 | R5: 14 | S5: 14 | U5: Chris Dodge | V5: SS | W5: V50 | X5: 1 | Y5: 23 | Z5: 23 | AB5: Kirk Crudgington | AC5: HRC | AD5: V40 | AE5: 1 | AF5: 22 | AG5: 22
A6: Bryn Reynolds | B6: SS | C6: S | D6: 2 | E6: 4 | G6: David Craddock | H6: WJ | I6: S | J6: 1 | K6: 6 | L6: 6 | N6: Henry Ward | O6: BS | P6: S | Q6: 1 | R6: 15 | S6: 15 | U6: Matthew Billis | V6: SS | W6: V40 | X6: 1 | Y6: 26 | Z6: 26 | AB6: Ryan Smith | AC6: HRC | AD6: V40 | AE6: 1 | AF6: 25 | AG6: 25
A7: Ian Perrins | B7: WJ | C7: S | D7: 1 | E7: 5 | G7: Liam Struwe | H7: WJ | I7: S | J7: 1 | K7: 7 | L7: 7 | N7: Peter Jurd | O7: BS | P7: V40 | Q7: 1 | R7: 21 | S7: 21 | U7: Ian MacDougall | V7: SS | W7: V60 | X7: 1 | Y7: 28 | Z7: 28 | AB7: Benjamin Usher | AC7: HRC | AD7: S | AE7: 1 | AF7: 30 | AG7: 30
A8: David Craddock | B8: WJ | C8: S | D8: 1 | E8: 6 | G8: Tim Brignall | H8: WJ | I8: S | J8: 1 | K8: 8 | L8: 8 | N8: Gary Jones | O8: BS | P8: V50 | Q8: 1 | R8: 36 | S8: 36 | U8: Nigel Flynn | V8: SS | W8: V40 | X8: 1 | Y8: 34 | Z8: 34 | AB8: Lee Webber | AC8: HRC | AD8: V40 | AE8: 1 | AF8: 39 | AG8: 39
A9: Liam Struwe | B9: WJ | C9: S | D9: 1 | E9: 7 | G9: Kevin Francis | H9: WJ | I9: V40 | J9: 1 | K9: 10 | L9: 10 | N9: Gordon Mcleod | O9: BS | P9: S | Q9: 1 | R9: 38 | S9: 38 | U9: Marco Arcidiacono | V9: SS | W9: V50 | X9: 1 | Y9: 35 | Z9: 35 | AB9: Chris Burgess | AC9: HRC | AD9: V50 | AE9: 1 | AF9: 45 | AG9: 45
A10: Tim Brignall | B10: WJ | C10: S | D10: 1 | E10: 8 | G10: Nick Axam | H10: WJ | I10: V40 | J10: 1 | K10: 12 | L10: 12 | N10: Lee Boswell | O10: BS | P10: S | Q10: 1 | R10: 48 | S10: 48 | U10: Grant Sherbourne | V10: SS | W10: S | X10: 1 | Y10: 40 | Z10: 40 | AB10: Darren Tiley | AC10: HRC | AD10: V50 | AE10: 1 | AF10: 49 | AG10: 49
A11: Rob Lowe | B11: HRC | C11: V50 | D11: 1 | E11: 9 | G11: Will Breese | H11: WJ | I11: S | J11: 1 | K11: 13 | N11: Peter Beatty | O11: BS | P11: V60 | Q11: 1 | R11: 50 | U11: Ken Cumin | V11: SS | W11: V40 | X11: 1 | Y11: 42 | AB11: Iain Bulloch | AC11: HRC | AD11: V40 | AE11: 1 | AF11: 55
A12: Kevin Francis | B12: WJ | C12: V40 | D12: 1 | E12: 10 | G12: Neil Bull | H12: WJ | I12: V40 | J12: 1 | K12: 17 | N12: Jamie Smith | O12: BS | P12: V40 | Q12: 1 | R12: 52 | U12: Alan Jones | V12: SS | W12: V50 | X12: 1 | Y12: 47 | AB12: John Bull | AC12: HRC | AD12: V50 | AE12: 1 | AF12: 59
A13: Robert Thorpe | B13: BS | C13: V50 | D13: 1 | E13: 11 | G13: Mark Ford | H13: WJ | I13: S | J13: 1 | K13: 18 | N13: John Kennedy | O13: BS | P13: V50 | Q13: 1 | R13: 54 | U13: Toby Lumsden | V13: SS | W13: V60 | X13: 1 | Y13: 51 | AB13: Miguel Luque | AC13: HRC | AD13: V50 | AE13: 1 | AF13: 62
A14: Nick Axam | B14: WJ | C14: V40 | D14: 1 | E14: 12 | G14: Kevin Sambridge | H14: WJ | I14: V50 | J14: 1 | K14: 19 | N14: Richard Foweraker | O14: BS | P14: V40 | Q14: 1 | R14: 60 | U14: Ranky Barbelis | V14: SS | W14: S | X14: 1 | Y14: 53 | AB14: Paul Dixon | AC14: HRC | AD14: V50 | AE14: 1 | AF14: 70
A15: Will Breese | B15: WJ | C15: S | D15: 1 | E15: 13 | G15: Stefan Gauntlett | H15: WJ | I15: S | J15: 1 | K15: 24 | N15: Stuart Longley | O15: BS | P15: V40 | Q15: 1 | R15: 66 | U15: Neil Halls | V15: SS | W15: V50 | X15: 1 | Y15: 57 | AB15: Gary Mead | AC15: HRC | AD15: V50 | AE15: 1 | AF15: 79
A16: Keir Mann | B16: BS | C16: V40 | D16: 1 | E16: 14 | G16: Alexander Chappell | H16: WJ | I16: S | J16: 1 | K16: 27 | N16: Matthieu Militon | O16: BS | P16: V50 | Q16: 1 | R16: 67 | U16: Lewis Elmes | V16: SS | W16: S | X16: 1 | Y16: 58 | AB16: Alan Cootes | AC16: HRC | AD16: V60 | AE16: 1 | AF16: 87
A17: Henry Ward | B17: BS | C17: S | D17: 1 | E17: 15 | G17: Andrew Kavanagh | H17: WJ | I17: S | J17: 1 | K17: 29 | N17: Peter Winfield | O17: BS | P17: V60 | Q17: 1 | R17: 71 | U17: Nigel Poad | V17: SS | W17: V50 | X17: 1 | Y17: 61 | AB17: Alan Godbold | AC17: HRC | AD17: V50 | AE17: 1 | AF17: 95
A18: Martyn Coulter | B18: HRC | C18: S | D18: 1 | E18: 16 | G18: Jamie Higgs | H18: WJ | I18: V40 | J18: 1 | K18: 31 | N18: Paul Andrew | O18: BS | P18: V40 | Q18: 1 | R18: 72 | U18: Jayson Shuter | V18: SS | W18: S | X18: 2 | Y18: 63
A19: Neil Bull | B19: WJ | C19: V40 | D19: 1 | E19: 17 | G19: Andrew Biggs | H19: WJ | I19: V40 | J19: 1 | K19: 32 | N19: David Broughton | O19: BS | P19: V50 | Q19: 1 | R19: 73 | U19: Tony Bacon | V19: SS | W19: V40 | X19: 2 | Y19: 64
A20: Mark Ford | B20: WJ | C20: S | D20: 1 | E20: 18 | G20: Russell Cook | H20: WJ | I20: S | J20: 1 | K20: 33 | N20: Neal Groves | O20: BS | P20: V40 | Q20: 1 | R20: 74 | U20: John James | V20: SS | W20: V60 | X20: 1 | Y20: 65
A21: Kevin Sambridge | B21: WJ | C21: V50 | D21: 1 | E21: 19 | G21: Mark Sanz | H21: WJ | I21: V50 | J21: 1 | K21: 37 | N21: Paul Walker | O21: BS | P21: V50 | Q21: 1 | R21: 76 | U21: Arthur Oliva | V21: SS | W21: V60 | X21: 1 | Y21: 68
A22: Tim McMahon | B22: SS | C22: V40 | D22: 1 | E22: 20 | G22: Steven Argent | H22: WJ | I22: V60 | J22: 1 | K22: 41 | N22: Paul Dearlove | O22: BS | P22: V50 | Q22: 1 | R22: 78 | U22: Thomas Dudson | V22: SS | W22: S | X22: 1 | Y22: 69
A23: Peter Jurd | B23: BS | C23: V40 | D23: 1 | E23: 21 | G23: Alan Taylor | H23: WJ | I23: V50 | J23: 1 | K23: 43 | N23: Martin Howe | O23: BS | P23: V60 | Q23: 1 | R23: 81 | U23: Mark Fitzhenry | V23: SS | W23: V60 | X23: 1 | Y23: 83
A24: Kirk Crudgington | B24: HRC | C24: V40 | D24: 1 | E24: 22 | G24: Adam Watson | H24: WJ | I24: V40 | J24: 1 | K24: 44 | N24: Andrew Pooley | O24: BS | P24: V50 | Q24: 1 | R24: 84 | U24: Iain Rogers | V24: SS | W24: V50 | X24: 1 | Y24: 91
A25: Chris Dodge | B25: SS | C25: V50 | D25: 1 | E25: 23 | G25: James Randall | H25: WJ | I25: V40 | J25: 1 | K25: 46 | N25: Shane Tomlinson | O25: BS | P25: V40 | Q25: 1 | R25: 85
A26: Stefan Gauntlett | B26: WJ | C26: S | D26: 1 | E26: 24 | G26: Paul Brennan | H26: WJ | I26: V50 | J26: 1 | K26: 56 | N26: Chris Brolly | O26: BS | P26: V60 | Q26: 1 | R26: 86
A27: Ryan Smith | B27: HRC | C27: V40 | D27: 1 | E27: 25 | G27: Clive Smith | H27: WJ | I27: V60 | J27: 1 | K27: 75 | N27: Ian Penson | O27: BS | P27: V60 | Q27: 1 | R27: 89
A28: Matthew Billis | B28: SS | C28: V40 | D28: 1 | E28: 26 | G28: Simon Joyce | H28: WJ | I28: V50 | J28: 1 | K28: 77 | N28: Stuart Davenport | O28: BS | P28: V50 | Q28: 1 | R28: 90
A29: Alexander Chappell | B29: WJ | C29: S | D29: 1 | E29: 27 | G29: Phillip Barnard | H29: WJ | I29: V60 | J29: 1 | K29: 80 | N29: Rohit Dayama | O29: BS | P29: V40 | Q29: 1 | R29: 94
A30: Ian MacDougall | B30: SS | C30: V60 | D30: 1 | E30: 28 | G30: Roger Partridge | H30: WJ | I30: V60 | J30: 1 | K30: 88
A31: Andrew Kavanagh | B31: WJ | C31: S | D31: 1 | E31: 29 | G31: Nick Cheal | H31: WJ | I31: V70 | J31: 1 | K31: 92
A32: Benjamin Usher | B32: HRC | C32: S | D32: 1 | E32: 30 | G32: Colin Naman | H32: WJ | I32: V70 | J32: 1 | K32: 93
A33: Jamie Higgs | B33: WJ | C33: V40 | D33: 1 | E33: 31
A34: Andrew Biggs | B34: WJ | C34: V40 | D34: 1 | E34: 32
A35: Russell Cook | B35: WJ | C35: S | D35: 1 | E35: 33 | G35: Senior | N35: V40 | U35: V50 | AB35: V60 | AI35: V70
A36: Nigel Flynn | B36: SS | C36: V40 | D36: 1 | E36: 34 | G36: Name | H36: Club | I36: Age Category | J36: Claim | K36: Overall Position | L36: Category Position | N36: Name | O36: Club | P36: Age Category | Q36: Claim | R36: Overall Position | S36: Category Position | U36: Name | V36: Club | W36: Age Category | X36: Claim | Y36: Overall Position | Z36: Category Position | AB36: Name | AC36: Club | AD36: Age Category | AE36: Claim | AF36: Overall Position | AG36: Category Position | AI36: Name | AJ36: Club | AK36: Age Category | AL36: Claim | AM36: Overall Position | AN36: Category Position
A37: Marco Arcidiacono | B37: SS | C37: V50 | D37: 1 | E37: 35 | G37: Michael Waddington | H37: WJ | I37: S | J37: 1 | K37: 1 | L37: 1 | N37: Andrew Mynott | O37: WJ | P37: V40 | Q37: 1 | R37: 2 | S37: 1 | U37: Rob Lowe | V37: HRC | W37: V50 | X37: 1 | Y37: 9 | Z37: 1 | AB37: Ian MacDougall | AC37: SS | AD37: V60 | AE37: 1 | AF37: 28 | AG37: 1 | AI37: Nick Cheal | AJ37: WJ | AK37: V70 | AL37: 1 | AM37: 92 | AN37: 1
A38: Gary Jones | B38: BS | C38: V50 | D38: 1 | E38: 36 | G38: Dylan Van Wyk | H38: BS | I38: S | J38: 1 | K38: 3 | L38: 2 | N38: Kevin Francis | O38: WJ | P38: V40 | Q38: 1 | R38: 10 | S38: 2 | U38: Robert Thorpe | V38: BS | W38: V50 | X38: 1 | Y38: 11 | Z38: 2 | AB38: Steven Argent | AC38: WJ | AD38: V60 | AE38: 1 | AF38: 41 | AG38: 2 | AI38: Colin Naman | AJ38: WJ | AK38: V70 | AL38: 1 | AM38: 93 | AN38: 2
A39: Mark Sanz | B39: WJ | C39: V50 | D39: 1 | E39: 37 | G39: Bryn Reynolds | H39: SS | I39: S | J39: 2 | K39: 4 | L39: 3 | N39: Nick Axam | O39: WJ | P39: V40 | Q39: 1 | R39: 12 | S39: 3 | U39: Kevin Sambridge | V39: WJ | W39: V50 | X39: 1 | Y39: 19 | Z39: 3 | AB39: Peter Beatty | AC39: BS | AD39: V60 | AE39: 1 | AF39: 50 | AG39: 3
A40: Gordon Mcleod | B40: BS | C40: S | D40: 1 | E40: 38 | G40: Ian Perrins | H40: WJ | I40: S | J40: 1 | K40: 5 | L40: 4 | N40: Keir Mann | O40: BS | P40: V40 | Q40: 1 | R40: 14 | S40: 4 | U40: Chris Dodge | V40: SS | W40: V50 | X40: 1 | Y40: 23 | Z40: 4 | AB40: Toby Lumsden | AC40: SS | AD40: V60 | AE40: 1 | AF40: 51 | AG40: 4
A41: Lee Webber | B41: HRC | C41: V40 | D41: 1 | E41: 39 | G41: David Craddock | H41: WJ | I41: S | J41: 1 | K41: 6 | L41: 5 | N41: Neil Bull | O41: WJ | P41: V40 | Q41: 1 | R41: 17 | S41: 5 | U41: Marco Arcidiacono | V41: SS | W41: V50 | X41: 1 | Y41: 35 | Z41: 5 | AB41: John James | AC41: SS | AD41: V60 | AE41: 1 | AF41: 65 | AG41: 5
A42: Grant Sherbourne | B42: SS | C42: S | D42: 1 | E42: 40 | G42: Liam Struwe | H42: WJ | I42: S | J42: 1 | K42: 7 | L42: 6 | N42: Tim McMahon | O42: SS | P42: V40 | Q42: 1 | R42: 20 | S42: 6 | U42: Gary Jones | V42: BS | W42: V50 | X42: 1 | Y42: 36 | Z42: 6 | AB42: Arthur Oliva | AC42: SS | AD42: V60 | AE42: 1 | AF42: 68 | AG42: 6
A43: Steven Argent | B43: WJ | C43: V60 | D43: 1 | E43: 41 | G43: Tim Brignall | H43: WJ | I43: S | J43: 1 | K43: 8 | L43: 7 | N43: Peter Jurd | O43: BS | P43: V40 | Q43: 1 | R43: 21 | S43: 7 | U43: Mark Sanz | V43: WJ | W43: V50 | X43: 1 | Y43: 37 | Z43: 7 | AB43: Peter Winfield | AC43: BS | AD43: V60 | AE43: 1 | AF43: 71 | AG43: 7
A44: Ken Cumin | B44: SS | C44: V40 | D44: 1 | E44: 42 | G44: Will Breese | H44: WJ | I44: S | J44: 1 | K44: 13 | L44: 8 | N44: Kirk Crudgington | O44: HRC | P44: V40 | Q44: 1 | R44: 22 | S44: 8 | U44: Alan Taylor | V44: WJ | W44: V50 | X44: 1 | Y44: 43 | Z44: 8 | AB44: Clive Smith | AC44: WJ | AD44: V60 | AE44: 1 | AF44: 75 | AG44: 8
A45: Alan Taylor | B45: WJ | C45: V50 | D45: 1 | E45: 43 | G45: Henry Ward | H45: BS | I45: S | J45: 1 | K45: 15 | L45: 9 | N45: Ryan Smith | O45: HRC | P45: V40 | Q45: 1 | R45: 25 | S45: 9 | U45: Chris Burgess | V45: HRC | W45: V50 | X45: 1 | Y45: 45 | Z45: 9 | AB45: Phillip Barnard | AC45: WJ | AD45: V60 | AE45: 1 | AF45: 80 | AG45: 9
A46: Adam Watson | B46: WJ | C46: V40 | D46: 1 | E46: 44 | G46: Martyn Coulter | H46: HRC | I46: S | J46: 1 | K46: 16 | L46: 10 | N46: Matthew Billis | O46: SS | P46: V40 | Q46: 1 | R46: 26 | S46: 10 | U46: Alan Jones | V46: SS | W46: V50 | X46: 1 | Y46: 47 | Z46: 10 | AB46: Martin Howe | AC46: BS | AD46: V60 | AE46: 1 | AF46: 81 | AG46: 10
A47: Chris Burgess | B47: HRC | C47: V50 | D47: 1 | E47: 45 | G47: Mark Ford | H47: WJ | I47: S | J47: 1 | K47: 18 | L47: 11 | N47: Jamie Higgs | O47: WJ | P47: V40 | Q47: 1 | R47: 31 | S47: 11 | U47: Darren Tiley | V47: HRC | W47: V50 | X47: 1 | Y47: 49 | Z47: 11 | AB47: Mark Fitzhenry | AC47: SS | AD47: V60 | AE47: 1 | AF47: 83 | AG47: 11
A48: James Randall | B48: WJ | C48: V40 | D48: 1 | E48: 46 | G48: Stefan Gauntlett | H48: WJ | I48: S | J48: 1 | K48: 24 | L48: 12 | N48: Andrew Biggs | O48: WJ | P48: V40 | Q48: 1 | R48: 32 | S48: 12 | U48: John Kennedy | V48: BS | W48: V50 | X48: 1 | Y48: 54 | Z48: 12 | AB48: Chris Brolly | AC48: BS | AD48: V60 | AE48: 1 | AF48: 86 | AG48: 12
A49: Alan Jones | B49: SS | C49: V50 | D49: 1 | E49: 47 | G49: Alexander Chappell | H49: WJ | I49: S | J49: 1 | K49: 27 | L49: 13 | N49: Nigel Flynn | O49: SS | P49: V40 | Q49: 1 | R49: 34 | S49: 13 | U49: Paul Brennan | V49: WJ | W49: V50 | X49: 1 | Y49: 56 | Z49: 13 | AB49: Alan Cootes | AC49: HRC | AD49: V60 | AE49: 1 | AF49: 87 | AG49: 13
A50: Lee Boswell | B50: BS | C50: S | D50: 1 | E50: 48 | G50: Andrew Kavanagh | H50: WJ | I50: S | J50: 1 | K50: 29 | L50: 14 | N50: Lee Webber | O50: HRC | P50: V40 | Q50: 1 | R50: 39 | S50: 14 | U50: Neil Halls | V50: SS | W50: V50 | X50: 1 | Y50: 57 | Z50: 14 | AB50: Roger Partridge | AC50: WJ | AD50: V60 | AE50: 1 | AF50: 88 | AG50: 14
A51: Darren Tiley | B51: HRC | C51: V50 | D51: 1 | E51: 49 | G51: Benjamin Usher | H51: HRC | I51: S | J51: 1 | K51: 30 | L51: 15 | N51: Ken Cumin | O51: SS | P51: V40 | Q51: 1 | R51: 42 | S51: 15 | U51: John Bull | V51: HRC | W51: V50 | X51: 1 | Y51: 59 | Z51: 15 | AB51: Ian Penson | AC51: BS | AD51: V60 | AE51: 1 | AF51: 89 | AG51: 15
A52: Peter Beatty | B52: BS | C52: V60 | D52: 1 | E52: 50 | G52: Russell Cook | H52: WJ | I52: S | J52: 1 | K52: 33 | L52: 16 | N52: Adam Watson | O52: WJ | P52: V40 | Q52: 1 | R52: 44 | S52: 16 | U52: Nigel Poad | V52: SS | W52: V50 | X52: 1 | Y52: 61 | Z52: 16
A53: Toby Lumsden | B53: SS | C53: V60 | D53: 1 | E53: 51 | G53: Gordon Mcleod | H53: BS | I53: S | J53: 1 | K53: 38 | L53: 17 | N53: James Randall | O53: WJ | P53: V40 | Q53: 1 | R53: 46 | S53: 17 | U53: Miguel Luque | V53: HRC | W53: V50 | X53: 1 | Y53: 62 | Z53: 17
A54: Jamie Smith | B54: BS | C54: V40 | D54: 1 | E54: 52 | G54: Grant Sherbourne | H54: SS | I54: S | J54: 1 | K54: 40 | L54: 18 | N54: Jamie Smith | O54: BS | P54: V40 | Q54: 1 | R54: 52 | S54: 18 | U54: Matthieu Militon | V54: BS | W54: V50 | X54: 1 | Y54: 67 | Z54: 18
A55: Ranky Barbelis | B55: SS | C55: S | D55: 1 | E55: 53 | G55: Lee Boswell | H55: BS | I55: S | J55: 1 | K55: 48 | L55: 19 | N55: Iain Bulloch | O55: HRC | P55: V40 | Q55: 1 | R55: 55 | S55: 19 | U55: Paul Dixon | V55: HRC | W55: V50 | X55: 1 | Y55: 70 | Z55: 19
A56: John Kennedy | B56: BS | C56: V50 | D56: 1 | E56: 54 | G56: Ranky Barbelis | H56: SS | I56: S | J56: 1 | K56: 53 | L56: 20 | N56: Richard Foweraker | O56: BS | P56: V40 | Q56: 1 | R56: 60 | S56: 20 | U56: David Broughton | V56: BS | W56: V50 | X56: 1 | Y56: 73 | Z56: 20
A57: Iain Bulloch | B57: HRC | C57: V40 | D57: 1 | E57: 55 | G57: Lewis Elmes | H57: SS | I57: S | J57: 1 | K57: 58 | L57: 21 | N57: Tony Bacon | O57: SS | P57: V40 | Q57: 2 | R57: 64 | S57: 21 | U57: Paul Walker | V57: BS | W57: V50 | X57: 1 | Y57: 76 | Z57: 21
A58: Paul Brennan | B58: WJ | C58: V50 | D58: 1 | E58: 56 | G58: Jayson Shuter | H58: SS | I58: S | J58: 2 | K58: 63 | L58: 22 | N58: Stuart Longley | O58: BS | P58: V40 | Q58: 1 | R58: 66 | S58: 22 | U58: Simon Joyce | V58: WJ | W58: V50 | X58: 1 | Y58: 77 | Z58: 22
A59: Neil Halls | B59: SS | C59: V50 | D59: 1 | E59: 57 | G59: Thomas Dudson | H59: SS | I59: S | J59: 1 | K59: 69 | L59: 23 | N59: Paul Andrew | O59: BS | P59: V40 | Q59: 1 | R59: 72 | S59: 23 | U59: Paul Dearlove | V59: BS | W59: V50 | X59: 1 | Y59: 78 | Z59: 23
A60: Lewis Elmes | B60: SS | C60: S | D60: 1 | E60: 58 | N60: Neal Groves | O60: BS | P60: V40 | Q60: 1 | R60: 74 | S60: 24 | U60: Gary Mead | V60: HRC | W60: V50 | X60: 1 | Y60: 79 | Z60: 24
A61: John Bull | B61: HRC | C61: V50 | D61: 1 | E61: 59 | N61: Shane Tomlinson | O61: BS | P61: V40 | Q61: 1 | R61: 85 | S61: 25 | U61: Paul Kemmitt | V61: SS | W61: V50 | X61: 1 | Y61: 82 | Z61: 25
A62: Richard Foweraker | B62: BS | C62: V40 | D62: 1 | E62: 60 | N62: Rohit Dayama | O62: BS | P62: V40 | Q62: 1 | R62: 94 | S62: 26 | U62: Andrew Pooley | V62: BS | W62: V50 | X62: 1 | Y62: 84 | Z62: 26
A63: Nigel Poad | B63: SS | C63: V50 | D63: 1 | E63: 61 | U63: Stuart Davenport | V63: BS | W63: V50 | X63: 1 | Y63: 90 | Z63: 27
A64: Miguel Luque | B64: HRC | C64: V50 | D64: 1 | E64: 62 | U64: Iain Rogers | V64: SS | W64: V50 | X64: 1 | Y64: 91 | Z64: 28
A65: Jayson Shuter | B65: SS | C65: S | D65: 2 | E65: 63 | U65: Alan Godbold | V65: HRC | W65: V50 | X65: 1 | Y65: 95 | Z65: 29
A66: Tony Bacon | B66: SS | C66: V40 | D66: 2 | E66: 64
A67: John James | B67: SS | C67: V60 | D67: 1 | E67: 65
A68: Stuart Longley | B68: BS | C68: V40 | D68: 1 | E68: 66
A69: Matthieu Militon | B69: BS | C69: V50 | D69: 1 | E69: 67
A70: Arthur Oliva | B70: SS | C70: V60 | D70: 1 | E70: 68
A71: Thomas Dudson | B71: SS | C71: S | D71: 1 | E71: 69
A72: Paul Dixon | B72: HRC | C72: V50 | D72: 1 | E72: 70
A73: Peter Winfield | B73: BS | C73: V60 | D73: 1 | E73: 71
A74: Paul Andrew | B74: BS | C74: V40 | D74: 1 | E74: 72
A75: David Broughton | B75: BS | C75: V50 | D75: 1 | E75: 73
A76: Neal Groves | B76: BS | C76: V40 | D76: 1 | E76: 74
A77: Clive Smith | B77: WJ | C77: V60 | D77: 1 | E77: 75
A78: Paul Walker | B78: BS | C78: V50 | D78: 1 | E78: 76
A79: Simon Joyce | B79: WJ | C79: V50 | D79: 1 | E79: 77
A80: Paul Dearlove | B80: BS | C80: V50 | D80: 1 | E80: 78
A81: Gary Mead | B81: HRC | C81: V50 | D81: 1 | E81: 79
A82: Phillip Barnard | B82: WJ | C82: V60 | D82: 1 | E82: 80
A83: Martin Howe | B83: BS | C83: V60 | D83: 1 | E83: 81
A84: Paul Kemmitt | B84: SS | C84: V50 | D84: 1 | E84: 82
A85: Mark Fitzhenry | B85: SS | C85: V60 | D85: 1 | E85: 83
A86: Andrew Pooley | B86: BS | C86: V50 | D86: 1 | E86: 84
A87: Shane Tomlinson | B87: BS | C87: V40 | D87: 1 | E87: 85
A88: Chris Brolly | B88: BS | C88: V60 | D88: 1 | E88: 86
A89: Alan Cootes | B89: HRC | C89: V60 | D89: 1 | E89: 87
A90: Roger Partridge | B90: WJ | C90: V60 | D90: 1 | E90: 88
A91: Ian Penson | B91: BS | C91: V60 | D91: 1 | E91: 89
A92: Stuart Davenport | B92: BS | C92: V50 | D92: 1 | E92: 90
A93: Iain Rogers | B93: SS | C93: V50 | D93: 1 | E93: 91
A94: Nick Cheal | B94: WJ | C94: V70 | D94: 1 | E94: 92
A95: Colin Naman | B95: WJ | C95: V70 | D95: 1 | E95: 93
A96: Rohit Dayama | B96: BS | C96: V40 | D96: 1 | E96: 94
A97: Alan Godbold | B97: HRC | C97: V50 | D97: 1 | E97: 95

Sheet Race 3-Ladies
A1: Overall | G1: Ware Joggers | N1: Bishop's Stortford | U1: Saffron Striders | AB1: Harlow Running & Tri Club
A2: Name | B2: Club | C2: Age Category | D2: Claim | E2: Position | G2: Name | H2: Club | I2: Age Category | J2: Claim | K2: Position | N2: Name | O2: Club | P2: Age Category | Q2: Claim | R2: Position | U2: Name | V2: Club | W2: Age Category | X2: Claim | Y2: Position | AB2: Name | AC2: Club | AD2: Age Category | AE2: Claim | AF2: Position | AI2: Name | AJ2: Club | AK2: Age Category | AL2: Claim | AM2: Position
A3: Katy Woodward | B3: WJ | C3: V35 | D3: 1 | E3: 1 | G3: Katy Woodward | H3: WJ | I3: V35 | J3: 1 | K3: 1 | L3: 1 | N3: Elizabeth Bellinger | O3: BS | P3: V45 | Q3: 1 | R3: 3 | S3: 3 | U3: Flo Greatrix | V3: SS | W3: S | X3: 1 | Y3: 9 | Z3: 9 | AB3: Terri Wiley | AC3: HRC | AD3: V35 | AE3: 1 | AF3: 2 | AG3: 2
A4: Terri Wiley | B4: HRC | C4: V35 | D4: 1 | E4: 2 | G4: Katrina Dobson | H4: WJ | I4: V35 | J4: 1 | K4: 4 | L4: 4 | N4: Vicky Simpson | O4: BS | P4: V45 | Q4: 1 | R4: 5 | S4: 5 | U4: Jemma Jessup | V4: SS | W4: S | X4: 1 | Y4: 12 | Z4: 12 | AB4: Donna Milton | AC4: HRC | AD4: V45 | AE4: 1 | AF4: 14 | AG4: 14
A5: Elizabeth Bellinger | B5: BS | C5: V45 | D5: 1 | E5: 3 | G5: Susan Millward | H5: WJ | I5: V45 | J5: 1 | K5: 6 | L5: 6 | N5: Joanna Jurd | O5: BS | P5: V45 | Q5: 1 | R5: 7 | S5: 7 | U5: Zib Gotto | V5: SS | W5: V45 | X5: 1 | Y5: 18 | Z5: 18 | AB5: Linda Helm-Manley | AC5: HRC | AD5: V55 | AE5: 1 | AF5: 20 | AG5: 20
A6: Katrina Dobson | B6: WJ | C6: V35 | D6: 1 | E6: 4 | G6: Lucy Dupuis | H6: WJ | I6: V45 | J6: 1 | K6: 10 | L6: 10 | N6: Eilidh Malcolm | O6: BS | P6: S | Q6: 1 | R6: 8 | S6: 8 | U6: Anne Dawson | V6: SS | W6: V35 | X6: 1 | Y6: 27 | Z6: 27 | AB6: Allison Beeton | AC6: HRC | AD6: V55 | AE6: 1 | AF6: 21 | AG6: 21
A7: Vicky Simpson | B7: BS | C7: V45 | D7: 1 | E7: 5 | G7: Cate Campany | H7: WJ | I7: V55 | J7: 1 | K7: 13 | L7: 13 | N7: Emily Clancey | O7: BS | P7: S | Q7: 1 | R7: 11 | S7: 11 | U7: Kerry Harrington | V7: SS | W7: V45 | X7: 1 | Y7: 28 | Z7: 28 | AB7: Louise Cootes | AC7: HRC | AD7: V35 | AE7: 1 | AF7: 23 | AG7: 23
A8: Susan Millward | B8: WJ | C8: V45 | D8: 1 | E8: 6 | G8: Gemma Charville | H8: WJ | I8: V35 | J8: 1 | K8: 15 | L8: 15 | N8: Lucy Robinson | O8: BS | P8: V45 | Q8: 1 | R8: 16 | S8: 16 | U8: Charlotte Diggins | V8: SS | W8: V45 | X8: 1 | Y8: 38 | Z8: 38 | AB8: Louise Kedge | AC8: HRC | AD8: V35 | AE8: 1 | AF8: 30 | AG8: 30
A9: Joanna Jurd | B9: BS | C9: V45 | D9: 1 | E9: 7 | G9: Anthea Francis | H9: WJ | I9: V45 | J9: 1 | K9: 19 | L9: 19 | N9: Lindsey Ireland | O9: BS | P9: S | Q9: 1 | R9: 17 | S9: 17 | U9: Rachel Everitt | V9: SS | W9: S | X9: 1 | Y9: 42 | Z9: 42 | AB9: Kerry Mavris | AC9: HRC | AD9: V45 | AE9: 1 | AF9: 34 | AG9: 34
A10: Eilidh Malcolm | B10: BS | C10: S | D10: 1 | E10: 8 | G10: Emma Mulley | H10: WJ | I10: V35 | J10: 1 | K10: 22 | L10: 22 | N10: Paula Beades | O10: BS | P10: V45 | Q10: 1 | R10: 24 | S10: 24 | U10: Margit Wendelberger James | V10: SS | W10: V55 | X10: 1 | Y10: 50 | Z10: 50 | AB10: Michelle Hyde | AC10: HRC | AD10: V35 | AE10: 1 | AF10: 35 | AG10: 35
A11: Flo Greatrix | B11: SS | C11: S | D11: 1 | E11: 9 | G11: Jemina Punni | H11: WJ | I11: V35 | J11: 1 | K11: 25 | N11: Marie Hockley | O11: BS | P11: V55 | Q11: 1 | R11: 29 | AB11: Kelly Mcgill | AC11: HRC | AD11: V45 | AE11: 1 | AF11: 36
A12: Lucy Dupuis | B12: WJ | C12: V45 | D12: 1 | E12: 10 | G12: Pamela Wilson | H12: WJ | I12: V65 | J12: 1 | K12: 26 | N12: Tory Foot | O12: BS | P12: S | Q12: 1 | R12: 31 | AB12: Brady Ramsay | AC12: HRC | AD12: V45 | AE12: 1 | AF12: 41
A13: Emily Clancey | B13: BS | C13: S | D13: 1 | E13: 11 | G13: Deborah Amies | H13: WJ | I13: V55 | J13: 1 | K13: 32 | N13: Jen Burke | O13: BS | P13: V35 | Q13: 1 | R13: 39 | AB13: Sandra Webber | AC13: HRC | AD13: V35 | AE13: 1 | AF13: 48
A14: Jemma Jessup | B14: SS | C14: S | D14: 1 | E14: 12 | G14: Sam Rowe | H14: WJ | I14: V55 | J14: 1 | K14: 33 | N14: Ellen Brooks | O14: BS | P14: V45 | Q14: 1 | R14: 40 | AB14: Luella Dixon | AC14: HRC | AD14: V55 | AE14: 1 | AF14: 60
A15: Cate Campany | B15: WJ | C15: V55 | D15: 1 | E15: 13 | G15: Jennifer Evans | H15: WJ | I15: S | J15: 1 | K15: 37 | N15: Jos Ashpole | O15: BS | P15: V45 | Q15: 1 | R15: 43 | AB15: Selina Morgan | AC15: HRC | AD15: V35 | AE15: 1 | AF15: 61
A16: Donna Milton | B16: HRC | C16: V45 | D16: 1 | E16: 14 | G16: Sue Taylor | H16: WJ | I16: V45 | J16: 1 | K16: 44 | N16: Patricia Poole | O16: BS | P16: V55 | Q16: 1 | R16: 45 | AB16: Deborah Pomphret | AC16: HRC | AD16: V55 | AE16: 1 | AF16: 67
A17: Gemma Charville | B17: WJ | C17: V35 | D17: 1 | E17: 15 | G17: Jill Patel | H17: WJ | I17: V55 | J17: 1 | K17: 46 | N17: Serena Beresford | O17: BS | P17: V45 | Q17: 1 | R17: 47
A18: Lucy Robinson | B18: BS | C18: V45 | D18: 1 | E18: 16 | G18: Tracy Brennan | H18: WJ | I18: V45 | J18: 1 | K18: 49 | N18: Julia Fonnereau | O18: BS | P18: V55 | Q18: 1 | R18: 51
A19: Lindsey Ireland | B19: BS | C19: S | D19: 1 | E19: 17 | G19: Lynsay Evans | H19: WJ | I19: V55 | J19: 1 | K19: 52 | N19: Jenny Brayshaw | O19: BS | P19: V65 | Q19: 1 | R19: 54
A20: Zib Gotto | B20: SS | C20: V45 | D20: 1 | E20: 18 | G20: Paula Gollop | H20: WJ | I20: V35 | J20: 1 | K20: 53 | N20: Jilly Palmer | O20: BS | P20: V55 | Q20: 1 | R20: 56
A21: Anthea Francis | B21: WJ | C21: V45 | D21: 1 | E21: 19 | G21: Jeanette Collins | H21: WJ | I21: V55 | J21: 1 | K21: 55 | N21: Stefanie Azuga | O21: BS | P21: V45 | Q21: 1 | R21: 58
A22: Linda Helm-Manley | B22: HRC | C22: V55 | D22: 1 | E22: 20 | G22: Marcia Fisher | H22: WJ | I22: V45 | J22: 1 | K22: 57 | N22: Fay Dodgen | O22: BS | P22: V55 | Q22: 1 | R22: 59
A23: Allison Beeton | B23: HRC | C23: V55 | D23: 1 | E23: 21 | G23: Jacqui Barnard | H23: WJ | I23: V55 | J23: 1 | K23: 63 | N23: Sarah Godfrey | O23: BS | P23: V45 | Q23: 1 | R23: 62
A24: Emma Mulley | B24: WJ | C24: V35 | D24: 1 | E24: 22 | G24: Rosalind Hitchen | H24: WJ | I24: V55 | J24: 1 | K24: 66 | N24: Victoria Cutler | O24: BS | P24: V35 | Q24: 1 | R24: 64
A25: Louise Cootes | B25: HRC | C25: V35 | D25: 1 | E25: 23 | N25: Jennifer Frewin | O25: BS | P25: V45 | Q25: 1 | R25: 65
A26: Paula Beades | B26: BS | C26: V45 | D26: 1 | E26: 24
A27: Jemina Punni | B27: WJ | C27: V35 | D27: 1 | E27: 25
A28: Pamela Wilson | B28: WJ | C28: V65 | D28: 1 | E28: 26 | G28: Senior | N28: V35 | U28: V45 | AB28: V55 | AI28: V65
A29: Anne Dawson | B29: SS | C29: V35 | D29: 1 | E29: 27 | G29: Name | H29: Club | I29: Age Category | J29: Claim | K29: Overall Position | L29: Category Position | N29: Name | O29: Club | P29: Age Category | Q29: Claim | R29: Overall Position | S29: Category Position | U29: Name | V29: Club | W29: Age Category | X29: Claim | Y29: Overall Position | Z29: Category Position | AB29: Name | AC29: Club | AD29: Age Category | AE29: Claim | AF29: Overall Position | AG29: Category Position | AI29: Name | AJ29: Club | AK29: Age Category | AL29: Claim | AM29: Overall Position | AN29: Category Position
A30: Kerry Harrington | B30: SS | C30: V45 | D30: 1 | E30: 28 | G30: Eilidh Malcolm | H30: BS | I30: S | J30: 1 | K30: 8 | L30: 1 | N30: Katy Woodward | O30: WJ | P30: V35 | Q30: 1 | R30: 1 | S30: 1 | U30: Elizabeth Bellinger | V30: BS | W30: V45 | X30: 1 | Y30: 3 | Z30: 1 | AB30: Cate Campany | AC30: WJ | AD30: V55 | AE30: 1 | AF30: 13 | AG30: 1 | AI30: Pamela Wilson | AJ30: WJ | AK30: V65 | AL30: 1 | AM30: 26 | AN30: 1
A31: Marie Hockley | B31: BS | C31: V55 | D31: 1 | E31: 29 | G31: Flo Greatrix | H31: SS | I31: S | J31: 1 | K31: 9 | L31: 2 | N31: Terri Wiley | O31: HRC | P31: V35 | Q31: 1 | R31: 2 | S31: 2 | U31: Vicky Simpson | V31: BS | W31: V45 | X31: 1 | Y31: 5 | Z31: 2 | AB31: Linda Helm-Manley | AC31: HRC | AD31: V55 | AE31: 1 | AF31: 20 | AG31: 2 | AI31: Jenny Brayshaw | AJ31: BS | AK31: V65 | AL31: 1 | AM31: 54 | AN31: 2
A32: Louise Kedge | B32: HRC | C32: V35 | D32: 1 | E32: 30 | G32: Emily Clancey | H32: BS | I32: S | J32: 1 | K32: 11 | L32: 3 | N32: Katrina Dobson | O32: WJ | P32: V35 | Q32: 1 | R32: 4 | S32: 3 | U32: Susan Millward | V32: WJ | W32: V45 | X32: 1 | Y32: 6 | Z32: 3 | AB32: Allison Beeton | AC32: HRC | AD32: V55 | AE32: 1 | AF32: 21 | AG32: 3
A33: Tory Foot | B33: BS | C33: S | D33: 1 | E33: 31 | G33: Jemma Jessup | H33: SS | I33: S | J33: 1 | K33: 12 | L33: 4 | N33: Gemma Charville | O33: WJ | P33: V35 | Q33: 1 | R33: 15 | S33: 4 | U33: Joanna Jurd | V33: BS | W33: V45 | X33: 1 | Y33: 7 | Z33: 4 | AB33: Marie Hockley | AC33: BS | AD33: V55 | AE33: 1 | AF33: 29 | AG33: 4
A34: Deborah Amies | B34: WJ | C34: V55 | D34: 1 | E34: 32 | G34: Lindsey Ireland | H34: BS | I34: S | J34: 1 | K34: 17 | L34: 5 | N34: Emma Mulley | O34: WJ | P34: V35 | Q34: 1 | R34: 22 | S34: 5 | U34: Lucy Dupuis | V34: WJ | W34: V45 | X34: 1 | Y34: 10 | Z34: 5 | AB34: Deborah Amies | AC34: WJ | AD34: V55 | AE34: 1 | AF34: 32 | AG34: 5
A35: Sam Rowe | B35: WJ | C35: V55 | D35: 1 | E35: 33 | G35: Tory Foot | H35: BS | I35: S | J35: 1 | K35: 31 | L35: 6 | N35: Louise Cootes | O35: HRC | P35: V35 | Q35: 1 | R35: 23 | S35: 6 | U35: Donna Milton | V35: HRC | W35: V45 | X35: 1 | Y35: 14 | Z35: 6 | AB35: Sam Rowe | AC35: WJ | AD35: V55 | AE35: 1 | AF35: 33 | AG35: 6
A36: Kerry Mavris | B36: HRC | C36: V45 | D36: 1 | E36: 34 | G36: Jennifer Evans | H36: WJ | I36: S | J36: 1 | K36: 37 | L36: 7 | N36: Jemina Punni | O36: WJ | P36: V35 | Q36: 1 | R36: 25 | S36: 7 | U36: Lucy Robinson | V36: BS | W36: V45 | X36: 1 | Y36: 16 | Z36: 7 | AB36: Patricia Poole | AC36: BS | AD36: V55 | AE36: 1 | AF36: 45 | AG36: 7
A37: Michelle Hyde | B37: HRC | C37: V35 | D37: 1 | E37: 35 | G37: Rachel Everitt | H37: SS | I37: S | J37: 1 | K37: 42 | L37: 8 | N37: Anne Dawson | O37: SS | P37: V35 | Q37: 1 | R37: 27 | S37: 8 | U37: Zib Gotto | V37: SS | W37: V45 | X37: 1 | Y37: 18 | Z37: 8 | AB37: Jill Patel | AC37: WJ | AD37: V55 | AE37: 1 | AF37: 46 | AG37: 8
A38: Kelly Mcgill | B38: HRC | C38: V45 | D38: 1 | E38: 36 | N38: Louise Kedge | O38: HRC | P38: V35 | Q38: 1 | R38: 30 | S38: 9 | U38: Anthea Francis | V38: WJ | W38: V45 | X38: 1 | Y38: 19 | Z38: 9 | AB38: Margit Wendelberger James | AC38: SS | AD38: V55 | AE38: 1 | AF38: 50 | AG38: 9
A39: Jennifer Evans | B39: WJ | C39: S | D39: 1 | E39: 37 | N39: Michelle Hyde | O39: HRC | P39: V35 | Q39: 1 | R39: 35 | S39: 10 | U39: Paula Beades | V39: BS | W39: V45 | X39: 1 | Y39: 24 | Z39: 10 | AB39: Julia Fonnereau | AC39: BS | AD39: V55 | AE39: 1 | AF39: 51 | AG39: 10
A40: Charlotte Diggins | B40: SS | C40: V45 | D40: 1 | E40: 38 | N40: Jen Burke | O40: BS | P40: V35 | Q40: 1 | R40: 39 | S40: 11 | U40: Kerry Harrington | V40: SS | W40: V45 | X40: 1 | Y40: 28 | Z40: 11 | AB40: Lynsay Evans | AC40: WJ | AD40: V55 | AE40: 1 | AF40: 52 | AG40: 11
A41: Jen Burke | B41: BS | C41: V35 | D41: 1 | E41: 39 | N41: Sandra Webber | O41: HRC | P41: V35 | Q41: 1 | R41: 48 | S41: 12 | U41: Kerry Mavris | V41: HRC | W41: V45 | X41: 1 | Y41: 34 | Z41: 12 | AB41: Jeanette Collins | AC41: WJ | AD41: V55 | AE41: 1 | AF41: 55 | AG41: 12
A42: Ellen Brooks | B42: BS | C42: V45 | D42: 1 | E42: 40 | N42: Paula Gollop | O42: WJ | P42: V35 | Q42: 1 | R42: 53 | S42: 13 | U42: Kelly Mcgill | V42: HRC | W42: V45 | X42: 1 | Y42: 36 | Z42: 13 | AB42: Jilly Palmer | AC42: BS | AD42: V55 | AE42: 1 | AF42: 56 | AG42: 13
A43: Brady Ramsay | B43: HRC | C43: V45 | D43: 1 | E43: 41 | N43: Selina Morgan | O43: HRC | P43: V35 | Q43: 1 | R43: 61 | S43: 14 | U43: Charlotte Diggins | V43: SS | W43: V45 | X43: 1 | Y43: 38 | Z43: 14 | AB43: Fay Dodgen | AC43: BS | AD43: V55 | AE43: 1 | AF43: 59 | AG43: 14
A44: Rachel Everitt | B44: SS | C44: S | D44: 1 | E44: 42 | N44: Victoria Cutler | O44: BS | P44: V35 | Q44: 1 | R44: 64 | S44: 15 | U44: Ellen Brooks | V44: BS | W44: V45 | X44: 1 | Y44: 40 | Z44: 15 | AB44: Luella Dixon | AC44: HRC | AD44: V55 | AE44: 1 | AF44: 60 | AG44: 15
A45: Jos Ashpole | B45: BS | C45: V45 | D45: 1 | E45: 43 | U45: Brady Ramsay | V45: HRC | W45: V45 | X45: 1 | Y45: 41 | Z45: 16 | AB45: Jacqui Barnard | AC45: WJ | AD45: V55 | AE45: 1 | AF45: 63 | AG45: 16
A46: Sue Taylor | B46: WJ | C46: V45 | D46: 1 | E46: 44 | U46: Jos Ashpole | V46: BS | W46: V45 | X46: 1 | Y46: 43 | Z46: 17 | AB46: Rosalind Hitchen | AC46: WJ | AD46: V55 | AE46: 1 | AF46: 66 | AG46: 17
A47: Patricia Poole | B47: BS | C47: V55 | D47: 1 | E47: 45 | U47: Sue Taylor | V47: WJ | W47: V45 | X47: 1 | Y47: 44 | Z47: 18 | AB47: Deborah Pomphret | AC47: HRC | AD47: V55 | AE47: 1 | AF47: 67 | AG47: 18
A48: Jill Patel | B48: WJ | C48: V55 | D48: 1 | E48: 46 | U48: Serena Beresford | V48: BS | W48: V45 | X48: 1 | Y48: 47 | Z48: 19
A49: Serena Beresford | B49: BS | C49: V45 | D49: 1 | E49: 47 | U49: Tracy Brennan | V49: WJ | W49: V45 | X49: 1 | Y49: 49 | Z49: 20
A50: Sandra Webber | B50: HRC | C50: V35 | D50: 1 | E50: 48 | U50: Marcia Fisher | V50: WJ | W50: V45 | X50: 1 | Y50: 57 | Z50: 21
A51: Tracy Brennan | B51: WJ | C51: V45 | D51: 1 | E51: 49 | U51: Stefanie Azuga | V51: BS | W51: V45 | X51: 1 | Y51: 58 | Z51: 22
A52: Margit Wendelberger James | B52: SS | C52: V55 | D52: 1 | E52: 50 | U52: Sarah Godfrey | V52: BS | W52: V45 | X52: 1 | Y52: 62 | Z52: 23
A53: Julia Fonnereau | B53: BS | C53: V55 | D53: 1 | E53: 51 | U53: Jennifer Frewin | V53: BS | W53: V45 | X53: 1 | Y53: 65 | Z53: 24
A54: Lynsay Evans | B54: WJ | C54: V55 | D54: 1 | E54: 52
A55: Paula Gollop | B55: WJ | C55: V35 | D55: 1 | E55: 53
A56: Jenny Brayshaw | B56: BS | C56: V65 | D56: 1 | E56: 54
A57: Jeanette Collins | B57: WJ | C57: V55 | D57: 1 | E57: 55
A58: Jilly Palmer | B58: BS | C58: V55 | D58: 1 | E58: 56
A59: Marcia Fisher | B59: WJ | C59: V45 | D59: 1 | E59: 57
A60: Stefanie Azuga | B60: BS | C60: V45 | D60: 1 | E60: 58
A61: Fay Dodgen | B61: BS | C61: V55 | D61: 1 | E61: 59
A62: Luella Dixon | B62: HRC | C62: V55 | D62: 1 | E62: 60
A63: Selina Morgan | B63: HRC | C63: V35 | D63: 1 | E63: 61
A64: Sarah Godfrey | B64: BS | C64: V45 | D64: 1 | E64: 62
A65: Jacqui Barnard | B65: WJ | C65: V55 | D65: 1 | E65: 63
A66: Victoria Cutler | B66: BS | C66: V35 | D66: 1 | E66: 64
A67: Jennifer Frewin | B67: BS | C67: V45 | D67: 1 | E67: 65
A68: Rosalind Hitchen | B68: WJ | C68: V55 | D68: 1 | E68: 66
A69: Deborah Pomphret | B69: HRC | C69: V55 | D69: 1 | E69: 67

Sheet Race 4-Men
A1: Overall | G1: Ware Joggers | N1: Bishop's Stortford | U1: Saffron Striders | AB1: Harlow Running & Tri Club
A2: Name | B2: Club | C2: Age Category | D2: Claim | E2: Position | G2: Name | H2: Club | I2: Age Category | J2: Claim | K2: Position | N2: Name | O2: Club | P2: Age Category | Q2: Claim | R2: Position | U2: Name | V2: Club | W2: Age Category | X2: Claim | Y2: Position | AB2: Name | AC2: Club | AD2: Age Category | AE2: Claim | AF2: Position | AI2: Name | AJ2: Club | AK2: Age Category | AL2: Claim | AM2: Position
A3: Michael Waddington | B3: WJ | C3: S | D3: 1 | E3: 1 | G3: Michael Waddington | H3: WJ | I3: S | J3: 1 | K3: 1 | L3: 1 | N3: Samuel Pedley | O3: BS | P3: S | Q3: 1 | R3: 2 | S3: 2 | U3: Iain Henley | V3: SS | W3: V40 | X3: 1 | Y3: 15 | Z3: 15 | AB3: Rob Lowe | AC3: HRC | AD3: V50 | AE3: 1 | AF3: 4 | AG3: 4
A4: Samuel Pedley | B4: BS | C4: S | D4: 1 | E4: 2 | G4: Andrew Mynott | H4: WJ | I4: V40 | J4: 1 | K4: 3 | L4: 3 | N4: Robert Thorpe | O4: BS | P4: V50 | Q4: 1 | R4: 14 | S4: 14 | U4: Tim McMahon | V4: SS | W4: V40 | X4: 1 | Y4: 22 | Z4: 22 | AB4: Kirk Crudgington | AC4: HRC | AD4: V40 | AE4: 1 | AF4: 21 | AG4: 21
A5: Andrew Mynott | B5: WJ | C5: V40 | D5: 1 | E5: 3 | G5: David Craddock | H5: WJ | I5: S | J5: 1 | K5: 5 | L5: 5 | N5: Matthew Ironside | O5: BS | P5: V40 | Q5: 1 | R5: 16 | S5: 16 | U5: Matthew Billis | V5: SS | W5: V40 | X5: 1 | Y5: 24 | Z5: 24 | AB5: Martyn Coulter | AC5: HRC | AD5: S | AE5: 1 | AF5: 23 | AG5: 23
A6: Rob Lowe | B6: HRC | C6: V50 | D6: 1 | E6: 4 | G6: Liam Struwe | H6: WJ | I6: S | J6: 1 | K6: 6 | L6: 6 | N6: Henry Ward | O6: BS | P6: S | Q6: 1 | R6: 18 | S6: 18 | U6: Nigel Flynn | V6: SS | W6: V40 | X6: 1 | Y6: 28 | Z6: 28 | AB6: Ryan Smith | AC6: HRC | AD6: V40 | AE6: 1 | AF6: 25 | AG6: 25
A7: David Craddock | B7: WJ | C7: S | D7: 1 | E7: 5 | G7: Nick Axam | H7: WJ | I7: V40 | J7: 1 | K7: 7 | L7: 7 | N7: Mark Lawrence | O7: BS | P7: S | Q7: 1 | R7: 30 | S7: 30 | U7: Marco Arcidiacono | V7: SS | W7: V50 | X7: 1 | Y7: 36 | Z7: 36 | AB7: Benjamin Usher | AC7: HRC | AD7: S | AE7: 1 | AF7: 33 | AG7: 33
A8: Liam Struwe | B8: WJ | C8: S | D8: 1 | E8: 6 | G8: Will Breese | H8: WJ | I8: S | J8: 1 | K8: 8 | L8: 8 | N8: Gordon Mcleod | O8: BS | P8: S | Q8: 1 | R8: 32 | S8: 32 | U8: Ian MacDougall | V8: SS | W8: V60 | X8: 1 | Y8: 48 | Z8: 48 | AB8: Lee Webber | AC8: HRC | AD8: V40 | AE8: 1 | AF8: 35 | AG8: 35
A9: Nick Axam | B9: WJ | C9: V40 | D9: 1 | E9: 7 | G9: Kevin Sambridge | H9: WJ | I9: V50 | J9: 1 | K9: 9 | L9: 9 | N9: Gary Jones | O9: BS | P9: V50 | Q9: 1 | R9: 41 | S9: 41 | U9: David Raimondo | V9: SS | W9: V40 | X9: 1 | Y9: 52 | Z9: 52 | AB9: Chris Burgess | AC9: HRC | AD9: V50 | AE9: 1 | AF9: 40 | AG9: 40
A10: Will Breese | B10: WJ | C10: S | D10: 1 | E10: 8 | G10: Tim Brignall | H10: WJ | I10: S | J10: 1 | K10: 10 | L10: 10 | N10: Chris Chew | O10: BS | P10: V50 | Q10: 1 | R10: 44 | S10: 44 | U10: John James | V10: SS | W10: V60 | X10: 1 | Y10: 55 | Z10: 55 | AB10: Darren Tiley | AC10: HRC | AD10: V50 | AE10: 1 | AF10: 43 | AG10: 43
A11: Kevin Sambridge | B11: WJ | C11: V50 | D11: 1 | E11: 9 | G11: Vincent Riviere | H11: WJ | I11: V40 | J11: 1 | K11: 11 | N11: NEIL GAGE | O11: BS | P11: V40 | Q11: 1 | R11: 46 | U11: Neil Halls | V11: SS | W11: V50 | X11: 1 | Y11: 59 | AB11: Miguel Luque | AC11: HRC | AD11: V50 | AE11: 1 | AF11: 51
A12: Tim Brignall | B12: WJ | C12: S | D12: 1 | E12: 10 | G12: Tom Porter | H12: WJ | I12: S | J12: 1 | K12: 12 | N12: Richard Foweraker | O12: BS | P12: V40 | Q12: 1 | R12: 49 | U12: Arthur Oliva | V12: SS | W12: V60 | X12: 1 | Y12: 62 | AB12: John Bull | AC12: HRC | AD12: V50 | AE12: 1 | AF12: 54
A13: Vincent Riviere | B13: WJ | C13: V40 | D13: 1 | E13: 11 | G13: Mark Ford | H13: WJ | I13: S | J13: 1 | K13: 13 | N13: Stuart Longley | O13: BS | P13: V40 | Q13: 1 | R13: 53 | U13: Alistair Cooke | V13: SS | W13: V40 | X13: 1 | Y13: 66 | AB13: Paul Dixon | AC13: HRC | AD13: V50 | AE13: 1 | AF13: 56
A14: Tom Porter | B14: WJ | C14: S | D14: 1 | E14: 12 | G14: William Caunce | H14: WJ | I14: S | J14: 1 | K14: 17 | N14: Lee Vass | O14: BS | P14: V40 | Q14: 1 | R14: 57 | U14: Robert Shaw | V14: SS | W14: V60 | X14: 2 | Y14: 69 | AB14: Gary Mead | AC14: HRC | AD14: V50 | AE14: 1 | AF14: 58
A15: Mark Ford | B15: WJ | C15: S | D15: 1 | E15: 13 | G15: Neil Bull | H15: WJ | I15: V40 | J15: 1 | K15: 19 | N15: Paul Dearlove | O15: BS | P15: V50 | Q15: 1 | R15: 63 | U15: Michael Bradley | V15: SS | W15: V50 | X15: 1 | Y15: 72 | AB15: Sean Flynn | AC15: HRC | AD15: V60 | AE15: 1 | AF15: 61
A16: Robert Thorpe | B16: BS | C16: V50 | D16: 1 | E16: 14 | G16: Alexander Chappell | H16: WJ | I16: S | J16: 1 | K16: 20 | N16: Balint Bone | O16: BS | P16: S | Q16: 1 | R16: 64 | AB16: Alan Cootes | AC16: HRC | AD16: V60 | AE16: 1 | AF16: 70
A17: Iain Henley | B17: SS | C17: V40 | D17: 1 | E17: 15 | G17: Andrew Kavanagh | H17: WJ | I17: S | J17: 1 | K17: 26 | N17: Martin Howe | O17: BS | P17: V60 | Q17: 1 | R17: 68 | AB17: Stephen Cozens | AC17: HRC | AD17: V40 | AE17: 1 | AF17: 74
A18: Matthew Ironside | B18: BS | C18: V40 | D18: 1 | E18: 16 | G18: Jamie Higgs | H18: WJ | I18: V40 | J18: 1 | K18: 27 | N18: Ian Penson | O18: BS | P18: V60 | Q18: 1 | R18: 71 | AB18: Michael Gleeson | AC18: HRC | AD18: V50 | AE18: 1 | AF18: 75
A19: William Caunce | B19: WJ | C19: S | D19: 1 | E19: 17 | G19: Stefan Gauntlett | H19: WJ | I19: S | J19: 1 | K19: 29 | N19: Rohit Dayama | O19: BS | P19: V40 | Q19: 1 | R19: 73
A20: Henry Ward | B20: BS | C20: S | D20: 1 | E20: 18 | G20: Phil Earle | H20: WJ | I20: V40 | J20: 1 | K20: 31
A21: Neil Bull | B21: WJ | C21: V40 | D21: 1 | E21: 19 | G21: Mark Sanz | H21: WJ | I21: V50 | J21: 1 | K21: 34
A22: Alexander Chappell | B22: WJ | C22: S | D22: 1 | E22: 20 | G22: Russell Cook | H22: WJ | I22: S | J22: 1 | K22: 37
A23: Kirk Crudgington | B23: HRC | C23: V40 | D23: 1 | E23: 21 | G23: Alan Taylor | H23: WJ | I23: V50 | J23: 1 | K23: 38
A24: Tim McMahon | B24: SS | C24: V40 | D24: 1 | E24: 22 | G24: James Baker | H24: WJ | I24: S | J24: 1 | K24: 39
A25: Martyn Coulter | B25: HRC | C25: S | D25: 1 | E25: 23 | G25: Andrew Biggs | H25: WJ | I25: V40 | J25: 1 | K25: 42
A26: Matthew Billis | B26: SS | C26: V40 | D26: 1 | E26: 24 | G26: Peter Baker | H26: WJ | I26: V60 | J26: 1 | K26: 45
A27: Ryan Smith | B27: HRC | C27: V40 | D27: 1 | E27: 25 | G27: James Randall | H27: WJ | I27: V40 | J27: 1 | K27: 47
A28: Andrew Kavanagh | B28: WJ | C28: S | D28: 1 | E28: 26 | G28: Steven Argent | H28: WJ | I28: V60 | J28: 1 | K28: 50
A29: Jamie Higgs | B29: WJ | C29: V40 | D29: 1 | E29: 27 | G29: Richard van Maanenberg | H29: WJ | I29: V50 | J29: 1 | K29: 60
A30: Nigel Flynn | B30: SS | C30: V40 | D30: 1 | E30: 28 | G30: Alan Randall | H30: WJ | I30: V60 | J30: 2 | K30: 65
A31: Stefan Gauntlett | B31: WJ | C31: S | D31: 1 | E31: 29 | G31: Simon Joyce | H31: WJ | I31: V50 | J31: 1 | K31: 67
A32: Mark Lawrence | B32: BS | C32: S | D32: 1 | E32: 30
A33: Phil Earle | B33: WJ | C33: V40 | D33: 1 | E33: 31
A34: Gordon Mcleod | B34: BS | C34: S | D34: 1 | E34: 32 | G34: Senior | N34: V40 | U34: V50 | AB34: V60 | AI34: V70
A35: Benjamin Usher | B35: HRC | C35: S | D35: 1 | E35: 33 | G35: Name | H35: Club | I35: Age Category | J35: Claim | K35: Overall Position | L35: Category Position | N35: Name | O35: Club | P35: Age Category | Q35: Claim | R35: Overall Position | S35: Category Position | U35: Name | V35: Club | W35: Age Category | X35: Claim | Y35: Overall Position | Z35: Category Position | AB35: Name | AC35: Club | AD35: Age Category | AE35: Claim | AF35: Overall Position | AG35: Category Position | AI35: Name | AJ35: Club | AK35: Age Category | AL35: Claim | AM35: Overall Position | AN35: Category Position
A36: Mark Sanz | B36: WJ | C36: V50 | D36: 1 | E36: 34 | G36: Michael Waddington | H36: WJ | I36: S | J36: 1 | K36: 1 | L36: 1 | N36: Andrew Mynott | O36: WJ | P36: V40 | Q36: 1 | R36: 3 | S36: 1 | U36: Rob Lowe | V36: HRC | W36: V50 | X36: 1 | Y36: 4 | Z36: 1 | AB36: Peter Baker | AC36: WJ | AD36: V60 | AE36: 1 | AF36: 45 | AG36: 1
A37: Lee Webber | B37: HRC | C37: V40 | D37: 1 | E37: 35 | G37: Samuel Pedley | H37: BS | I37: S | J37: 1 | K37: 2 | L37: 2 | N37: Nick Axam | O37: WJ | P37: V40 | Q37: 1 | R37: 7 | S37: 2 | U37: Kevin Sambridge | V37: WJ | W37: V50 | X37: 1 | Y37: 9 | Z37: 2 | AB37: Ian MacDougall | AC37: SS | AD37: V60 | AE37: 1 | AF37: 48 | AG37: 2
A38: Marco Arcidiacono | B38: SS | C38: V50 | D38: 1 | E38: 36 | G38: David Craddock | H38: WJ | I38: S | J38: 1 | K38: 5 | L38: 3 | N38: Vincent Riviere | O38: WJ | P38: V40 | Q38: 1 | R38: 11 | S38: 3 | U38: Robert Thorpe | V38: BS | W38: V50 | X38: 1 | Y38: 14 | Z38: 3 | AB38: Steven Argent | AC38: WJ | AD38: V60 | AE38: 1 | AF38: 50 | AG38: 3
A39: Russell Cook | B39: WJ | C39: S | D39: 1 | E39: 37 | G39: Liam Struwe | H39: WJ | I39: S | J39: 1 | K39: 6 | L39: 4 | N39: Iain Henley | O39: SS | P39: V40 | Q39: 1 | R39: 15 | S39: 4 | U39: Mark Sanz | V39: WJ | W39: V50 | X39: 1 | Y39: 34 | Z39: 4 | AB39: John James | AC39: SS | AD39: V60 | AE39: 1 | AF39: 55 | AG39: 4
A40: Alan Taylor | B40: WJ | C40: V50 | D40: 1 | E40: 38 | G40: Will Breese | H40: WJ | I40: S | J40: 1 | K40: 8 | L40: 5 | N40: Matthew Ironside | O40: BS | P40: V40 | Q40: 1 | R40: 16 | S40: 5 | U40: Marco Arcidiacono | V40: SS | W40: V50 | X40: 1 | Y40: 36 | Z40: 5 | AB40: Sean Flynn | AC40: HRC | AD40: V60 | AE40: 1 | AF40: 61 | AG40: 5
A41: James Baker | B41: WJ | C41: S | D41: 1 | E41: 39 | G41: Tim Brignall | H41: WJ | I41: S | J41: 1 | K41: 10 | L41: 6 | N41: Neil Bull | O41: WJ | P41: V40 | Q41: 1 | R41: 19 | S41: 6 | U41: Alan Taylor | V41: WJ | W41: V50 | X41: 1 | Y41: 38 | Z41: 6 | AB41: Arthur Oliva | AC41: SS | AD41: V60 | AE41: 1 | AF41: 62 | AG41: 6
A42: Chris Burgess | B42: HRC | C42: V50 | D42: 1 | E42: 40 | G42: Tom Porter | H42: WJ | I42: S | J42: 1 | K42: 12 | L42: 7 | N42: Kirk Crudgington | O42: HRC | P42: V40 | Q42: 1 | R42: 21 | S42: 7 | U42: Chris Burgess | V42: HRC | W42: V50 | X42: 1 | Y42: 40 | Z42: 7 | AB42: Alan Randall | AC42: WJ | AD42: V60 | AE42: 2 | AF42: 65 | AG42: 7
A43: Gary Jones | B43: BS | C43: V50 | D43: 1 | E43: 41 | G43: Mark Ford | H43: WJ | I43: S | J43: 1 | K43: 13 | L43: 8 | N43: Tim McMahon | O43: SS | P43: V40 | Q43: 1 | R43: 22 | S43: 8 | U43: Gary Jones | V43: BS | W43: V50 | X43: 1 | Y43: 41 | Z43: 8 | AB43: Martin Howe | AC43: BS | AD43: V60 | AE43: 1 | AF43: 68 | AG43: 8
A44: Andrew Biggs | B44: WJ | C44: V40 | D44: 1 | E44: 42 | G44: William Caunce | H44: WJ | I44: S | J44: 1 | K44: 17 | L44: 9 | N44: Matthew Billis | O44: SS | P44: V40 | Q44: 1 | R44: 24 | S44: 9 | U44: Darren Tiley | V44: HRC | W44: V50 | X44: 1 | Y44: 43 | Z44: 9 | AB44: Robert Shaw | AC44: SS | AD44: V60 | AE44: 2 | AF44: 69 | AG44: 9
A45: Darren Tiley | B45: HRC | C45: V50 | D45: 1 | E45: 43 | G45: Henry Ward | H45: BS | I45: S | J45: 1 | K45: 18 | L45: 10 | N45: Ryan Smith | O45: HRC | P45: V40 | Q45: 1 | R45: 25 | S45: 10 | U45: Chris Chew | V45: BS | W45: V50 | X45: 1 | Y45: 44 | Z45: 10 | AB45: Alan Cootes | AC45: HRC | AD45: V60 | AE45: 1 | AF45: 70 | AG45: 10
A46: Chris Chew | B46: BS | C46: V50 | D46: 1 | E46: 44 | G46: Alexander Chappell | H46: WJ | I46: S | J46: 1 | K46: 20 | L46: 11 | N46: Jamie Higgs | O46: WJ | P46: V40 | Q46: 1 | R46: 27 | S46: 11 | U46: Miguel Luque | V46: HRC | W46: V50 | X46: 1 | Y46: 51 | Z46: 11 | AB46: Ian Penson | AC46: BS | AD46: V60 | AE46: 1 | AF46: 71 | AG46: 11
A47: Peter Baker | B47: WJ | C47: V60 | D47: 1 | E47: 45 | G47: Martyn Coulter | H47: HRC | I47: S | J47: 1 | K47: 23 | L47: 12 | N47: Nigel Flynn | O47: SS | P47: V40 | Q47: 1 | R47: 28 | S47: 12 | U47: John Bull | V47: HRC | W47: V50 | X47: 1 | Y47: 54 | Z47: 12
A48: NEIL GAGE | B48: BS | C48: V40 | D48: 1 | E48: 46 | G48: Andrew Kavanagh | H48: WJ | I48: S | J48: 1 | K48: 26 | L48: 13 | N48: Phil Earle | O48: WJ | P48: V40 | Q48: 1 | R48: 31 | S48: 13 | U48: Paul Dixon | V48: HRC | W48: V50 | X48: 1 | Y48: 56 | Z48: 13
A49: James Randall | B49: WJ | C49: V40 | D49: 1 | E49: 47 | G49: Stefan Gauntlett | H49: WJ | I49: S | J49: 1 | K49: 29 | L49: 14 | N49: Lee Webber | O49: HRC | P49: V40 | Q49: 1 | R49: 35 | S49: 14 | U49: Gary Mead | V49: HRC | W49: V50 | X49: 1 | Y49: 58 | Z49: 14
A50: Ian MacDougall | B50: SS | C50: V60 | D50: 1 | E50: 48 | G50: Mark Lawrence | H50: BS | I50: S | J50: 1 | K50: 30 | L50: 15 | N50: Andrew Biggs | O50: WJ | P50: V40 | Q50: 1 | R50: 42 | S50: 15 | U50: Neil Halls | V50: SS | W50: V50 | X50: 1 | Y50: 59 | Z50: 15
A51: Richard Foweraker | B51: BS | C51: V40 | D51: 1 | E51: 49 | G51: Gordon Mcleod | H51: BS | I51: S | J51: 1 | K51: 32 | L51: 16 | N51: NEIL GAGE | O51: BS | P51: V40 | Q51: 1 | R51: 46 | S51: 16 | U51: Richard van Maanenberg | V51: WJ | W51: V50 | X51: 1 | Y51: 60 | Z51: 16
A52: Steven Argent | B52: WJ | C52: V60 | D52: 1 | E52: 50 | G52: Benjamin Usher | H52: HRC | I52: S | J52: 1 | K52: 33 | L52: 17 | N52: James Randall | O52: WJ | P52: V40 | Q52: 1 | R52: 47 | S52: 17 | U52: Paul Dearlove | V52: BS | W52: V50 | X52: 1 | Y52: 63 | Z52: 17
A53: Miguel Luque | B53: HRC | C53: V50 | D53: 1 | E53: 51 | G53: Russell Cook | H53: WJ | I53: S | J53: 1 | K53: 37 | L53: 18 | N53: Richard Foweraker | O53: BS | P53: V40 | Q53: 1 | R53: 49 | S53: 18 | U53: Simon Joyce | V53: WJ | W53: V50 | X53: 1 | Y53: 67 | Z53: 18
A54: David Raimondo | B54: SS | C54: V40 | D54: 1 | E54: 52 | G54: James Baker | H54: WJ | I54: S | J54: 1 | K54: 39 | L54: 19 | N54: David Raimondo | O54: SS | P54: V40 | Q54: 1 | R54: 52 | S54: 19 | U54: Michael Bradley | V54: SS | W54: V50 | X54: 1 | Y54: 72 | Z54: 19
A55: Stuart Longley | B55: BS | C55: V40 | D55: 1 | E55: 53 | G55: Balint Bone | H55: BS | I55: S | J55: 1 | K55: 64 | L55: 20 | N55: Stuart Longley | O55: BS | P55: V40 | Q55: 1 | R55: 53 | S55: 20 | U55: Michael Gleeson | V55: HRC | W55: V50 | X55: 1 | Y55: 75 | Z55: 20
A56: John Bull | B56: HRC | C56: V50 | D56: 1 | E56: 54 | N56: Lee Vass | O56: BS | P56: V40 | Q56: 1 | R56: 57 | S56: 21
A57: John James | B57: SS | C57: V60 | D57: 1 | E57: 55 | N57: Alistair Cooke | O57: SS | P57: V40 | Q57: 1 | R57: 66 | S57: 22
A58: Paul Dixon | B58: HRC | C58: V50 | D58: 1 | E58: 56 | N58: Rohit Dayama | O58: BS | P58: V40 | Q58: 1 | R58: 73 | S58: 23
A59: Lee Vass | B59: BS | C59: V40 | D59: 1 | E59: 57 | N59: Stephen Cozens | O59: HRC | P59: V40 | Q59: 1 | R59: 74 | S59: 24
A60: Gary Mead | B60: HRC | C60: V50 | D60: 1 | E60: 58
A61: Neil Halls | B61: SS | C61: V50 | D61: 1 | E61: 59
A62: Richard van Maanenberg | B62: WJ | C62: V50 | D62: 1 | E62: 60
A63: Sean Flynn | B63: HRC | C63: V60 | D63: 1 | E63: 61
A64: Arthur Oliva | B64: SS | C64: V60 | D64: 1 | E64: 62
A65: Paul Dearlove | B65: BS | C65: V50 | D65: 1 | E65: 63
A66: Balint Bone | B66: BS | C66: S | D66: 1 | E66: 64
A67: Alan Randall | B67: WJ | C67: V60 | D67: 2 | E67: 65
A68: Alistair Cooke | B68: SS | C68: V40 | D68: 1 | E68: 66
A69: Simon Joyce | B69: WJ | C69: V50 | D69: 1 | E69: 67
A70: Martin Howe | B70: BS | C70: V60 | D70: 1 | E70: 68
A71: Robert Shaw | B71: SS | C71: V60 | D71: 2 | E71: 69
A72: Alan Cootes | B72: HRC | C72: V60 | D72: 1 | E72: 70
A73: Ian Penson | B73: BS | C73: V60 | D73: 1 | E73: 71
A74: Michael Bradley | B74: SS | C74: V50 | D74: 1 | E74: 72
A75: Rohit Dayama | B75: BS | C75: V40 | D75: 1 | E75: 73
A76: Stephen Cozens | B76: HRC | C76: V40 | D76: 1 | E76: 74
A77: Michael Gleeson | B77: HRC | C77: V50 | D77: 1 | E77: 75

Sheet Race 4-Ladies
A1: Overall | G1: Ware Joggers | N1: Bishop's Stortford | U1: Saffron Striders | AB1: Harlow Running & Tri Club
A2: Name | B2: Club | C2: Age Category | D2: Claim | E2: Position | G2: Name | H2: Club | I2: Age Category | J2: Claim | K2: Position | N2: Name | O2: Club | P2: Age Category | Q2: Claim | R2: Position | U2: Name | V2: Club | W2: Age Category | X2: Claim | Y2: Position | AB2: Name | AC2: Club | AD2: Age Category | AE2: Claim | AF2: Position | AI2: Name | AJ2: Club | AK2: Age Category | AL2: Claim | AM2: Position
A3: Katy Woodward | B3: WJ | C3: V35 | D3: 1 | E3: 1 | G3: Katy Woodward | H3: WJ | I3: V35 | J3: 1 | K3: 1 | L3: 1 | N3: Sophie Barc | O3: BS | P3: V45 | Q3: 1 | R3: 6 | S3: 6 | U3: Zib Gotto | V3: SS | W3: V45 | X3: 1 | Y3: 5 | Z3: 5 | AB3: Terri Wiley | AC3: HRC | AD3: V35 | AE3: 1 | AF3: 2 | AG3: 2
A4: Terri Wiley | B4: HRC | C4: V35 | D4: 1 | E4: 2 | G4: Katrina Dobson | H4: WJ | I4: V35 | J4: 1 | K4: 3 | L4: 3 | N4: Peijie Zhu | O4: BS | P4: V45 | Q4: 1 | R4: 27 | S4: 27 | U4: Flo Greatrix | V4: SS | W4: S | X4: 1 | Y4: 10 | Z4: 10 | AB4: Catherine Ridge | AC4: HRC | AD4: V35 | AE4: 1 | AF4: 9 | AG4: 9
A5: Katrina Dobson | B5: WJ | C5: V35 | D5: 1 | E5: 3 | G5: Marianne Mitchell | H5: WJ | I5: V45 | J5: 1 | K5: 4 | L5: 4 | N5: Jen Burke | O5: BS | P5: V35 | Q5: 1 | R5: 31 | S5: 31 | U5: Kerry Harrington | V5: SS | W5: V45 | X5: 1 | Y5: 26 | Z5: 26 | AB5: Allison Beeton | AC5: HRC | AD5: V55 | AE5: 1 | AF5: 13 | AG5: 13
A6: Marianne Mitchell | B6: WJ | C6: V45 | D6: 1 | E6: 4 | G6: Susan Millward | H6: WJ | I6: V45 | J6: 1 | K6: 7 | L6: 7 | N6: Ellen Brooks | O6: BS | P6: V45 | Q6: 1 | R6: 33 | S6: 33 | U6: Charlotte Diggins | V6: SS | W6: V45 | X6: 1 | Y6: 29 | Z6: 29 | AB6: Linda Helm-Manley | AC6: HRC | AD6: V55 | AE6: 1 | AF6: 16 | AG6: 16
A7: Zib Gotto | B7: SS | C7: V45 | D7: 1 | E7: 5 | G7: Lucy Dupuis | H7: WJ | I7: V45 | J7: 1 | K7: 8 | L7: 8 | N7: Patricia Poole | O7: BS | P7: V55 | Q7: 1 | R7: 34 | S7: 34 | U7: Helen Howard | V7: SS | W7: V45 | X7: 1 | Y7: 30 | Z7: 30 | AB7: Sandra Rust | AC7: HRC | AD7: V55 | AE7: 1 | AF7: 17 | AG7: 17
A8: Sophie Barc | B8: BS | C8: V45 | D8: 1 | E8: 6 | G8: Gemma Charville | H8: WJ | I8: V35 | J8: 1 | K8: 11 | L8: 11 | N8: Lara Wheeldon | O8: BS | P8: V45 | Q8: 1 | R8: 35 | S8: 35 | U8: Margit Wendelberger James | V8: SS | W8: V55 | X8: 1 | Y8: 36 | Z8: 36 | AB8: Donna Milton | AC8: HRC | AD8: V45 | AE8: 1 | AF8: 18 | AG8: 18
A9: Susan Millward | B9: WJ | C9: V45 | D9: 1 | E9: 7 | G9: Emma Mulley | H9: WJ | I9: V35 | J9: 1 | K9: 12 | L9: 12 | N9: Frances Iwaschkin | O9: BS | P9: V45 | Q9: 1 | R9: 41 | S9: 41 | U9: Charlotte Teall | V9: SS | W9: V35 | X9: 1 | Y9: 46 | Z9: 46 | AB9: Fieke Blackwell | AC9: HRC | AD9: V35 | AE9: 1 | AF9: 19 | AG9: 19
A10: Lucy Dupuis | B10: WJ | C10: V45 | D10: 1 | E10: 8 | G10: Anthea Francis | H10: WJ | I10: V45 | J10: 1 | K10: 14 | L10: 14 | N10: Jos Ashpole | O10: BS | P10: V45 | Q10: 1 | R10: 47 | S10: 47 | AB10: Vicky Steadman | AC10: HRC | AD10: V45 | AE10: 1 | AF10: 20 | AG10: 20
A11: Catherine Ridge | B11: HRC | C11: V35 | D11: 1 | E11: 9 | G11: Cate Campany | H11: WJ | I11: V55 | J11: 1 | K11: 15 | N11: Jilly Palmer | O11: BS | P11: V55 | Q11: 1 | R11: 54 | AB11: Louise Cootes | AC11: HRC | AD11: V35 | AE11: 1 | AF11: 22
A12: Flo Greatrix | B12: SS | C12: S | D12: 1 | E12: 10 | G12: Jemina Punni | H12: WJ | I12: V35 | J12: 1 | K12: 21 | N12: Natasha Spiller | O12: BS | P12: V45 | Q12: 1 | R12: 55 | AB12: Kerry Mavris | AC12: HRC | AD12: V45 | AE12: 1 | AF12: 23
A13: Gemma Charville | B13: WJ | C13: V35 | D13: 1 | E13: 11 | G13: Pamela Wilson | H13: WJ | I13: V65 | J13: 1 | K13: 24 | AB13: Anna Robey | AC13: HRC | AD13: V35 | AE13: 1 | AF13: 37
A14: Emma Mulley | B14: WJ | C14: V35 | D14: 1 | E14: 12 | G14: Deborah Amies | H14: WJ | I14: V55 | J14: 1 | K14: 25 | AB14: Alison Wilkinson | AC14: HRC | AD14: V55 | AE14: 1 | AF14: 38
A15: Allison Beeton | B15: HRC | C15: V55 | D15: 1 | E15: 13 | G15: Sam Rowe | H15: WJ | I15: V55 | J15: 1 | K15: 28 | AB15: Sandra Webber | AC15: HRC | AD15: V35 | AE15: 1 | AF15: 42
A16: Anthea Francis | B16: WJ | C16: V45 | D16: 1 | E16: 14 | G16: Jane Wren | H16: WJ | I16: V55 | J16: 2 | K16: 32 | AB16: Tracy Stratford | AC16: HRC | AD16: V35 | AE16: 1 | AF16: 43
A17: Cate Campany | B17: WJ | C17: V55 | D17: 1 | E17: 15 | G17: Christel Ainge | H17: WJ | I17: V45 | J17: 1 | K17: 39 | AB17: Claire Morris | AC17: HRC | AD17: V35 | AE17: 1 | AF17: 44
A18: Linda Helm-Manley | B18: HRC | C18: V55 | D18: 1 | E18: 16 | G18: Joanne Gray | H18: WJ | I18: V35 | J18: 1 | K18: 40 | AB18: Jane Evans | AC18: HRC | AD18: V55 | AE18: 1 | AF18: 48
A19: Sandra Rust | B19: HRC | C19: V55 | D19: 1 | E19: 17 | G19: Lynsay Evans | H19: WJ | I19: V55 | J19: 1 | K19: 45 | AB19: Selina Morgan | AC19: HRC | AD19: V35 | AE19: 1 | AF19: 52
A20: Donna Milton | B20: HRC | C20: V45 | D20: 1 | E20: 18 | G20: Jeanette Collins | H20: WJ | I20: V55 | J20: 1 | K20: 49 | AB20: Luella Dixon | AC20: HRC | AD20: V55 | AE20: 1 | AF20: 53
A21: Fieke Blackwell | B21: HRC | C21: V35 | D21: 1 | E21: 19 | G21: Marcia Fisher | H21: WJ | I21: V45 | J21: 1 | K21: 50 | AB21: Deborah Read | AC21: HRC | AD21: V35 | AE21: 1 | AF21: 56
A22: Vicky Steadman | B22: HRC | C22: V45 | D22: 1 | E22: 20 | G22: Nadia Selby | H22: WJ | I22: V45 | J22: 1 | K22: 51 | AB22: Keren Greenall | AC22: HRC | AD22: V45 | AE22: 1 | AF22: 57
A23: Jemina Punni | B23: WJ | C23: V35 | D23: 1 | E23: 21 | G23: Rosalind Hitchen | H23: WJ | I23: V55 | J23: 1 | K23: 58
A24: Louise Cootes | B24: HRC | C24: V35 | D24: 1 | E24: 22
A25: Kerry Mavris | B25: HRC | C25: V45 | D25: 1 | E25: 23
A26: Pamela Wilson | B26: WJ | C26: V65 | D26: 1 | E26: 24 | G26: Senior | N26: V35 | U26: V45 | AB26: V55 | AI26: V65
A27: Deborah Amies | B27: WJ | C27: V55 | D27: 1 | E27: 25 | G27: Name | H27: Club | I27: Age Category | J27: Claim | K27: Overall Position | L27: Category Position | N27: Name | O27: Club | P27: Age Category | Q27: Claim | R27: Overall Position | S27: Category Position | U27: Name | V27: Club | W27: Age Category | X27: Claim | Y27: Overall Position | Z27: Category Position | AB27: Name | AC27: Club | AD27: Age Category | AE27: Claim | AF27: Overall Position | AG27: Category Position | AI27: Name | AJ27: Club | AK27: Age Category | AL27: Claim | AM27: Overall Position | AN27: Category Position
A28: Kerry Harrington | B28: SS | C28: V45 | D28: 1 | E28: 26 | G28: Flo Greatrix | H28: SS | I28: S | J28: 1 | K28: 10 | L28: 1 | N28: Katy Woodward | O28: WJ | P28: V35 | Q28: 1 | R28: 1 | S28: 1 | U28: Marianne Mitchell | V28: WJ | W28: V45 | X28: 1 | Y28: 4 | Z28: 1 | AB28: Allison Beeton | AC28: HRC | AD28: V55 | AE28: 1 | AF28: 13 | AG28: 1 | AI28: Pamela Wilson | AJ28: WJ | AK28: V65 | AL28: 1 | AM28: 24 | AN28: 1
A29: Peijie Zhu | B29: BS | C29: V45 | D29: 1 | E29: 27 | N29: Terri Wiley | O29: HRC | P29: V35 | Q29: 1 | R29: 2 | S29: 2 | U29: Zib Gotto | V29: SS | W29: V45 | X29: 1 | Y29: 5 | Z29: 2 | AB29: Cate Campany | AC29: WJ | AD29: V55 | AE29: 1 | AF29: 15 | AG29: 2
A30: Sam Rowe | B30: WJ | C30: V55 | D30: 1 | E30: 28 | N30: Katrina Dobson | O30: WJ | P30: V35 | Q30: 1 | R30: 3 | S30: 3 | U30: Sophie Barc | V30: BS | W30: V45 | X30: 1 | Y30: 6 | Z30: 3 | AB30: Linda Helm-Manley | AC30: HRC | AD30: V55 | AE30: 1 | AF30: 16 | AG30: 3
A31: Charlotte Diggins | B31: SS | C31: V45 | D31: 1 | E31: 29 | N31: Catherine Ridge | O31: HRC | P31: V35 | Q31: 1 | R31: 9 | S31: 4 | U31: Susan Millward | V31: WJ | W31: V45 | X31: 1 | Y31: 7 | Z31: 4 | AB31: Sandra Rust | AC31: HRC | AD31: V55 | AE31: 1 | AF31: 17 | AG31: 4
A32: Helen Howard | B32: SS | C32: V45 | D32: 1 | E32: 30 | N32: Gemma Charville | O32: WJ | P32: V35 | Q32: 1 | R32: 11 | S32: 5 | U32: Lucy Dupuis | V32: WJ | W32: V45 | X32: 1 | Y32: 8 | Z32: 5 | AB32: Deborah Amies | AC32: WJ | AD32: V55 | AE32: 1 | AF32: 25 | AG32: 5
A33: Jen Burke | B33: BS | C33: V35 | D33: 1 | E33: 31 | N33: Emma Mulley | O33: WJ | P33: V35 | Q33: 1 | R33: 12 | S33: 6 | U33: Anthea Francis | V33: WJ | W33: V45 | X33: 1 | Y33: 14 | Z33: 6 | AB33: Sam Rowe | AC33: WJ | AD33: V55 | AE33: 1 | AF33: 28 | AG33: 6
A34: Jane Wren | B34: WJ | C34: V55 | D34: 2 | E34: 32 | N34: Fieke Blackwell | O34: HRC | P34: V35 | Q34: 1 | R34: 19 | S34: 7 | U34: Donna Milton | V34: HRC | W34: V45 | X34: 1 | Y34: 18 | Z34: 7 | AB34: Jane Wren | AC34: WJ | AD34: V55 | AE34: 2 | AF34: 32 | AG34: 7
A35: Ellen Brooks | B35: BS | C35: V45 | D35: 1 | E35: 33 | N35: Jemina Punni | O35: WJ | P35: V35 | Q35: 1 | R35: 21 | S35: 8 | U35: Vicky Steadman | V35: HRC | W35: V45 | X35: 1 | Y35: 20 | Z35: 8 | AB35: Patricia Poole | AC35: BS | AD35: V55 | AE35: 1 | AF35: 34 | AG35: 8
A36: Patricia Poole | B36: BS | C36: V55 | D36: 1 | E36: 34 | N36: Louise Cootes | O36: HRC | P36: V35 | Q36: 1 | R36: 22 | S36: 9 | U36: Kerry Mavris | V36: HRC | W36: V45 | X36: 1 | Y36: 23 | Z36: 9 | AB36: Margit Wendelberger James | AC36: SS | AD36: V55 | AE36: 1 | AF36: 36 | AG36: 9
A37: Lara Wheeldon | B37: BS | C37: V45 | D37: 1 | E37: 35 | N37: Jen Burke | O37: BS | P37: V35 | Q37: 1 | R37: 31 | S37: 10 | U37: Kerry Harrington | V37: SS | W37: V45 | X37: 1 | Y37: 26 | Z37: 10 | AB37: Alison Wilkinson | AC37: HRC | AD37: V55 | AE37: 1 | AF37: 38 | AG37: 10
A38: Margit Wendelberger James | B38: SS | C38: V55 | D38: 1 | E38: 36 | N38: Anna Robey | O38: HRC | P38: V35 | Q38: 1 | R38: 37 | S38: 11 | U38: Peijie Zhu | V38: BS | W38: V45 | X38: 1 | Y38: 27 | Z38: 11 | AB38: Lynsay Evans | AC38: WJ | AD38: V55 | AE38: 1 | AF38: 45 | AG38: 11
A39: Anna Robey | B39: HRC | C39: V35 | D39: 1 | E39: 37 | N39: Joanne Gray | O39: WJ | P39: V35 | Q39: 1 | R39: 40 | S39: 12 | U39: Charlotte Diggins | V39: SS | W39: V45 | X39: 1 | Y39: 29 | Z39: 12 | AB39: Jane Evans | AC39: HRC | AD39: V55 | AE39: 1 | AF39: 48 | AG39: 12
A40: Alison Wilkinson | B40: HRC | C40: V55 | D40: 1 | E40: 38 | N40: Sandra Webber | O40: HRC | P40: V35 | Q40: 1 | R40: 42 | S40: 13 | U40: Helen Howard | V40: SS | W40: V45 | X40: 1 | Y40: 30 | Z40: 13 | AB40: Jeanette Collins | AC40: WJ | AD40: V55 | AE40: 1 | AF40: 49 | AG40: 13
A41: Christel Ainge | B41: WJ | C41: V45 | D41: 1 | E41: 39 | N41: Tracy Stratford | O41: HRC | P41: V35 | Q41: 1 | R41: 43 | S41: 14 | U41: Ellen Brooks | V41: BS | W41: V45 | X41: 1 | Y41: 33 | Z41: 14 | AB41: Luella Dixon | AC41: HRC | AD41: V55 | AE41: 1 | AF41: 53 | AG41: 14
A42: Joanne Gray | B42: WJ | C42: V35 | D42: 1 | E42: 40 | N42: Claire Morris | O42: HRC | P42: V35 | Q42: 1 | R42: 44 | S42: 15 | U42: Lara Wheeldon | V42: BS | W42: V45 | X42: 1 | Y42: 35 | Z42: 15 | AB42: Jilly Palmer | AC42: BS | AD42: V55 | AE42: 1 | AF42: 54 | AG42: 15
A43: Frances Iwaschkin | B43: BS | C43: V45 | D43: 1 | E43: 41 | N43: Charlotte Teall | O43: SS | P43: V35 | Q43: 1 | R43: 46 | S43: 16 | U43: Christel Ainge | V43: WJ | W43: V45 | X43: 1 | Y43: 39 | Z43: 16 | AB43: Rosalind Hitchen | AC43: WJ | AD43: V55 | AE43: 1 | AF43: 58 | AG43: 16
A44: Sandra Webber | B44: HRC | C44: V35 | D44: 1 | E44: 42 | N44: Selina Morgan | O44: HRC | P44: V35 | Q44: 1 | R44: 52 | S44: 17 | U44: Frances Iwaschkin | V44: BS | W44: V45 | X44: 1 | Y44: 41 | Z44: 17
A45: Tracy Stratford | B45: HRC | C45: V35 | D45: 1 | E45: 43 | N45: Deborah Read | O45: HRC | P45: V35 | Q45: 1 | R45: 56 | S45: 18 | U45: Jos Ashpole | V45: BS | W45: V45 | X45: 1 | Y45: 47 | Z45: 18
A46: Claire Morris | B46: HRC | C46: V35 | D46: 1 | E46: 44 | U46: Marcia Fisher | V46: WJ | W46: V45 | X46: 1 | Y46: 50 | Z46: 19
A47: Lynsay Evans | B47: WJ | C47: V55 | D47: 1 | E47: 45 | U47: Nadia Selby | V47: WJ | W47: V45 | X47: 1 | Y47: 51 | Z47: 20
A48: Charlotte Teall | B48: SS | C48: V35 | D48: 1 | E48: 46 | U48: Natasha Spiller | V48: BS | W48: V45 | X48: 1 | Y48: 55 | Z48: 21
A49: Jos Ashpole | B49: BS | C49: V45 | D49: 1 | E49: 47 | U49: Keren Greenall | V49: HRC | W49: V45 | X49: 1 | Y49: 57 | Z49: 22
A50: Jane Evans | B50: HRC | C50: V55 | D50: 1 | E50: 48
A51: Jeanette Collins | B51: WJ | C51: V55 | D51: 1 | E51: 49
A52: Marcia Fisher | B52: WJ | C52: V45 | D52: 1 | E52: 50
A53: Nadia Selby | B53: WJ | C53: V45 | D53: 1 | E53: 51
A54: Selina Morgan | B54: HRC | C54: V35 | D54: 1 | E54: 52
A55: Luella Dixon | B55: HRC | C55: V55 | D55: 1 | E55: 53
A56: Jilly Palmer | B56: BS | C56: V55 | D56: 1 | E56: 54
A57: Natasha Spiller | B57: BS | C57: V45 | D57: 1 | E57: 55
A58: Deborah Read | B58: HRC | C58: V35 | D58: 1 | E58: 56
A59: Keren Greenall | B59: HRC | C59: V45 | D59: 1 | E59: 57
A60: Rosalind Hitchen | B60: WJ | C60: V55 | D60: 1 | E60: 58
